date,department/service,beneficiary,amount,summary of purpose,category,transaction number,SAP vendor number,X ?,TYPE
01.05.2021,ADULT SOCIAL CARE,CONTACT PROFESSIONALS,478.8,PHY LTS 18-64,OTHER PAYMENTS FOR CLIENTS,5902466834,1000057263,y,4
01.05.2021,CENTRAL FUNCTIONS,NPOWER LTD,"1,240.47",HEATING ACCOUNT,ELECTRICITY,5902466802,1000078994,y,4
01.05.2021,CENTRAL FUNCTIONS,NPOWER LTD,"2,687.30",HEATING ACCOUNT,ELECTRICITY,5902466802,1000078994,y,4
01.05.2021,CENTRAL FUNCTIONS,NPOWER LTD,"4,999.47",HEATING ACCOUNT,ELECTRICITY,5902466802,1000078994,y,4
01.05.2021,CHIEF EXECUTIVE,CURRIE & BROWN UK LTD,"6,035.00",CAPITAL PS (REGEN),CONSTRUCTION,5902466655,1000033455,y,4
01.05.2021,CHIEF EXECUTIVE,CURRIE & BROWN UK LTD,"8,333.00",CAPITAL PS (REGEN),CONSTRUCTION,5902466659,1000033455,y,4
01.05.2021,CHIEF EXECUTIVE,SYSTRA LTD,"10,900.00",CAPITAL PS (REGEN),ICT ACQUISITION,5902466572,11305109,y,4
01.05.2021,CUSTOMER EXPERIENCE HGF,IMPERIAL COLLEGE PROJECTS LTD,312,CORONER'S,PROFESSIONAL FEES,5902466556,1000080106,y,4
01.05.2021,CUSTOMER EXPERIENCE HGF,IMPERIAL COLLEGE PROJECTS LTD,512,CORONER'S,PROFESSIONAL FEES,5902466557,1000080106,y,4
01.05.2021,ENVIRONMENT AND LEISURE,F M CONWAY LTD,"4,398.07",CAPITAL PS (LEISURE),CONSTRUCTION,2103253937,4001384,y,4
01.05.2021,F & C S EXCLUDING CORPORATE BUDGETS,DSI BILLING SERVICES LTD,"4,863.72",ADMINISTRATIVE SUPPORT,POSTAGES,5902466762,1000058640,y,4
01.05.2021,HOUSING,SPOKEMEAD MAINTENANCE LTD,"45,199.94",PAYMENTS CONTROL ACCOUNT - SPOKEMEAD,I-WORLD CONTRACTORS HOLDING ACCOUNT,5902466425,1000059211,y,4
01.05.2021,HOUSING,SPOKEMEAD MAINTENANCE LTD,"355,993.74",PAYMENTS CONTROL ACCOUNT - SPOKEMEAD,I-WORLD CONTRACTORS HOLDING ACCOUNT,5902466425,1000059211,y,4
01.05.2021,HOUSING HRA,BUILDTRUST LTD,"7,439.87",CAPITAL PS (HRA),CONST'N MAIN CONTRACT - NON CERTIFICATED,2103253860,3000002010,y,4
01.05.2021,HOUSING HRA,GUILDMORE LTD,"489,565.40",CAPITAL PS (HRA),CONSTRUCTION MAIN CONTRACT -CERTIFICATED,2103255246,3000002150,y,4
01.05.2021,MODERNISATION HGF,BRITISH GAS,754.79,CURLEW HOUSE,GAS,5902466418,1000054825,y,4
01.05.2021,PUBLIC HEALTH,S LONDON CHURCH FUND & SOUTHWARK DIOCESAN BOARD OF FINANCE,540,PLACE & HEALTH IMPROVEMENT,EXTERNAL AGENCIES AND BODIES,5902467072,1000086427,y,4
02.05.2021,ADULT SOCIAL CARE,SIDLOFF ASSOCIATES LTD,875,SAFEGUARDING & DOLS,EXTERNAL AGENCIES AND BODIES,5902466676,1000081744,y,4
02.05.2021,CENTRAL FUNCTIONS,NPOWER LTD,993.97,HEATING ACCOUNT,ELECTRICITY,5902466804,1000078994,y,4
02.05.2021,CHIEF EXECUTIVE,MEANWHILE SPACE CIC,"87,100.00",CAPITAL PS (REGEN),CONSTRUCTION FEES,5902466638,1000080134,y,4
02.05.2021,CUSTOMER EXPERIENCE,VELVINDRON,414,COMPLAINTS,REFRESHMENTS FOR MEETINGS,5902466928,1000083036,y,4
02.05.2021,ENVIRONMENT AND LEISURE,VINCENTSTOKES LTD,"298,157.40",CAPITAL PS (LEISURE),CONSTRUCTION MAIN CONTRACT -CERTIFICATED,2103253845,3000001965,y,4
02.05.2021,ENVIRONMENT DIRECTORATE,IMPERIAL JANITORIAL SUPPLIES LTD,252,ESTATE CLEANING-GENERAL,MATERIALS,5902466631,1000038126,y,4
02.05.2021,HOUSING,PENNINGTON CHOICES LTD,"34,229.17",PENNINGTON,MANUAL CREDITORS,5902467144,1000067888,y,4
02.05.2021,PLANNING AND TRANSPORT,SOUTHWARK NEWSPAPER LTD,504,DEVELOPMENT CONTROL ADMINSTRATION,MARKETING & PUBLICITY SERVICES,5902467330,1556957,y,4
03.05.2021,ADULT SOCIAL CARE,RADHA CONSULTING LTD,900,SAFEGUARDING & DOLS,OTHER CONTRACTORS,5902467290,1000061154,y,4
03.05.2021,CUSTOMER EXPERIENCE HGF,IMPERIAL COLLEGE PROJECTS LTD,312,CORONER'S,PROFESSIONAL FEES,5902466943,1000080106,y,4
03.05.2021,CUSTOMER EXPERIENCE HGF,IMPERIAL COLLEGE PROJECTS LTD,364,CORONER'S,PROFESSIONAL FEES,5902466926,1000080106,y,4
03.05.2021,CUSTOMER EXPERIENCE HGF,IMPERIAL COLLEGE PROJECTS LTD,388,CORONER'S,PROFESSIONAL FEES,5902466923,1000080106,y,4
03.05.2021,CUSTOMER EXPERIENCE HGF,IMPERIAL COLLEGE PROJECTS LTD,408,CORONER'S,PROFESSIONAL FEES,5902466936,1000080106,y,4
03.05.2021,CUSTOMER EXPERIENCE HGF,IMPERIAL COLLEGE PROJECTS LTD,504,CORONER'S,PROFESSIONAL FEES,5902466945,1000080106,y,4
03.05.2021,CUSTOMER EXPERIENCE HGF,T.M.L.E LTD,687.5,CORONER'S,PROFESSIONAL FEES,5902467028,1000086131,y,4
03.05.2021,CUSTOMER EXPERIENCE HGF,POSTURITE (UK) LTD,390,HOUSING OPTIONS,EQUIPMENT PURCHASE & REPAIR,5902467283,11015468,y,4
03.05.2021,HOUSING HRA,PARIS SMITH LLP,650,CAPITAL PS (HRA),CONSTRUCTION FEES  - EXTERNAL,5902467100,1000008059,y,12
03.05.2021,HOUSING HRA,BAILY GARNER (HEALTH AND SAFETY) LIMITED,"2,912.00",CAPITAL PS (HRA),CONSTRUCTION FEES  - EXTERNAL,5902467220,1000033754,y,4
03.05.2021,HOUSING HRA,BAILY GARNER (HEALTH AND SAFETY) LIMITED,"7,603.20",CAPITAL PS (HRA),CONSTRUCTION FEES  - EXTERNAL,5902467157,1000033754,y,4
03.05.2021,HOUSING HRA,COTTRELL AND VERMEULEN ARCH LTD,"7,763.00",CAPITAL PS (HRA),CONSTRUCTION FEES - ARCHITECT,5902466800,1000012119,y,4
03.05.2021,LEISURE DIRECTORATE,BRESLIN CONSTRUCTION LTD,"1,900.00",PARKS SERVICES DEVELOPMENT,BUILDING R&M,2103256991,3000001948,y,4
03.05.2021,LEISURE DIRECTORATE,BRESLIN CONSTRUCTION LTD,"3,800.00",PARKS SERVICES DEVELOPMENT,BUILDING R&M,5902467295,1000078031,y,4
03.05.2021,REGENERATION,PIPE SCAFFOLDING LTD,"2,305.00",MISC INDUSTRIAL PROPERTIES,BUILDING R&M,5902466872,1000083894,y,4
04.05.2021,CHIEF EXECUTIVE,LOCAL GOVERNMENT ASSOCIATION,"49,164.54",CORPORATE MANAGEMENT,SUBSCRIPTIONS,6101978928,DIRECT DEBIT PAYMENT,y,-
04.05.2021,CUSTOMER EXPERIENCE HGF,HELP2SUPPORT LIMITED,"1,772.94",HOMELESS PROJECTS,GRANTS,5902467108,1000084604,y,4
04.05.2021,F & C S EXCLUDING CORPORATE BUDGETS,REDACTED PERSONAL DATA,500,SESS,OTHER PAYMENTS FOR CLIENTS,REDACTED,REDACTED,X,10
04.05.2021,HOUSING HRA,ELLIOT GROUP LIMITED,"1,153.41",CAPITAL PS (HRA),CONSTRUCTION SITE COSTS,5902467171,1000062655,y,4
05.05.2021,ADULT SOCIAL CARE,REDACTED PERSONAL DATA,756,DISABILITIES LAC,PAYMENTS TO CARERS,REDACTED,REDACTED,X,10
05.05.2021,ADULT SOCIAL CARE,REDACTED PERSONAL DATA,879.72,DISABILITIES LAC,PAYMENTS TO CARERS,REDACTED,REDACTED,X,10
05.05.2021,ADULT SOCIAL CARE,REDACTED PERSONAL DATA,"1,094.60",DISABILITIES LAC,PAYMENTS TO CARERS,REDACTED,REDACTED,X,10
05.05.2021,ADULT SOCIAL CARE,REDACTED PERSONAL DATA,"1,632.00",DISABILITIES LAC,PAYMENTS TO CARERS,REDACTED,REDACTED,X,10
05.05.2021,ADULT SOCIAL CARE,CARE MANAGEMENT GROUP,396,LD LTS 18-64,SUPPORTED LIVING,2103258342,1000040475,y,4
05.05.2021,ADULT SOCIAL CARE,CONTACT PROFESSIONALS,465,LD LTS 18-64,SUPPORTED LIVING,2103258337,1000057263,y,4
05.05.2021,ADULT SOCIAL CARE,CONTACT PROFESSIONALS,532,LD LTS 18-64,SUPPORTED LIVING,2103258341,1000057263,y,4
05.05.2021,ADULT SOCIAL CARE,LONDON CARE LTD,901.19,LD LTS 18-64,HOMECARE - C&V,2103257837,1000003398,y,4
05.05.2021,ADULT SOCIAL CARE,LONDON CARE LTD,913.75,LD LTS 18-64,HOMECARE - C&V,2103257835,1000003398,y,4
05.05.2021,ADULT SOCIAL CARE,SUPREME CARE SERVICES LTD,635.7,LD LTS 65+,HOMECARE - C&V,2103257788,1000059416,y,4
05.05.2021,ADULT SOCIAL CARE,LONDON CARE LTD,"6,758.70",LD LTS 65+,HOMECARE - C&V,2103257903,1000003398,y,4
05.05.2021,ADULT SOCIAL CARE,LONDON CARE LTD,811.84,MEM LTS 18-64,HOMECARE - C&V,2103257961,1000003398,y,4
05.05.2021,ADULT SOCIAL CARE,LONDON CARE LTD,257.97,MEM LTS 65+,HOMECARE - C&V,2103258092,1000003398,y,4
05.05.2021,ADULT SOCIAL CARE,LONDON CARE LTD,555.43,MEM LTS 65+,HOMECARE - C&V,2103258007,1000003398,y,4
05.05.2021,ADULT SOCIAL CARE,SUPREME CARE SERVICES LTD,618.05,MEM LTS 65+,HOMECARE - C&V,2103257805,1000059416,y,4
05.05.2021,ADULT SOCIAL CARE,LONDON CARE LTD,635.33,MEM LTS 65+,HOMECARE - C&V,2103258049,1000003398,y,4
05.05.2021,ADULT SOCIAL CARE,LONDON CARE LTD,715.64,MEM LTS 65+,HOMECARE - C&V,2103258135,1000003398,y,4
05.05.2021,ADULT SOCIAL CARE,LONDON CARE LTD,980.15,MEM LTS 65+,HOMECARE - C&V,2103258086,1000003398,y,4
05.05.2021,ADULT SOCIAL CARE,LONDON CARE LTD,"1,082.70",MEM LTS 65+,HOMECARE - C&V,2103257911,1000003398,y,4
05.05.2021,ADULT SOCIAL CARE,LONDON CARE LTD,"1,408.65",MEM LTS 65+,HOMECARE - C&V,2103257852,1000003398,y,4
05.05.2021,ADULT SOCIAL CARE,LONDON CARE LTD,"1,481.31",MEM LTS 65+,HOMECARE - C&V,2103257884,1000003398,y,4
05.05.2021,ADULT SOCIAL CARE,LONDON CARE LTD,"2,737.00",MEM LTS 65+,HOMECARE - C&V,2103257992,1000003398,y,4
05.05.2021,ADULT SOCIAL CARE,LONDON CARE LTD,267.75,MH LTS 18-64,HOMECARE - C&V,2103257898,1000003398,y,4
05.05.2021,ADULT SOCIAL CARE,SUPREME CARE SERVICES LTD,282.53,MH LTS 18-64,HOMECARE - C&V,2103257824,1000059416,y,4
05.05.2021,ADULT SOCIAL CARE,LONDON CARE LTD,289.64,MH LTS 18-64,HOMECARE - C&V,2103258217,1000003398,y,4
05.05.2021,ADULT SOCIAL CARE,LONDON CARE LTD,375.96,MH LTS 18-64,HOMECARE - C&V,2103258073,1000003398,y,4
05.05.2021,ADULT SOCIAL CARE,LONDON CARE LTD,433.92,MH LTS 18-64,HOMECARE - C&V,2103258016,1000003398,y,4
05.05.2021,ADULT SOCIAL CARE,LONDON CARE LTD,480.3,MH LTS 18-64,HOMECARE - C&V,2103257881,1000003398,y,4
05.05.2021,ADULT SOCIAL CARE,LONDON CARE LTD,511.75,MH LTS 18-64,HOMECARE - C&V,2103258161,1000003398,y,4
05.05.2021,ADULT SOCIAL CARE,LONDON CARE LTD,595,MH LTS 18-64,HOMECARE - C&V,2103257928,1000003398,y,4
05.05.2021,ADULT SOCIAL CARE,LONDON CARE LTD,853.36,MH LTS 18-64,HOMECARE - C&V,2103257853,1000003398,y,4
05.05.2021,ADULT SOCIAL CARE,LONDON CARE LTD,854.25,MH LTS 18-64,HOMECARE - C&V,2103257867,1000003398,y,4
05.05.2021,ADULT SOCIAL CARE,LONDON CARE LTD,"1,527.38",MH LTS 18-64,HOMECARE - C&V,2103258188,1000003398,y,4
05.05.2021,ADULT SOCIAL CARE,LONDON CARE LTD,"1,609.93",MH LTS 18-64,HOMECARE - C&V,2103257938,1000003398,y,4
05.05.2021,ADULT SOCIAL CARE,LONDON CARE LTD,254.42,MH LTS 65+,HOMECARE - C&V,2103258068,1000003398,y,4
05.05.2021,ADULT SOCIAL CARE,LONDON CARE LTD,280.7,MH LTS 65+,HOMECARE - C&V,2103257859,1000003398,y,4
05.05.2021,ADULT SOCIAL CARE,LONDON CARE LTD,285.17,MH LTS 65+,HOMECARE - C&V,2103258177,1000003398,y,4
05.05.2021,ADULT SOCIAL CARE,LONDON CARE LTD,452.58,MH LTS 65+,HOMECARE - C&V,2103258194,1000003398,y,4
05.05.2021,ADULT SOCIAL CARE,LONDON CARE LTD,616.04,MH LTS 65+,HOMECARE - C&V,2103257952,1000003398,y,4
05.05.2021,ADULT SOCIAL CARE,LONDON CARE LTD,673.44,MH LTS 65+,HOMECARE - C&V,2103258128,1000003398,y,4
05.05.2021,ADULT SOCIAL CARE,SUPREME CARE SERVICES LTD,688.69,MH LTS 65+,HOMECARE - C&V,2103257809,1000059416,y,4
05.05.2021,ADULT SOCIAL CARE,LONDON CARE LTD,719.97,MH LTS 65+,HOMECARE - C&V,2103258057,1000003398,y,4
05.05.2021,ADULT SOCIAL CARE,LONDON CARE LTD,"1,050.46",MH LTS 65+,HOMECARE - C&V,2103258096,1000003398,y,4
05.05.2021,ADULT SOCIAL CARE,SUPREME CARE SERVICES LTD,"1,130.13",MH LTS 65+,HOMECARE - C&V,2103257792,1000059416,y,4
05.05.2021,ADULT SOCIAL CARE,LONDON CARE LTD,"2,464.99",MH LTS 65+,HOMECARE - C&V,2103258011,1000003398,y,4
05.05.2021,ADULT SOCIAL CARE,LONDON CARE LTD,271.4,PHY LTS 18-64,HOMECARE - C&V,2103258021,1000003398,y,4
05.05.2021,ADULT SOCIAL CARE,LONDON CARE LTD,284.61,PHY LTS 18-64,HOMECARE - C&V,2103258223,1000003398,y,4
05.05.2021,ADULT SOCIAL CARE,LONDON CARE LTD,306,PHY LTS 18-64,HOMECARE - C&V,2103257895,1000003398,y,4
05.05.2021,ADULT SOCIAL CARE,LONDON CARE LTD,323.95,PHY LTS 18-64,HOMECARE - C&V,2103257874,1000003398,y,4
05.05.2021,ADULT SOCIAL CARE,LONDON CARE LTD,338.64,PHY LTS 18-64,HOMECARE - C&V,2103258129,1000003398,y,4
05.05.2021,ADULT SOCIAL CARE,LONDON CARE LTD,346.85,PHY LTS 18-64,HOMECARE - C&V,2103257906,1000003398,y,4
05.05.2021,ADULT SOCIAL CARE,LONDON CARE LTD,348.7,PHY LTS 18-64,HOMECARE - C&V,2103258208,1000003398,y,4
05.05.2021,ADULT SOCIAL CARE,LONDON CARE LTD,367.01,PHY LTS 18-64,HOMECARE - C&V,2103258202,1000003398,y,4
05.05.2021,ADULT SOCIAL CARE,SUPREME CARE SERVICES LTD,370.82,PHY LTS 18-64,HOMECARE - C&V,2103257831,1000059416,y,4
05.05.2021,ADULT SOCIAL CARE,LONDON CARE LTD,376.5,PHY LTS 18-64,HOMECARE - C&V,2103257915,1000003398,y,4
05.05.2021,ADULT SOCIAL CARE,LONDON CARE LTD,380.44,PHY LTS 18-64,HOMECARE - C&V,2103258099,1000003398,y,4
05.05.2021,ADULT SOCIAL CARE,LONDON CARE LTD,380.44,PHY LTS 18-64,HOMECARE - C&V,2103258119,1000003398,y,4
05.05.2021,ADULT SOCIAL CARE,LONDON CARE LTD,385.05,PHY LTS 18-64,HOMECARE - C&V,2103258240,1000003398,y,4
05.05.2021,ADULT SOCIAL CARE,LONDON CARE LTD,394.38,PHY LTS 18-64,HOMECARE - C&V,2103258066,1000003398,y,4
05.05.2021,ADULT SOCIAL CARE,LONDON CARE LTD,411.28,PHY LTS 18-64,HOMECARE - C&V,2103257866,1000003398,y,4
05.05.2021,ADULT SOCIAL CARE,LONDON CARE LTD,433.5,PHY LTS 18-64,HOMECARE - C&V,2103257869,1000003398,y,4
05.05.2021,ADULT SOCIAL CARE,LONDON CARE LTD,437.08,PHY LTS 18-64,HOMECARE - C&V,2103258002,1000003398,y,4
05.05.2021,ADULT SOCIAL CARE,SUPREME CARE SERVICES LTD,441.46,PHY LTS 18-64,HOMECARE - C&V,2103257799,1000059416,y,4
05.05.2021,ADULT SOCIAL CARE,LONDON CARE LTD,460.92,PHY LTS 18-64,HOMECARE - C&V,2103257985,1000003398,y,4
05.05.2021,ADULT SOCIAL CARE,LONDON CARE LTD,462.33,PHY LTS 18-64,HOMECARE - C&V,2103258192,1000003398,y,4
05.05.2021,ADULT SOCIAL CARE,LONDON CARE LTD,474.6,PHY LTS 18-64,HOMECARE - C&V,2103257917,1000003398,y,4
05.05.2021,ADULT SOCIAL CARE,LONDON CARE LTD,511.49,PHY LTS 18-64,HOMECARE - C&V,2103258200,1000003398,y,4
05.05.2021,ADULT SOCIAL CARE,LONDON CARE LTD,533.38,PHY LTS 18-64,HOMECARE - C&V,2103258173,1000003398,y,4
05.05.2021,ADULT SOCIAL CARE,LONDON CARE LTD,538.23,PHY LTS 18-64,HOMECARE - C&V,2103258020,1000003398,y,4
05.05.2021,ADULT SOCIAL CARE,LONDON CARE LTD,538.68,PHY LTS 18-64,HOMECARE - C&V,2103258143,1000003398,y,4
05.05.2021,ADULT SOCIAL CARE,LONDON CARE LTD,539.75,PHY LTS 18-64,HOMECARE - C&V,2103257907,1000003398,y,4
05.05.2021,ADULT SOCIAL CARE,LONDON CARE LTD,542.36,PHY LTS 18-64,HOMECARE - C&V,2103257864,1000003398,y,4
05.05.2021,ADULT SOCIAL CARE,LONDON CARE LTD,551.59,PHY LTS 18-64,HOMECARE - C&V,2103257988,1000003398,y,4
05.05.2021,ADULT SOCIAL CARE,LONDON CARE LTD,553.87,PHY LTS 18-64,HOMECARE - C&V,2103258004,1000003398,y,4
05.05.2021,ADULT SOCIAL CARE,LONDON CARE LTD,561.76,PHY LTS 18-64,HOMECARE - C&V,2103257891,1000003398,y,4
05.05.2021,ADULT SOCIAL CARE,LONDON CARE LTD,585.25,PHY LTS 18-64,HOMECARE - C&V,2103258189,1000003398,y,4
05.05.2021,ADULT SOCIAL CARE,LONDON CARE LTD,609.47,PHY LTS 18-64,HOMECARE - C&V,2103258039,1000003398,y,4
05.05.2021,ADULT SOCIAL CARE,LONDON CARE LTD,615.52,PHY LTS 18-64,HOMECARE - C&V,2103258193,1000003398,y,4
05.05.2021,ADULT SOCIAL CARE,LONDON CARE LTD,642.95,PHY LTS 18-64,HOMECARE - C&V,2103258109,1000003398,y,4
05.05.2021,ADULT SOCIAL CARE,LONDON CARE LTD,651.5,PHY LTS 18-64,HOMECARE - C&V,2103258127,1000003398,y,4
05.05.2021,ADULT SOCIAL CARE,LONDON CARE LTD,656.53,PHY LTS 18-64,HOMECARE - C&V,2103258187,1000003398,y,4
05.05.2021,ADULT SOCIAL CARE,LONDON CARE LTD,657.52,PHY LTS 18-64,HOMECARE - C&V,2103258149,1000003398,y,4
05.05.2021,ADULT SOCIAL CARE,LONDON CARE LTD,670.34,PHY LTS 18-64,HOMECARE - C&V,2103257950,1000003398,y,4
05.05.2021,ADULT SOCIAL CARE,LONDON CARE LTD,683.6,PHY LTS 18-64,HOMECARE - C&V,2103257919,1000003398,y,4
05.05.2021,ADULT SOCIAL CARE,LONDON CARE LTD,684.25,PHY LTS 18-64,HOMECARE - SPOT,2103257834,1000003398,y,4
05.05.2021,ADULT SOCIAL CARE,SUPREME CARE SERVICES LTD,688.69,PHY LTS 18-64,HOMECARE - C&V,2103257821,1000059416,y,4
05.05.2021,ADULT SOCIAL CARE,LONDON CARE LTD,701.27,PHY LTS 18-64,HOMECARE - C&V,2103257856,1000003398,y,4
05.05.2021,ADULT SOCIAL CARE,LONDON CARE LTD,722.5,PHY LTS 18-64,HOMECARE - C&V,2103257849,1000003398,y,4
05.05.2021,ADULT SOCIAL CARE,LONDON CARE LTD,724.58,PHY LTS 18-64,HOMECARE - C&V,2103258146,1000003398,y,4
05.05.2021,ADULT SOCIAL CARE,LONDON CARE LTD,726.74,PHY LTS 18-64,HOMECARE - C&V,2103257890,1000003398,y,4
05.05.2021,ADULT SOCIAL CARE,LONDON CARE LTD,728.5,PHY LTS 18-64,HOMECARE - C&V,2103258139,1000003398,y,4
05.05.2021,ADULT SOCIAL CARE,LONDON CARE LTD,732.58,PHY LTS 18-64,HOMECARE - C&V,2103257841,1000003398,y,4
05.05.2021,ADULT SOCIAL CARE,LONDON CARE LTD,741.06,PHY LTS 18-64,HOMECARE - C&V,2103257865,1000003398,y,4
05.05.2021,ADULT SOCIAL CARE,LONDON CARE LTD,749.62,PHY LTS 18-64,HOMECARE - C&V,2103257896,1000003398,y,4
05.05.2021,ADULT SOCIAL CARE,LONDON CARE LTD,777.87,PHY LTS 18-64,HOMECARE - C&V,2103258209,1000003398,y,4
05.05.2021,ADULT SOCIAL CARE,LONDON CARE LTD,794.75,PHY LTS 18-64,HOMECARE - C&V,2103257976,1000003398,y,4
05.05.2021,ADULT SOCIAL CARE,LONDON CARE LTD,838.23,PHY LTS 18-64,HOMECARE - C&V,2103258046,1000003398,y,4
05.05.2021,ADULT SOCIAL CARE,LONDON CARE LTD,839.63,PHY LTS 18-64,HOMECARE - C&V,2103257925,1000003398,y,4
05.05.2021,ADULT SOCIAL CARE,SUPREME CARE SERVICES LTD,900.58,PHY LTS 18-64,HOMECARE - C&V,2103257818,1000059416,y,4
05.05.2021,ADULT SOCIAL CARE,LONDON CARE LTD,927.65,PHY LTS 18-64,HOMECARE - C&V,2103258056,1000003398,y,4
05.05.2021,ADULT SOCIAL CARE,LONDON CARE LTD,938.97,PHY LTS 18-64,HOMECARE - C&V,2103258148,1000003398,y,4
05.05.2021,ADULT SOCIAL CARE,LONDON CARE LTD,965.68,PHY LTS 18-64,HOMECARE - C&V,2103257918,1000003398,y,4
05.05.2021,ADULT SOCIAL CARE,LONDON CARE LTD,978.9,PHY LTS 18-64,HOMECARE - C&V,2103257860,1000003398,y,4
05.05.2021,ADULT SOCIAL CARE,LONDON CARE LTD,"1,032.75",PHY LTS 18-64,HOMECARE - C&V,2103257940,1000003398,y,4
05.05.2021,ADULT SOCIAL CARE,LONDON CARE LTD,"1,042.91",PHY LTS 18-64,HOMECARE - C&V,2103258230,1000003398,y,4
05.05.2021,ADULT SOCIAL CARE,LONDON CARE LTD,"1,050.58",PHY LTS 18-64,HOMECARE - C&V,2103258165,1000003398,y,4
05.05.2021,ADULT SOCIAL CARE,LONDON CARE LTD,"1,056.60",PHY LTS 18-64,HOMECARE - C&V,2103257960,1000003398,y,4
05.05.2021,ADULT SOCIAL CARE,LONDON CARE LTD,"1,075.25",PHY LTS 18-64,HOMECARE - C&V,2103257993,1000003398,y,4
05.05.2021,ADULT SOCIAL CARE,LONDON CARE LTD,"1,110.17",PHY LTS 18-64,HOMECARE - C&V,2103258206,1000003398,y,4
05.05.2021,ADULT SOCIAL CARE,LONDON CARE LTD,"1,154.50",PHY LTS 18-64,HOMECARE - C&V,2103258130,1000003398,y,4
05.05.2021,ADULT SOCIAL CARE,LONDON CARE LTD,"1,185.84",PHY LTS 18-64,HOMECARE - C&V,2103257858,1000003398,y,4
05.05.2021,ADULT SOCIAL CARE,LONDON CARE LTD,"1,199.90",PHY LTS 18-64,HOMECARE - C&V,2103257861,1000003398,y,4
05.05.2021,ADULT SOCIAL CARE,SUPREME CARE SERVICES LTD,"1,236.09",PHY LTS 18-64,HOMECARE - C&V,2103257817,1000059416,y,4
05.05.2021,ADULT SOCIAL CARE,LONDON CARE LTD,"1,240.14",PHY LTS 18-64,HOMECARE - C&V,2103258210,1000003398,y,4
05.05.2021,ADULT SOCIAL CARE,SUPREME CARE SERVICES LTD,"1,342.02",PHY LTS 18-64,HOMECARE - C&V,2103257797,1000059416,y,4
05.05.2021,ADULT SOCIAL CARE,LONDON CARE LTD,"1,365.54",PHY LTS 18-64,HOMECARE - C&V,2103257845,1000003398,y,4
05.05.2021,ADULT SOCIAL CARE,LONDON CARE LTD,"1,502.93",PHY LTS 18-64,HOMECARE - C&V,2103258022,1000003398,y,4
05.05.2021,ADULT SOCIAL CARE,LONDON CARE LTD,"1,535.22",PHY LTS 18-64,HOMECARE - C&V,2103258215,1000003398,y,4
05.05.2021,ADULT SOCIAL CARE,LONDON CARE LTD,"1,946.50",PHY LTS 18-64,HOMECARE - C&V,2103258014,1000003398,y,4
05.05.2021,ADULT SOCIAL CARE,LONDON CARE LTD,"2,035.75",PHY LTS 18-64,HOMECARE - C&V,2103258085,1000003398,y,4
05.05.2021,ADULT SOCIAL CARE,LONDON CARE LTD,"2,241.80",PHY LTS 18-64,HOMECARE - C&V,2103257897,1000003398,y,4
05.05.2021,ADULT SOCIAL CARE,LONDON CARE LTD,"2,314.04",PHY LTS 18-64,HOMECARE - C&V,2103258060,1000003398,y,4
05.05.2021,ADULT SOCIAL CARE,LONDON CARE LTD,"3,168.06",PHY LTS 18-64,HOMECARE - C&V,2103257968,1000003398,y,4
05.05.2021,ADULT SOCIAL CARE,LONDON CARE LTD,"3,419.36",PHY LTS 18-64,HOMECARE - C&V,2103257935,1000003398,y,4
05.05.2021,ADULT SOCIAL CARE,LONDON CARE LTD,"3,468.00",PHY LTS 18-64,HOMECARE - C&V,2103258005,1000003398,y,4
05.05.2021,ADULT SOCIAL CARE,LONDON CARE LTD,253.57,PHY LTS 65+,HOMECARE - C&V,2103258175,1000003398,y,4
05.05.2021,ADULT SOCIAL CARE,SUPREME CARE SERVICES LTD,264.89,PHY LTS 65+,HOMECARE - C&V,2103257812,1000059416,y,4
05.05.2021,ADULT SOCIAL CARE,LONDON CARE LTD,268.5,PHY LTS 65+,HOMECARE - C&V,2103258072,1000003398,y,4
05.05.2021,ADULT SOCIAL CARE,LONDON CARE LTD,268.97,PHY LTS 65+,HOMECARE - C&V,2103257936,1000003398,y,4
05.05.2021,ADULT SOCIAL CARE,LONDON CARE LTD,271.61,PHY LTS 65+,HOMECARE - C&V,2103258102,1000003398,y,4
05.05.2021,ADULT SOCIAL CARE,LONDON CARE LTD,281.46,PHY LTS 65+,HOMECARE - C&V,2103258079,1000003398,y,4
05.05.2021,ADULT SOCIAL CARE,SUPREME CARE SERVICES LTD,289.91,PHY LTS 65+,HOMECARE - C&V,2103257784,1000059416,y,4
05.05.2021,ADULT SOCIAL CARE,LONDON CARE LTD,298.35,PHY LTS 65+,HOMECARE - C&V,2103258136,1000003398,y,4
05.05.2021,ADULT SOCIAL CARE,LONDON CARE LTD,299.76,PHY LTS 65+,HOMECARE - C&V,2103257846,1000003398,y,4
05.05.2021,ADULT SOCIAL CARE,LONDON CARE LTD,307.95,PHY LTS 65+,HOMECARE - C&V,2103258170,1000003398,y,4
05.05.2021,ADULT SOCIAL CARE,LONDON CARE LTD,328.99,PHY LTS 65+,HOMECARE - C&V,2103258043,1000003398,y,4
05.05.2021,ADULT SOCIAL CARE,LONDON CARE LTD,334.86,PHY LTS 65+,HOMECARE - C&V,2103258132,1000003398,y,4
05.05.2021,ADULT SOCIAL CARE,LONDON CARE LTD,341.22,PHY LTS 65+,HOMECARE - C&V,2103257956,1000003398,y,4
05.05.2021,ADULT SOCIAL CARE,LONDON CARE LTD,345.75,PHY LTS 65+,HOMECARE - C&V,2103257973,1000003398,y,4
05.05.2021,ADULT SOCIAL CARE,LONDON CARE LTD,348.49,PHY LTS 65+,HOMECARE - C&V,2103258220,1000003398,y,4
05.05.2021,ADULT SOCIAL CARE,LONDON CARE LTD,349.12,PHY LTS 65+,HOMECARE - C&V,2103258218,1000003398,y,4
05.05.2021,ADULT SOCIAL CARE,LONDON CARE LTD,352.78,PHY LTS 65+,HOMECARE - C&V,2103258113,1000003398,y,4
05.05.2021,ADULT SOCIAL CARE,LONDON CARE LTD,353.29,PHY LTS 65+,HOMECARE - C&V,2103258110,1000003398,y,4
05.05.2021,ADULT SOCIAL CARE,LONDON CARE LTD,355.05,PHY LTS 65+,HOMECARE - C&V,2103257967,1000003398,y,4
05.05.2021,ADULT SOCIAL CARE,LONDON CARE LTD,357.32,PHY LTS 65+,HOMECARE - C&V,2103258154,1000003398,y,4
05.05.2021,ADULT SOCIAL CARE,LONDON CARE LTD,357.51,PHY LTS 65+,HOMECARE - C&V,2103258121,1000003398,y,4
05.05.2021,ADULT SOCIAL CARE,LONDON CARE LTD,364.27,PHY LTS 65+,HOMECARE - C&V,2103258032,1000003398,y,4
05.05.2021,ADULT SOCIAL CARE,SUPREME CARE SERVICES LTD,370.82,PHY LTS 65+,HOMECARE - C&V,2103257819,1000059416,y,4
05.05.2021,ADULT SOCIAL CARE,LONDON CARE LTD,371.62,PHY LTS 65+,HOMECARE - C&V,2103258142,1000003398,y,4
05.05.2021,ADULT SOCIAL CARE,LONDON CARE LTD,375.37,PHY LTS 65+,HOMECARE - C&V,2103258098,1000003398,y,4
05.05.2021,ADULT SOCIAL CARE,LONDON CARE LTD,375.96,PHY LTS 65+,HOMECARE - C&V,2103258115,1000003398,y,4
05.05.2021,ADULT SOCIAL CARE,LONDON CARE LTD,376.02,PHY LTS 65+,HOMECARE - C&V,2103258054,1000003398,y,4
05.05.2021,ADULT SOCIAL CARE,LONDON CARE LTD,378.25,PHY LTS 65+,HOMECARE - C&V,2103258069,1000003398,y,4
05.05.2021,ADULT SOCIAL CARE,LONDON CARE LTD,380.44,PHY LTS 65+,HOMECARE - C&V,2103257851,1000003398,y,4
05.05.2021,ADULT SOCIAL CARE,LONDON CARE LTD,380.44,PHY LTS 65+,HOMECARE - C&V,2103258018,1000003398,y,4
05.05.2021,ADULT SOCIAL CARE,SUPREME CARE SERVICES LTD,388.49,PHY LTS 65+,HOMECARE - C&V,2103257823,1000059416,y,4
05.05.2021,ADULT SOCIAL CARE,SUPREME CARE SERVICES LTD,388.49,PHY LTS 65+,HOMECARE - C&V,2103257829,1000059416,y,4
05.05.2021,ADULT SOCIAL CARE,LONDON CARE LTD,398.88,PHY LTS 65+,HOMECARE - C&V,2103258089,1000003398,y,4
05.05.2021,ADULT SOCIAL CARE,LONDON CARE LTD,431.77,PHY LTS 65+,HOMECARE - C&V,2103258147,1000003398,y,4
05.05.2021,ADULT SOCIAL CARE,LONDON CARE LTD,431.91,PHY LTS 65+,HOMECARE - C&V,2103257899,1000003398,y,4
05.05.2021,ADULT SOCIAL CARE,LONDON CARE LTD,434.46,PHY LTS 65+,HOMECARE - C&V,2103258111,1000003398,y,4
05.05.2021,ADULT SOCIAL CARE,LONDON CARE LTD,435.29,PHY LTS 65+,HOMECARE - C&V,2103258171,1000003398,y,4
05.05.2021,ADULT SOCIAL CARE,LONDON CARE LTD,437.86,PHY LTS 65+,HOMECARE - C&V,2103258151,1000003398,y,4
05.05.2021,ADULT SOCIAL CARE,LONDON CARE LTD,448.51,PHY LTS 65+,HOMECARE - C&V,2103258156,1000003398,y,4
05.05.2021,ADULT SOCIAL CARE,LONDON CARE LTD,450.96,PHY LTS 65+,HOMECARE - C&V,2103258168,1000003398,y,4
05.05.2021,ADULT SOCIAL CARE,LONDON CARE LTD,456.39,PHY LTS 65+,HOMECARE - C&V,2103258235,1000003398,y,4
05.05.2021,ADULT SOCIAL CARE,LONDON CARE LTD,479.62,PHY LTS 65+,HOMECARE - C&V,2103258116,1000003398,y,4
05.05.2021,ADULT SOCIAL CARE,LONDON CARE LTD,488.75,PHY LTS 65+,HOMECARE - C&V,2103258242,1000003398,y,4
05.05.2021,ADULT SOCIAL CARE,SUPREME CARE SERVICES LTD,494.43,PHY LTS 65+,HOMECARE - C&V,2103257802,1000059416,y,4
05.05.2021,ADULT SOCIAL CARE,SUPREME CARE SERVICES LTD,494.43,PHY LTS 65+,HOMECARE - C&V,2103257810,1000059416,y,4
05.05.2021,ADULT SOCIAL CARE,SUPREME CARE SERVICES LTD,494.43,PHY LTS 65+,HOMECARE - C&V,2103257833,1000059416,y,4
05.05.2021,ADULT SOCIAL CARE,LONDON CARE LTD,496.93,PHY LTS 65+,HOMECARE - C&V,2103257926,1000003398,y,4
05.05.2021,ADULT SOCIAL CARE,LONDON CARE LTD,522.75,PHY LTS 65+,HOMECARE - C&V,2103257964,1000003398,y,4
05.05.2021,ADULT SOCIAL CARE,LONDON CARE LTD,526.2,PHY LTS 65+,HOMECARE - C&V,2103257868,1000003398,y,4
05.05.2021,ADULT SOCIAL CARE,LONDON CARE LTD,526.35,PHY LTS 65+,HOMECARE - C&V,2103258211,1000003398,y,4
05.05.2021,ADULT SOCIAL CARE,LONDON CARE LTD,530.76,PHY LTS 65+,HOMECARE - C&V,2103258182,1000003398,y,4
05.05.2021,ADULT SOCIAL CARE,LONDON CARE LTD,531.2,PHY LTS 65+,HOMECARE - C&V,2103258183,1000003398,y,4
05.05.2021,ADULT SOCIAL CARE,LONDON CARE LTD,549.44,PHY LTS 65+,HOMECARE - C&V,2103257922,1000003398,y,4
05.05.2021,ADULT SOCIAL CARE,LONDON CARE LTD,557.96,PHY LTS 65+,HOMECARE - SPOT,2103257892,1000003398,y,4
05.05.2021,ADULT SOCIAL CARE,LONDON CARE LTD,569.41,PHY LTS 65+,HOMECARE - C&V,2103258163,1000003398,y,4
05.05.2021,ADULT SOCIAL CARE,LONDON CARE LTD,573.83,PHY LTS 65+,HOMECARE - C&V,2103258203,1000003398,y,4
05.05.2021,ADULT SOCIAL CARE,LONDON CARE LTD,574.61,PHY LTS 65+,HOMECARE - C&V,2103258009,1000003398,y,4
05.05.2021,ADULT SOCIAL CARE,LONDON CARE LTD,576.57,PHY LTS 65+,HOMECARE - C&V,2103257954,1000003398,y,4
05.05.2021,ADULT SOCIAL CARE,LONDON CARE LTD,582.25,PHY LTS 65+,HOMECARE - C&V,2103257957,1000003398,y,4
05.05.2021,ADULT SOCIAL CARE,LONDON CARE LTD,582.25,PHY LTS 65+,HOMECARE - C&V,2103258037,1000003398,y,4
05.05.2021,ADULT SOCIAL CARE,SUPREME CARE SERVICES LTD,582.73,PHY LTS 65+,HOMECARE - C&V,2103257787,1000059416,y,4
05.05.2021,ADULT SOCIAL CARE,LONDON CARE LTD,586.5,PHY LTS 65+,HOMECARE - C&V,2103257863,1000003398,y,4
05.05.2021,ADULT SOCIAL CARE,LONDON CARE LTD,590.75,PHY LTS 65+,HOMECARE - C&V,2103257916,1000003398,y,4
05.05.2021,ADULT SOCIAL CARE,LONDON CARE LTD,595,PHY LTS 65+,HOMECARE - C&V,2103257962,1000003398,y,4
05.05.2021,ADULT SOCIAL CARE,LONDON CARE LTD,598.11,PHY LTS 65+,HOMECARE - C&V,2103258138,1000003398,y,4
05.05.2021,ADULT SOCIAL CARE,SUPREME CARE SERVICES LTD,600.39,PHY LTS 65+,HOMECARE - C&V,2103257786,1000059416,y,4
05.05.2021,ADULT SOCIAL CARE,LONDON CARE LTD,607.73,PHY LTS 65+,HOMECARE - C&V,2103257838,1000003398,y,4
05.05.2021,ADULT SOCIAL CARE,LONDON CARE LTD,610.02,PHY LTS 65+,HOMECARE - C&V,2103258140,1000003398,y,4
05.05.2021,ADULT SOCIAL CARE,LONDON CARE LTD,614.21,PHY LTS 65+,HOMECARE - C&V,2103258028,1000003398,y,4
05.05.2021,ADULT SOCIAL CARE,LONDON CARE LTD,616.25,PHY LTS 65+,HOMECARE - C&V,2103257974,1000003398,y,4
05.05.2021,ADULT SOCIAL CARE,SUPREME CARE SERVICES LTD,618.05,PHY LTS 65+,HOMECARE - C&V,2103257783,1000059416,y,4
05.05.2021,ADULT SOCIAL CARE,SUPREME CARE SERVICES LTD,618.05,PHY LTS 65+,HOMECARE - C&V,2103257789,1000059416,y,4
05.05.2021,ADULT SOCIAL CARE,LONDON CARE LTD,620.58,PHY LTS 65+,HOMECARE - C&V,2103258158,1000003398,y,4
05.05.2021,ADULT SOCIAL CARE,LONDON CARE LTD,622.96,PHY LTS 65+,HOMECARE - C&V,2103258024,1000003398,y,4
05.05.2021,ADULT SOCIAL CARE,LONDON CARE LTD,624.31,PHY LTS 65+,HOMECARE - C&V,2103258124,1000003398,y,4
05.05.2021,ADULT SOCIAL CARE,LONDON CARE LTD,627.55,PHY LTS 65+,HOMECARE - C&V,2103258080,1000003398,y,4
05.05.2021,ADULT SOCIAL CARE,LONDON CARE LTD,629,PHY LTS 65+,HOMECARE - C&V,2103257842,1000003398,y,4
05.05.2021,ADULT SOCIAL CARE,LONDON CARE LTD,633.18,PHY LTS 65+,HOMECARE - C&V,2103258204,1000003398,y,4
05.05.2021,ADULT SOCIAL CARE,LONDON CARE LTD,633.86,PHY LTS 65+,HOMECARE - C&V,2103258122,1000003398,y,4
05.05.2021,ADULT SOCIAL CARE,LONDON CARE LTD,638.37,PHY LTS 65+,HOMECARE - C&V,2103258087,1000003398,y,4
05.05.2021,ADULT SOCIAL CARE,LONDON CARE LTD,642.96,PHY LTS 65+,HOMECARE - C&V,2103258120,1000003398,y,4
05.05.2021,ADULT SOCIAL CARE,LONDON CARE LTD,645.4,PHY LTS 65+,HOMECARE - C&V,2103257862,1000003398,y,4
05.05.2021,ADULT SOCIAL CARE,LONDON CARE LTD,647.53,PHY LTS 65+,HOMECARE - C&V,2103258152,1000003398,y,4
05.05.2021,ADULT SOCIAL CARE,LONDON CARE LTD,649.23,PHY LTS 65+,HOMECARE - C&V,2103257980,1000003398,y,4
05.05.2021,ADULT SOCIAL CARE,LONDON CARE LTD,685.06,PHY LTS 65+,HOMECARE - C&V,2103258040,1000003398,y,4
05.05.2021,ADULT SOCIAL CARE,SUPREME CARE SERVICES LTD,688.69,PHY LTS 65+,HOMECARE - C&V,2103257794,1000059416,y,4
05.05.2021,ADULT SOCIAL CARE,LONDON CARE LTD,691.16,PHY LTS 65+,HOMECARE - C&V,2103257953,1000003398,y,4
05.05.2021,ADULT SOCIAL CARE,LONDON CARE LTD,707.28,PHY LTS 65+,HOMECARE - C&V,2103258221,1000003398,y,4
05.05.2021,ADULT SOCIAL CARE,LONDON CARE LTD,710.44,PHY LTS 65+,HOMECARE - C&V,2103258053,1000003398,y,4
05.05.2021,ADULT SOCIAL CARE,LONDON CARE LTD,714.81,PHY LTS 65+,HOMECARE - C&V,2103258198,1000003398,y,4
05.05.2021,ADULT SOCIAL CARE,LONDON CARE LTD,720.25,PHY LTS 65+,HOMECARE - C&V,2103257886,1000003398,y,4
05.05.2021,ADULT SOCIAL CARE,LONDON CARE LTD,728.18,PHY LTS 65+,HOMECARE - C&V,2103257972,1000003398,y,4
05.05.2021,ADULT SOCIAL CARE,LONDON CARE LTD,728.39,PHY LTS 65+,HOMECARE - C&V,2103258015,1000003398,y,4
05.05.2021,ADULT SOCIAL CARE,LONDON CARE LTD,731,PHY LTS 65+,HOMECARE - C&V,2103258019,1000003398,y,4
05.05.2021,ADULT SOCIAL CARE,LONDON CARE LTD,731,PHY LTS 65+,HOMECARE - C&V,2103258083,1000003398,y,4
05.05.2021,ADULT SOCIAL CARE,LONDON CARE LTD,738.05,PHY LTS 65+,HOMECARE - C&V,2103258010,1000003398,y,4
05.05.2021,ADULT SOCIAL CARE,LONDON CARE LTD,749.4,PHY LTS 65+,HOMECARE - C&V,2103257970,1000003398,y,4
05.05.2021,ADULT SOCIAL CARE,LONDON CARE LTD,753.52,PHY LTS 65+,HOMECARE - C&V,2103257933,1000003398,y,4
05.05.2021,ADULT SOCIAL CARE,LONDON CARE LTD,756.24,PHY LTS 65+,HOMECARE - C&V,2103258126,1000003398,y,4
05.05.2021,ADULT SOCIAL CARE,LONDON CARE LTD,783.87,PHY LTS 65+,HOMECARE - C&V,2103258097,1000003398,y,4
05.05.2021,ADULT SOCIAL CARE,LONDON CARE LTD,788.78,PHY LTS 65+,HOMECARE - C&V,2103257948,1000003398,y,4
05.05.2021,ADULT SOCIAL CARE,SUPREME CARE SERVICES LTD,794.62,PHY LTS 65+,HOMECARE - C&V,2103257806,1000059416,y,4
05.05.2021,ADULT SOCIAL CARE,LONDON CARE LTD,814.98,PHY LTS 65+,HOMECARE - C&V,2103258029,1000003398,y,4
05.05.2021,ADULT SOCIAL CARE,LONDON CARE LTD,815.52,PHY LTS 65+,HOMECARE - C&V,2103258065,1000003398,y,4
05.05.2021,ADULT SOCIAL CARE,LONDON CARE LTD,836.44,PHY LTS 65+,HOMECARE - C&V,2103258197,1000003398,y,4
05.05.2021,ADULT SOCIAL CARE,LONDON CARE LTD,841.5,PHY LTS 65+,HOMECARE - C&V,2103258052,1000003398,y,4
05.05.2021,ADULT SOCIAL CARE,LONDON CARE LTD,843.15,PHY LTS 65+,HOMECARE - C&V,2103258141,1000003398,y,4
05.05.2021,ADULT SOCIAL CARE,LONDON CARE LTD,846.96,PHY LTS 65+,HOMECARE - C&V,2103258164,1000003398,y,4
05.05.2021,ADULT SOCIAL CARE,LONDON CARE LTD,852.89,PHY LTS 65+,HOMECARE - C&V,2103257885,1000003398,y,4
05.05.2021,ADULT SOCIAL CARE,SUPREME CARE SERVICES LTD,865.25,PHY LTS 65+,HOMECARE - C&V,2103257807,1000059416,y,4
05.05.2021,ADULT SOCIAL CARE,SUPREME CARE SERVICES LTD,865.25,PHY LTS 65+,HOMECARE - C&V,2103257822,1000059416,y,4
05.05.2021,ADULT SOCIAL CARE,LONDON CARE LTD,869.74,PHY LTS 65+,HOMECARE - C&V,2103258214,1000003398,y,4
05.05.2021,ADULT SOCIAL CARE,LONDON CARE LTD,873.87,PHY LTS 65+,HOMECARE - C&V,2103258047,1000003398,y,4
05.05.2021,ADULT SOCIAL CARE,SUPREME CARE SERVICES LTD,882.92,PHY LTS 65+,HOMECARE - C&V,2103257827,1000059416,y,4
05.05.2021,ADULT SOCIAL CARE,LONDON CARE LTD,886.07,PHY LTS 65+,HOMECARE - C&V,2103257850,1000003398,y,4
05.05.2021,ADULT SOCIAL CARE,LONDON CARE LTD,887.73,PHY LTS 65+,HOMECARE - C&V,2103258199,1000003398,y,4
05.05.2021,ADULT SOCIAL CARE,LONDON CARE LTD,895.32,PHY LTS 65+,HOMECARE - C&V,2103257932,1000003398,y,4
05.05.2021,ADULT SOCIAL CARE,LONDON CARE LTD,895.62,PHY LTS 65+,HOMECARE - C&V,2103257934,1000003398,y,4
05.05.2021,ADULT SOCIAL CARE,LONDON CARE LTD,896.93,PHY LTS 65+,HOMECARE - C&V,2103258091,1000003398,y,4
05.05.2021,ADULT SOCIAL CARE,LONDON CARE LTD,899.4,PHY LTS 65+,HOMECARE - C&V,2103257969,1000003398,y,4
05.05.2021,ADULT SOCIAL CARE,LONDON CARE LTD,901.23,PHY LTS 65+,HOMECARE - C&V,2103258169,1000003398,y,4
05.05.2021,ADULT SOCIAL CARE,LONDON CARE LTD,901.78,PHY LTS 65+,HOMECARE - C&V,2103258027,1000003398,y,4
05.05.2021,ADULT SOCIAL CARE,LONDON CARE LTD,909.9,PHY LTS 65+,HOMECARE - C&V,2103257997,1000003398,y,4
05.05.2021,ADULT SOCIAL CARE,LONDON CARE LTD,910.8,PHY LTS 65+,HOMECARE - C&V,2103258063,1000003398,y,4
05.05.2021,ADULT SOCIAL CARE,LONDON CARE LTD,918.78,PHY LTS 65+,HOMECARE - C&V,2103257872,1000003398,y,4
05.05.2021,ADULT SOCIAL CARE,LONDON CARE LTD,928.51,PHY LTS 65+,HOMECARE - C&V,2103258001,1000003398,y,4
05.05.2021,ADULT SOCIAL CARE,LONDON CARE LTD,935,PHY LTS 65+,HOMECARE - C&V,2103257876,1000003398,y,4
05.05.2021,ADULT SOCIAL CARE,SUPREME CARE SERVICES LTD,935.89,PHY LTS 65+,HOMECARE - C&V,2103257814,1000059416,y,4
05.05.2021,ADULT SOCIAL CARE,LONDON CARE LTD,942,PHY LTS 65+,HOMECARE - C&V,2103258100,1000003398,y,4
05.05.2021,ADULT SOCIAL CARE,LONDON CARE LTD,955.48,PHY LTS 65+,HOMECARE - C&V,2103257930,1000003398,y,4
05.05.2021,ADULT SOCIAL CARE,LONDON CARE LTD,961.28,PHY LTS 65+,HOMECARE - C&V,2103257904,1000003398,y,4
05.05.2021,ADULT SOCIAL CARE,LONDON CARE LTD,965.44,PHY LTS 65+,HOMECARE - C&V,2103258212,1000003398,y,4
05.05.2021,ADULT SOCIAL CARE,LONDON CARE LTD,965.68,PHY LTS 65+,HOMECARE - C&V,2103258084,1000003398,y,4
05.05.2021,ADULT SOCIAL CARE,SUPREME CARE SERVICES LTD,988.86,PHY LTS 65+,HOMECARE - C&V,2103257790,1000059416,y,4
05.05.2021,ADULT SOCIAL CARE,LONDON CARE LTD,993.81,PHY LTS 65+,HOMECARE - C&V,2103257910,1000003398,y,4
05.05.2021,ADULT SOCIAL CARE,LONDON CARE LTD,996.13,PHY LTS 65+,HOMECARE - C&V,2103258071,1000003398,y,4
05.05.2021,ADULT SOCIAL CARE,LONDON CARE LTD,999.74,PHY LTS 65+,HOMECARE - C&V,2103258041,1000003398,y,4
05.05.2021,ADULT SOCIAL CARE,SUPREME CARE SERVICES LTD,"1,006.52",PHY LTS 65+,HOMECARE - C&V,2103257798,1000059416,y,4
05.05.2021,ADULT SOCIAL CARE,LONDON CARE LTD,"1,009.61",PHY LTS 65+,HOMECARE - C&V,2103258107,1000003398,y,4
05.05.2021,ADULT SOCIAL CARE,LONDON CARE LTD,"1,011.50",PHY LTS 65+,HOMECARE - C&V,2103257982,1000003398,y,4
05.05.2021,ADULT SOCIAL CARE,LONDON CARE LTD,"1,014.28",PHY LTS 65+,HOMECARE - C&V,2103257840,1000003398,y,4
05.05.2021,ADULT SOCIAL CARE,LONDON CARE LTD,"1,014.45",PHY LTS 65+,HOMECARE - C&V,2103258178,1000003398,y,4
05.05.2021,ADULT SOCIAL CARE,SUPREME CARE SERVICES LTD,"1,024.19",PHY LTS 65+,HOMECARE - C&V,2103257808,1000059416,y,4
05.05.2021,ADULT SOCIAL CARE,LONDON CARE LTD,"1,041.42",PHY LTS 65+,HOMECARE - C&V,2103257839,1000003398,y,4
05.05.2021,ADULT SOCIAL CARE,LONDON CARE LTD,"1,045.11",PHY LTS 65+,HOMECARE - C&V,2103258106,1000003398,y,4
05.05.2021,ADULT SOCIAL CARE,LONDON CARE LTD,"1,045.90",PHY LTS 65+,HOMECARE - C&V,2103258114,1000003398,y,4
05.05.2021,ADULT SOCIAL CARE,LONDON CARE LTD,"1,074.19",PHY LTS 65+,HOMECARE - C&V,2103257959,1000003398,y,4
05.05.2021,ADULT SOCIAL CARE,LONDON CARE LTD,"1,075.25",PHY LTS 65+,HOMECARE - C&V,2103257939,1000003398,y,4
05.05.2021,ADULT SOCIAL CARE,LONDON CARE LTD,"1,077.82",PHY LTS 65+,HOMECARE - C&V,2103257844,1000003398,y,4
05.05.2021,ADULT SOCIAL CARE,LONDON CARE LTD,"1,095.46",PHY LTS 65+,HOMECARE - C&V,2103257946,1000003398,y,4
05.05.2021,ADULT SOCIAL CARE,SUPREME CARE SERVICES LTD,"1,112.48",PHY LTS 65+,HOMECARE - C&V,2103257785,1000059416,y,4
05.05.2021,ADULT SOCIAL CARE,SUPREME CARE SERVICES LTD,"1,112.48",PHY LTS 65+,HOMECARE - C&V,2103257793,1000059416,y,4
05.05.2021,ADULT SOCIAL CARE,SUPREME CARE SERVICES LTD,"1,112.48",PHY LTS 65+,HOMECARE - C&V,2103257828,1000059416,y,4
05.05.2021,ADULT SOCIAL CARE,LONDON CARE LTD,"1,134.75",PHY LTS 65+,HOMECARE - C&V,2103257999,1000003398,y,4
05.05.2021,ADULT SOCIAL CARE,LONDON CARE LTD,"1,136.41",PHY LTS 65+,HOMECARE - C&V,2103258064,1000003398,y,4
05.05.2021,ADULT SOCIAL CARE,LONDON CARE LTD,"1,136.67",PHY LTS 65+,HOMECARE - C&V,2103258105,1000003398,y,4
05.05.2021,ADULT SOCIAL CARE,LONDON CARE LTD,"1,137.47",PHY LTS 65+,HOMECARE - C&V,2103257989,1000003398,y,4
05.05.2021,ADULT SOCIAL CARE,LONDON CARE LTD,"1,138.84",PHY LTS 65+,HOMECARE - C&V,2103257924,1000003398,y,4
05.05.2021,ADULT SOCIAL CARE,LONDON CARE LTD,"1,142.37",PHY LTS 65+,HOMECARE - C&V,2103258003,1000003398,y,4
05.05.2021,ADULT SOCIAL CARE,LONDON CARE LTD,"1,145.50",PHY LTS 65+,HOMECARE - C&V,2103258025,1000003398,y,4
05.05.2021,ADULT SOCIAL CARE,LONDON CARE LTD,"1,160.25",PHY LTS 65+,HOMECARE - C&V,2103257873,1000003398,y,4
05.05.2021,ADULT SOCIAL CARE,LONDON CARE LTD,"1,173.00",PHY LTS 65+,HOMECARE - C&V,2103258035,1000003398,y,4
05.05.2021,ADULT SOCIAL CARE,LONDON CARE LTD,"1,173.56",PHY LTS 65+,HOMECARE - C&V,2103258058,1000003398,y,4
05.05.2021,ADULT SOCIAL CARE,LONDON CARE LTD,"1,176.89",PHY LTS 65+,HOMECARE - C&V,2103258166,1000003398,y,4
05.05.2021,ADULT SOCIAL CARE,SUPREME CARE SERVICES LTD,"1,183.12",PHY LTS 65+,HOMECARE - C&V,2103257795,1000059416,y,4
05.05.2021,ADULT SOCIAL CARE,LONDON CARE LTD,"1,186.87",PHY LTS 65+,HOMECARE - C&V,2103257871,1000003398,y,4
05.05.2021,ADULT SOCIAL CARE,LONDON CARE LTD,"1,192.79",PHY LTS 65+,HOMECARE - C&V,2103257843,1000003398,y,4
05.05.2021,ADULT SOCIAL CARE,LONDON CARE LTD,"1,198.50",PHY LTS 65+,HOMECARE - C&V,2103257942,1000003398,y,4
05.05.2021,ADULT SOCIAL CARE,LONDON CARE LTD,"1,222.91",PHY LTS 65+,HOMECARE - C&V,2103258112,1000003398,y,4
05.05.2021,ADULT SOCIAL CARE,LONDON CARE LTD,"1,233.49",PHY LTS 65+,HOMECARE - C&V,2103258243,1000003398,y,4
05.05.2021,ADULT SOCIAL CARE,SUPREME CARE SERVICES LTD,"1,236.09",PHY LTS 65+,HOMECARE - C&V,2103257826,1000059416,y,4
05.05.2021,ADULT SOCIAL CARE,LONDON CARE LTD,"1,253.84",PHY LTS 65+,HOMECARE - C&V,2103257998,1000003398,y,4
05.05.2021,ADULT SOCIAL CARE,LONDON CARE LTD,"1,260.00",PHY LTS 65+,HOMECARE - C&V,2103257945,1000003398,y,4
05.05.2021,ADULT SOCIAL CARE,LONDON CARE LTD,"1,262.74",PHY LTS 65+,HOMECARE - C&V,2103258094,1000003398,y,4
05.05.2021,ADULT SOCIAL CARE,LONDON CARE LTD,"1,264.97",PHY LTS 65+,HOMECARE - C&V,2103258045,1000003398,y,4
05.05.2021,ADULT SOCIAL CARE,LONDON CARE LTD,"1,271.75",PHY LTS 65+,HOMECARE - C&V,2103258184,1000003398,y,4
05.05.2021,ADULT SOCIAL CARE,LONDON CARE LTD,"1,299.22",PHY LTS 65+,HOMECARE - C&V,2103258222,1000003398,y,4
05.05.2021,ADULT SOCIAL CARE,LONDON CARE LTD,"1,304.07",PHY LTS 65+,HOMECARE - C&V,2103257963,1000003398,y,4
05.05.2021,ADULT SOCIAL CARE,LONDON CARE LTD,"1,306.10",PHY LTS 65+,HOMECARE - C&V,2103258241,1000003398,y,4
05.05.2021,ADULT SOCIAL CARE,LONDON CARE LTD,"1,317.50",PHY LTS 65+,HOMECARE - C&V,2103258030,1000003398,y,4
05.05.2021,ADULT SOCIAL CARE,LONDON CARE LTD,"1,330.66",PHY LTS 65+,HOMECARE - C&V,2103258006,1000003398,y,4
05.05.2021,ADULT SOCIAL CARE,LONDON CARE LTD,"1,369.80",PHY LTS 65+,HOMECARE - C&V,2103257955,1000003398,y,4
05.05.2021,ADULT SOCIAL CARE,SUPREME CARE SERVICES LTD,"1,377.35",PHY LTS 65+,HOMECARE - C&V,2103257800,1000059416,y,4
05.05.2021,ADULT SOCIAL CARE,LONDON CARE LTD,"1,381.95",PHY LTS 65+,HOMECARE - C&V,2103257958,1000003398,y,4
05.05.2021,ADULT SOCIAL CARE,LONDON CARE LTD,"1,403.85",PHY LTS 65+,HOMECARE - C&V,2103257909,1000003398,y,4
05.05.2021,ADULT SOCIAL CARE,LONDON CARE LTD,"1,472.29",PHY LTS 65+,HOMECARE - C&V,2103257888,1000003398,y,4
05.05.2021,ADULT SOCIAL CARE,SUPREME CARE SERVICES LTD,"1,483.29",PHY LTS 65+,HOMECARE - C&V,2103257825,1000059416,y,4
05.05.2021,ADULT SOCIAL CARE,LONDON CARE LTD,"1,499.24",PHY LTS 65+,HOMECARE - C&V,2103258134,1000003398,y,4
05.05.2021,ADULT SOCIAL CARE,LONDON CARE LTD,"1,500.93",PHY LTS 65+,HOMECARE - C&V,2103257920,1000003398,y,4
05.05.2021,ADULT SOCIAL CARE,LONDON CARE LTD,"1,612.07",PHY LTS 65+,HOMECARE - C&V,2103258190,1000003398,y,4
05.05.2021,ADULT SOCIAL CARE,SUPREME CARE SERVICES LTD,"1,652.39",PHY LTS 65+,HOMECARE - C&V,2103257815,1000059416,y,4
05.05.2021,ADULT SOCIAL CARE,LONDON CARE LTD,"1,675.47",PHY LTS 65+,HOMECARE - C&V,2103257944,1000003398,y,4
05.05.2021,ADULT SOCIAL CARE,LONDON CARE LTD,"1,722.09",PHY LTS 65+,HOMECARE - C&V,2103257981,1000003398,y,4
05.05.2021,ADULT SOCIAL CARE,LONDON CARE LTD,"1,869.48",PHY LTS 65+,HOMECARE - C&V,2103257978,1000003398,y,4
05.05.2021,ADULT SOCIAL CARE,LONDON CARE LTD,"1,876.32",PHY LTS 65+,HOMECARE - C&V,2103258153,1000003398,y,4
05.05.2021,ADULT SOCIAL CARE,LONDON CARE LTD,"1,912.50",PHY LTS 65+,HOMECARE - C&V,2103257905,1000003398,y,4
05.05.2021,ADULT SOCIAL CARE,LONDON CARE LTD,"1,929.50",PHY LTS 65+,HOMECARE - C&V,2103258044,1000003398,y,4
05.05.2021,ADULT SOCIAL CARE,SUPREME CARE SERVICES LTD,"1,942.41",PHY LTS 65+,HOMECARE - C&V,2103257820,1000059416,y,4
05.05.2021,ADULT SOCIAL CARE,LONDON CARE LTD,"2,061.14",PHY LTS 65+,HOMECARE - C&V,2103258000,1000003398,y,4
05.05.2021,ADULT SOCIAL CARE,LONDON CARE LTD,"2,095.25",PHY LTS 65+,HOMECARE - C&V,2103257987,1000003398,y,4
05.05.2021,ADULT SOCIAL CARE,LONDON CARE LTD,"2,120.75",PHY LTS 65+,HOMECARE - C&V,2103257975,1000003398,y,4
05.05.2021,ADULT SOCIAL CARE,LONDON CARE LTD,"2,159.00",PHY LTS 65+,HOMECARE - C&V,2103258067,1000003398,y,4
05.05.2021,ADULT SOCIAL CARE,LONDON CARE LTD,"2,189.98",PHY LTS 65+,HOMECARE - C&V,2103258070,1000003398,y,4
05.05.2021,ADULT SOCIAL CARE,LONDON CARE LTD,"2,209.32",PHY LTS 65+,HOMECARE - C&V,2103257983,1000003398,y,4
05.05.2021,ADULT SOCIAL CARE,SUPREME CARE SERVICES LTD,"2,224.95",PHY LTS 65+,HOMECARE - C&V,2103257782,1000059416,y,4
05.05.2021,ADULT SOCIAL CARE,LONDON CARE LTD,"2,305.87",PHY LTS 65+,HOMECARE - C&V,2103258062,1000003398,y,4
05.05.2021,ADULT SOCIAL CARE,LONDON CARE LTD,"2,336.68",PHY LTS 65+,HOMECARE - C&V,2103258012,1000003398,y,4
05.05.2021,ADULT SOCIAL CARE,SUPREME CARE SERVICES LTD,"2,366.21",PHY LTS 65+,HOMECARE - C&V,2103257801,1000059416,y,4
05.05.2021,ADULT SOCIAL CARE,LONDON CARE LTD,"2,384.46",PHY LTS 65+,HOMECARE - C&V,2103257943,1000003398,y,4
05.05.2021,ADULT SOCIAL CARE,LONDON CARE LTD,"2,390.04",PHY LTS 65+,HOMECARE - C&V,2103257937,1000003398,y,4
05.05.2021,ADULT SOCIAL CARE,LONDON CARE LTD,"2,397.00",PHY LTS 65+,HOMECARE - C&V,2103258013,1000003398,y,4
05.05.2021,ADULT SOCIAL CARE,LONDON CARE LTD,"2,422.51",PHY LTS 65+,HOMECARE - C&V,2103258055,1000003398,y,4
05.05.2021,ADULT SOCIAL CARE,LONDON CARE LTD,"2,423.58",PHY LTS 65+,HOMECARE - C&V,2103258131,1000003398,y,4
05.05.2021,ADULT SOCIAL CARE,LONDON CARE LTD,"2,458.23",PHY LTS 65+,HOMECARE - C&V,2103258117,1000003398,y,4
05.05.2021,ADULT SOCIAL CARE,LONDON CARE LTD,"2,473.34",PHY LTS 65+,HOMECARE - C&V,2103257887,1000003398,y,4
05.05.2021,ADULT SOCIAL CARE,LONDON CARE LTD,"2,485.59",PHY LTS 65+,HOMECARE - C&V,2103257951,1000003398,y,4
05.05.2021,ADULT SOCIAL CARE,LONDON CARE LTD,"2,553.13",PHY LTS 65+,HOMECARE - C&V,2103257994,1000003398,y,4
05.05.2021,ADULT SOCIAL CARE,LONDON CARE LTD,"2,756.84",PHY LTS 65+,HOMECARE - C&V,2103257912,1000003398,y,4
05.05.2021,ADULT SOCIAL CARE,LONDON CARE LTD,"2,795.33",PHY LTS 65+,HOMECARE - C&V,2103258059,1000003398,y,4
05.05.2021,ADULT SOCIAL CARE,LONDON CARE LTD,"2,813.49",PHY LTS 65+,HOMECARE - C&V,2103257941,1000003398,y,4
05.05.2021,ADULT SOCIAL CARE,LONDON CARE LTD,"2,849.98",PHY LTS 65+,HOMECARE - C&V,2103257848,1000003398,y,4
05.05.2021,ADULT SOCIAL CARE,LONDON CARE LTD,"3,052.39",PHY LTS 65+,HOMECARE - C&V,2103257877,1000003398,y,4
05.05.2021,ADULT SOCIAL CARE,LONDON CARE LTD,"3,202.30",PHY LTS 65+,HOMECARE - C&V,2103258176,1000003398,y,4
05.05.2021,ADULT SOCIAL CARE,LONDON CARE LTD,"3,369.85",PHY LTS 65+,HOMECARE - C&V,2103258026,1000003398,y,4
05.05.2021,ADULT SOCIAL CARE,LONDON CARE LTD,"3,477.74",PHY LTS 65+,HOMECARE - C&V,2103258088,1000003398,y,4
05.05.2021,ADULT SOCIAL CARE,LONDON CARE LTD,"3,570.00",PHY LTS 65+,HOMECARE - C&V,2103257913,1000003398,y,4
05.05.2021,ADULT SOCIAL CARE,LONDON CARE LTD,587.69,PHY STS 65+,HOMECARE - IC,2103257996,1000003398,y,4
05.05.2021,ADULT SOCIAL CARE,ADESEK LIMITED,800,SAFEGUARDING & DOLS,EXTERNAL AGENCIES AND BODIES,5902467264,1000082388,y,4
05.05.2021,ADULT SOCIAL CARE,LONDON CARE LTD,"1,293.50",SEN LTS 65+,HOMECARE - C&V,2103257977,1000003398,y,4
05.05.2021,ADULT SOCIAL CARE,LONDON CARE LTD,461.1,SOCIAL ISOLATION,HOMECARE - C&V,2103257923,1000003398,y,4
05.05.2021,ADULT SOCIAL CARE,LONDON CARE LTD,620.45,SOCIAL ISOLATION,HOMECARE - C&V,2103258093,1000003398,y,4
05.05.2021,ADULT SOCIAL CARE,LONDON CARE LTD,991.34,SOCIAL ISOLATION,HOMECARE - C&V,2103257880,1000003398,y,4
05.05.2021,ADULT SOCIAL CARE,SUPREME CARE SERVICES LTD,"1,236.09",SOCIAL ISOLATION,HOMECARE - C&V,2103257796,1000059416,y,4
05.05.2021,ADULT SOCIAL CARE,LONDON CARE LTD,"1,275.00",SOCIAL ISOLATION,HOMECARE - C&V,2103257947,1000003398,y,4
05.05.2021,ADULT SOCIAL CARE,LONDON CARE LTD,"1,490.33",SOCIAL ISOLATION,HOMECARE - C&V,2103257908,1000003398,y,4
05.05.2021,ADULT SOCIAL CARE,LONDON CARE LTD,312.57,SUB LTS 18-64,HOMECARE - C&V,2103258144,1000003398,y,4
05.05.2021,ADULT SOCIAL CARE,SUPREME CARE SERVICES LTD,759.32,SUB LTS 18-64,HOMECARE - C&V,2103257816,1000059416,y,4
05.05.2021,ASSET MANAGEMENT,SILWOOD FACILITIES LTD,"1,975.53",DISREPAIR,PAYMENTS FOR LEGAL SERVICES,5902467452,1000086443,y,4
05.05.2021,ASSET MANAGEMENT,AVONLINE NETWORK SERVICES LTD,"2,149.72",ENG CONTRACTS (NORTH),TV AERIALS R&M,5902467439,1000068672,y,4
05.05.2021,CENTRAL FUNCTIONS,KENT COUNTY COUNCIL - LASER,"4,384.09",HEATING ACCOUNT,ELECTRICITY,5902467338,1000012926,y,4
05.05.2021,CENTRAL FUNCTIONS,KENT COUNTY COUNCIL - LASER,"60,003.24",HEATING ACCOUNT,ELECTRICITY,5902467338,1000012926,y,4
05.05.2021,CENTRAL FUNCTIONS,KENT COUNTY COUNCIL - LASER,"94,749.41",HEATING ACCOUNT,GAS,5902467340,1000012926,y,4
05.05.2021,CENTRAL FUNCTIONS,NORTHGATE PUBLIC SERVICES (UK) LTD,"5,100.00",HOME OWNERSHIP,OFFICE EXPENSES,5902467336,1000037405,y,4
05.05.2021,CHIEF EXECUTIVE,BOON EDAM LTD,403.81,CAPITAL PS (REGEN),CONSTRUCTION MAIN CONTRACT,5902466911,1000021458,y,4
05.05.2021,CHILDREN AND FAMILIES,REDACTED PERSONAL DATA,251.12,ADOPTION ALLOWANCES,PAYMENTS TO CARERS,REDACTED,REDACTED,X,10
05.05.2021,CHILDREN AND FAMILIES,REDACTED PERSONAL DATA,251.94,ADOPTION ALLOWANCES,PAYMENTS TO CARERS,REDACTED,REDACTED,X,10
05.05.2021,CHILDREN AND FAMILIES,REDACTED PERSONAL DATA,252.9,ADOPTION ALLOWANCES,PAYMENTS TO CARERS,REDACTED,REDACTED,X,10
05.05.2021,CHILDREN AND FAMILIES,REDACTED PERSONAL DATA,253.56,ADOPTION ALLOWANCES,PAYMENTS TO CARERS,REDACTED,REDACTED,X,10
05.05.2021,CHILDREN AND FAMILIES,REDACTED PERSONAL DATA,268.62,ADOPTION ALLOWANCES,PAYMENTS TO CARERS,REDACTED,REDACTED,X,10
05.05.2021,CHILDREN AND FAMILIES,REDACTED PERSONAL DATA,269.22,ADOPTION ALLOWANCES,PAYMENTS TO CARERS,REDACTED,REDACTED,X,10
05.05.2021,CHILDREN AND FAMILIES,REDACTED PERSONAL DATA,276.1,ADOPTION ALLOWANCES,PAYMENTS TO CARERS,REDACTED,REDACTED,X,10
05.05.2021,CHILDREN AND FAMILIES,REDACTED PERSONAL DATA,278.54,ADOPTION ALLOWANCES,PAYMENTS TO CARERS,REDACTED,REDACTED,X,10
05.05.2021,CHILDREN AND FAMILIES,REDACTED PERSONAL DATA,282.86,ADOPTION ALLOWANCES,PAYMENTS TO CARERS,REDACTED,REDACTED,X,10
05.05.2021,CHILDREN AND FAMILIES,REDACTED PERSONAL DATA,293.98,ADOPTION ALLOWANCES,PAYMENTS TO CARERS,REDACTED,REDACTED,X,10
05.05.2021,CHILDREN AND FAMILIES,REDACTED PERSONAL DATA,304.26,ADOPTION ALLOWANCES,PAYMENTS TO CARERS,REDACTED,REDACTED,X,10
05.05.2021,CHILDREN AND FAMILIES,REDACTED PERSONAL DATA,319.36,ADOPTION ALLOWANCES,PAYMENTS TO CARERS,REDACTED,REDACTED,X,10
05.05.2021,CHILDREN AND FAMILIES,REDACTED PERSONAL DATA,351.42,ADOPTION ALLOWANCES,PAYMENTS TO CARERS,REDACTED,REDACTED,X,10
05.05.2021,CHILDREN AND FAMILIES,REDACTED PERSONAL DATA,359.44,ADOPTION ALLOWANCES,PAYMENTS TO CARERS,REDACTED,REDACTED,X,10
05.05.2021,CHILDREN AND FAMILIES,REDACTED PERSONAL DATA,368.52,ADOPTION ALLOWANCES,PAYMENTS TO CARERS,REDACTED,REDACTED,X,10
05.05.2021,CHILDREN AND FAMILIES,REDACTED PERSONAL DATA,375.54,ADOPTION ALLOWANCES,PAYMENTS TO CARERS,REDACTED,REDACTED,X,10
05.05.2021,CHILDREN AND FAMILIES,REDACTED PERSONAL DATA,375.54,ADOPTION ALLOWANCES,PAYMENTS TO CARERS,REDACTED,REDACTED,X,10
05.05.2021,CHILDREN AND FAMILIES,REDACTED PERSONAL DATA,375.54,ADOPTION ALLOWANCES,PAYMENTS TO CARERS,REDACTED,REDACTED,X,10
05.05.2021,CHILDREN AND FAMILIES,REDACTED PERSONAL DATA,375.54,ADOPTION ALLOWANCES,PAYMENTS TO CARERS,REDACTED,REDACTED,X,10
05.05.2021,CHILDREN AND FAMILIES,REDACTED PERSONAL DATA,375.54,ADOPTION ALLOWANCES,PAYMENTS TO CARERS,REDACTED,REDACTED,X,10
05.05.2021,CHILDREN AND FAMILIES,REDACTED PERSONAL DATA,375.54,ADOPTION ALLOWANCES,PAYMENTS TO CARERS,REDACTED,REDACTED,X,10
05.05.2021,CHILDREN AND FAMILIES,REDACTED PERSONAL DATA,375.54,ADOPTION ALLOWANCES,PAYMENTS TO CARERS,REDACTED,REDACTED,X,10
05.05.2021,CHILDREN AND FAMILIES,REDACTED PERSONAL DATA,375.54,ADOPTION ALLOWANCES,PAYMENTS TO CARERS,REDACTED,REDACTED,X,10
05.05.2021,CHILDREN AND FAMILIES,REDACTED PERSONAL DATA,382.3,ADOPTION ALLOWANCES,PAYMENTS TO CARERS,REDACTED,REDACTED,X,10
05.05.2021,CHILDREN AND FAMILIES,REDACTED PERSONAL DATA,382.3,ADOPTION ALLOWANCES,PAYMENTS TO CARERS,REDACTED,REDACTED,X,10
05.05.2021,CHILDREN AND FAMILIES,REDACTED PERSONAL DATA,382.3,ADOPTION ALLOWANCES,PAYMENTS TO CARERS,REDACTED,REDACTED,X,10
05.05.2021,CHILDREN AND FAMILIES,REDACTED PERSONAL DATA,382.3,ADOPTION ALLOWANCES,PAYMENTS TO CARERS,REDACTED,REDACTED,X,10
05.05.2021,CHILDREN AND FAMILIES,REDACTED PERSONAL DATA,386,ADOPTION ALLOWANCES,PAYMENTS TO CARERS,REDACTED,REDACTED,X,10
05.05.2021,CHILDREN AND FAMILIES,REDACTED PERSONAL DATA,386,ADOPTION ALLOWANCES,PAYMENTS TO CARERS,REDACTED,REDACTED,X,10
05.05.2021,CHILDREN AND FAMILIES,REDACTED PERSONAL DATA,451.8,ADOPTION ALLOWANCES,PAYMENTS TO CARERS,REDACTED,REDACTED,X,10
05.05.2021,CHILDREN AND FAMILIES,REDACTED PERSONAL DATA,457.14,ADOPTION ALLOWANCES,PAYMENTS TO CARERS,REDACTED,REDACTED,X,10
05.05.2021,CHILDREN AND FAMILIES,REDACTED PERSONAL DATA,465.48,ADOPTION ALLOWANCES,PAYMENTS TO CARERS,REDACTED,REDACTED,X,10
05.05.2021,CHILDREN AND FAMILIES,REDACTED PERSONAL DATA,465.54,ADOPTION ALLOWANCES,PAYMENTS TO CARERS,REDACTED,REDACTED,X,10
05.05.2021,CHILDREN AND FAMILIES,REDACTED PERSONAL DATA,465.54,ADOPTION ALLOWANCES,PAYMENTS TO CARERS,REDACTED,REDACTED,X,10
05.05.2021,CHILDREN AND FAMILIES,REDACTED PERSONAL DATA,465.54,ADOPTION ALLOWANCES,PAYMENTS TO CARERS,REDACTED,REDACTED,X,10
05.05.2021,CHILDREN AND FAMILIES,REDACTED PERSONAL DATA,484.92,ADOPTION ALLOWANCES,PAYMENTS TO CARERS,REDACTED,REDACTED,X,10
05.05.2021,CHILDREN AND FAMILIES,REDACTED PERSONAL DATA,485.22,ADOPTION ALLOWANCES,PAYMENTS TO CARERS,REDACTED,REDACTED,X,10
05.05.2021,CHILDREN AND FAMILIES,REDACTED PERSONAL DATA,500,ADOPTION ALLOWANCES,PAYMENTS TO CARERS,REDACTED,REDACTED,X,10
05.05.2021,CHILDREN AND FAMILIES,REDACTED PERSONAL DATA,502,ADOPTION ALLOWANCES,PAYMENTS TO CARERS,REDACTED,REDACTED,X,10
05.05.2021,CHILDREN AND FAMILIES,REDACTED PERSONAL DATA,510.96,ADOPTION ALLOWANCES,PAYMENTS TO CARERS,REDACTED,REDACTED,X,10
05.05.2021,CHILDREN AND FAMILIES,REDACTED PERSONAL DATA,512.02,ADOPTION ALLOWANCES,PAYMENTS TO CARERS,REDACTED,REDACTED,X,10
05.05.2021,CHILDREN AND FAMILIES,REDACTED PERSONAL DATA,530,ADOPTION ALLOWANCES,PAYMENTS TO CARERS,REDACTED,REDACTED,X,10
05.05.2021,CHILDREN AND FAMILIES,REDACTED PERSONAL DATA,559.06,ADOPTION ALLOWANCES,PAYMENTS TO CARERS,REDACTED,REDACTED,X,10
05.05.2021,CHILDREN AND FAMILIES,REDACTED PERSONAL DATA,588.42,ADOPTION ALLOWANCES,PAYMENTS TO CARERS,REDACTED,REDACTED,X,10
05.05.2021,CHILDREN AND FAMILIES,REDACTED PERSONAL DATA,618.6,ADOPTION ALLOWANCES,PAYMENTS TO CARERS,REDACTED,REDACTED,X,10
05.05.2021,CHILDREN AND FAMILIES,REDACTED PERSONAL DATA,635.34,ADOPTION ALLOWANCES,PAYMENTS TO CARERS,REDACTED,REDACTED,X,10
05.05.2021,CHILDREN AND FAMILIES,REDACTED PERSONAL DATA,640.9,ADOPTION ALLOWANCES,PAYMENTS TO CARERS,REDACTED,REDACTED,X,10
05.05.2021,CHILDREN AND FAMILIES,REDACTED PERSONAL DATA,652.9,ADOPTION ALLOWANCES,PAYMENTS TO CARERS,REDACTED,REDACTED,X,10
05.05.2021,CHILDREN AND FAMILIES,REDACTED PERSONAL DATA,652.9,ADOPTION ALLOWANCES,PAYMENTS TO CARERS,REDACTED,REDACTED,X,10
05.05.2021,CHILDREN AND FAMILIES,REDACTED PERSONAL DATA,653.06,ADOPTION ALLOWANCES,PAYMENTS TO CARERS,REDACTED,REDACTED,X,10
05.05.2021,CHILDREN AND FAMILIES,REDACTED PERSONAL DATA,660,ADOPTION ALLOWANCES,PAYMENTS TO CARERS,REDACTED,REDACTED,X,10
05.05.2021,CHILDREN AND FAMILIES,REDACTED PERSONAL DATA,660,ADOPTION ALLOWANCES,PAYMENTS TO CARERS,REDACTED,REDACTED,X,10
05.05.2021,CHILDREN AND FAMILIES,REDACTED PERSONAL DATA,676,ADOPTION ALLOWANCES,PAYMENTS TO CARERS,REDACTED,REDACTED,X,10
05.05.2021,CHILDREN AND FAMILIES,REDACTED PERSONAL DATA,682.3,ADOPTION ALLOWANCES,PAYMENTS TO CARERS,REDACTED,REDACTED,X,10
05.05.2021,CHILDREN AND FAMILIES,REDACTED PERSONAL DATA,682.3,ADOPTION ALLOWANCES,PAYMENTS TO CARERS,REDACTED,REDACTED,X,10
05.05.2021,CHILDREN AND FAMILIES,REDACTED PERSONAL DATA,695.04,ADOPTION ALLOWANCES,PAYMENTS TO CARERS,REDACTED,REDACTED,X,10
05.05.2021,CHILDREN AND FAMILIES,REDACTED PERSONAL DATA,695.12,ADOPTION ALLOWANCES,PAYMENTS TO CARERS,REDACTED,REDACTED,X,10
05.05.2021,CHILDREN AND FAMILIES,REDACTED PERSONAL DATA,705.24,ADOPTION ALLOWANCES,PAYMENTS TO CARERS,REDACTED,REDACTED,X,10
05.05.2021,CHILDREN AND FAMILIES,REDACTED PERSONAL DATA,712.3,ADOPTION ALLOWANCES,PAYMENTS TO CARERS,REDACTED,REDACTED,X,10
05.05.2021,CHILDREN AND FAMILIES,REDACTED PERSONAL DATA,738.32,ADOPTION ALLOWANCES,PAYMENTS TO CARERS,REDACTED,REDACTED,X,10
05.05.2021,CHILDREN AND FAMILIES,REDACTED PERSONAL DATA,767.68,ADOPTION ALLOWANCES,PAYMENTS TO CARERS,REDACTED,REDACTED,X,10
05.05.2021,CHILDREN AND FAMILIES,REDACTED PERSONAL DATA,777.36,ADOPTION ALLOWANCES,PAYMENTS TO CARERS,REDACTED,REDACTED,X,10
05.05.2021,CHILDREN AND FAMILIES,REDACTED PERSONAL DATA,908,ADOPTION ALLOWANCES,PAYMENTS TO CARERS,REDACTED,REDACTED,X,10
05.05.2021,CHILDREN AND FAMILIES,REDACTED PERSONAL DATA,"1,053.20",ADOPTION ALLOWANCES,PAYMENTS TO CARERS,REDACTED,REDACTED,X,10
05.05.2021,CHILDREN AND FAMILIES,REDACTED PERSONAL DATA,522.5,ADOPTION SUPP FUND,PROFESSIONAL FEES,REDACTED,REDACTED,X,10
05.05.2021,CHILDREN AND FAMILIES,STOCKTON ON TEES BOROUGH COUNCIL,"5,569.30",ALS INTER AGENCY,EXTERNAL AGENCIES AND BODIES,5902467440,1000086677,y,8
05.05.2021,CHILDREN AND FAMILIES,FAMILY ACTION,"29,153.75",ALS INTER AGENCY,EXTERNAL AGENCIES AND BODIES,5902466585,1013739,y,4
05.05.2021,CHILDREN AND FAMILIES,KEYS PCE LTD,"-5,417.04",CHILDREN�S RESID,RESIDENTIAL CARE,5902467466,1000080090,y,4
05.05.2021,CHILDREN AND FAMILIES,KEYS PCE LTD,400,CHILDREN�S RESID,RESIDENTIAL CARE,5902467464,1000080090,y,4
05.05.2021,CHILDREN AND FAMILIES,KEYS PCE LTD,600,CHILDREN�S RESID,RESIDENTIAL CARE,5902467459,1000080090,y,4
05.05.2021,CHILDREN AND FAMILIES,KEYS PCE LTD,"6,000.00",CHILDREN�S RESID,RESIDENTIAL CARE,5902467461,1000080090,y,4
05.05.2021,CHILDREN AND FAMILIES,UNIQUE CONTACT AND COMMUNITY SERVICES LTD,280,CONTACT SERVICE,OTHER PAYMENTS FOR CLIENTS,5902467382,1000075550,y,4
05.05.2021,CHILDREN AND FAMILIES,LEAEFF LTD,"1,750.00",DIRECTOR OF C&F,PROFESSIONAL FEES,5902467433,1000083779,y,4
05.05.2021,CHILDREN AND FAMILIES,NUMBER 10 INTERIM LTD,"8,400.00",DIRECTOR OF C&F,PROFESSIONAL FEES,5902467437,1000075139,y,4
05.05.2021,CHILDREN AND FAMILIES,REDACTED PERSONAL DATA,-473,FOSTERING ALLOWANCES,PAYMENTS TO CARERS,REDACTED,REDACTED,X,10
05.05.2021,CHILDREN AND FAMILIES,REDACTED PERSONAL DATA,-466,FOSTERING ALLOWANCES,PAYMENTS TO CARERS,REDACTED,REDACTED,X,10
05.05.2021,CHILDREN AND FAMILIES,REDACTED PERSONAL DATA,-345.6,FOSTERING ALLOWANCES,PAYMENTS TO CARERS,REDACTED,REDACTED,X,10
05.05.2021,CHILDREN AND FAMILIES,REDACTED PERSONAL DATA,660,FOSTERING ALLOWANCES,PAYMENTS TO CARERS,REDACTED,REDACTED,X,10
05.05.2021,CHILDREN AND FAMILIES,REDACTED PERSONAL DATA,693.58,FOSTERING ALLOWANCES,PAYMENTS TO CARERS,REDACTED,REDACTED,X,10
05.05.2021,CHILDREN AND FAMILIES,REDACTED PERSONAL DATA,693.58,FOSTERING ALLOWANCES,PAYMENTS TO CARERS,REDACTED,REDACTED,X,10
05.05.2021,CHILDREN AND FAMILIES,REDACTED PERSONAL DATA,693.58,FOSTERING ALLOWANCES,PAYMENTS TO CARERS,REDACTED,REDACTED,X,10
05.05.2021,CHILDREN AND FAMILIES,REDACTED PERSONAL DATA,695.3,FOSTERING ALLOWANCES,PAYMENTS TO CARERS,REDACTED,REDACTED,X,10
05.05.2021,CHILDREN AND FAMILIES,REDACTED PERSONAL DATA,712,FOSTERING ALLOWANCES,PAYMENTS TO CARERS,REDACTED,REDACTED,X,10
05.05.2021,CHILDREN AND FAMILIES,REDACTED PERSONAL DATA,712,FOSTERING ALLOWANCES,PAYMENTS TO CARERS,REDACTED,REDACTED,X,10
05.05.2021,CHILDREN AND FAMILIES,REDACTED PERSONAL DATA,712,FOSTERING ALLOWANCES,PAYMENTS TO CARERS,REDACTED,REDACTED,X,10
05.05.2021,CHILDREN AND FAMILIES,REDACTED PERSONAL DATA,712.3,FOSTERING ALLOWANCES,PAYMENTS TO CARERS,REDACTED,REDACTED,X,10
05.05.2021,CHILDREN AND FAMILIES,REDACTED PERSONAL DATA,723.57,FOSTERING ALLOWANCES,PAYMENTS TO CARERS,REDACTED,REDACTED,X,10
05.05.2021,CHILDREN AND FAMILIES,REDACTED PERSONAL DATA,723.57,FOSTERING ALLOWANCES,PAYMENTS TO CARERS,REDACTED,REDACTED,X,10
05.05.2021,CHILDREN AND FAMILIES,REDACTED PERSONAL DATA,723.57,FOSTERING ALLOWANCES,PAYMENTS TO CARERS,REDACTED,REDACTED,X,10
05.05.2021,CHILDREN AND FAMILIES,REDACTED PERSONAL DATA,723.57,FOSTERING ALLOWANCES,PAYMENTS TO CARERS,REDACTED,REDACTED,X,10
05.05.2021,CHILDREN AND FAMILIES,REDACTED PERSONAL DATA,723.57,FOSTERING ALLOWANCES,PAYMENTS TO CARERS,REDACTED,REDACTED,X,10
05.05.2021,CHILDREN AND FAMILIES,REDACTED PERSONAL DATA,725.29,FOSTERING ALLOWANCES,PAYMENTS TO CARERS,REDACTED,REDACTED,X,10
05.05.2021,CHILDREN AND FAMILIES,REDACTED PERSONAL DATA,725.29,FOSTERING ALLOWANCES,PAYMENTS TO CARERS,REDACTED,REDACTED,X,10
05.05.2021,CHILDREN AND FAMILIES,REDACTED PERSONAL DATA,725.29,FOSTERING ALLOWANCES,PAYMENTS TO CARERS,REDACTED,REDACTED,X,10
05.05.2021,CHILDREN AND FAMILIES,REDACTED PERSONAL DATA,725.29,FOSTERING ALLOWANCES,PAYMENTS TO CARERS,REDACTED,REDACTED,X,10
05.05.2021,CHILDREN AND FAMILIES,REDACTED PERSONAL DATA,725.29,FOSTERING ALLOWANCES,PAYMENTS TO CARERS,REDACTED,REDACTED,X,10
05.05.2021,CHILDREN AND FAMILIES,REDACTED PERSONAL DATA,725.29,FOSTERING ALLOWANCES,PAYMENTS TO CARERS,REDACTED,REDACTED,X,10
05.05.2021,CHILDREN AND FAMILIES,REDACTED PERSONAL DATA,743.57,FOSTERING ALLOWANCES,PAYMENTS TO CARERS,REDACTED,REDACTED,X,10
05.05.2021,CHILDREN AND FAMILIES,REDACTED PERSONAL DATA,743.57,FOSTERING ALLOWANCES,PAYMENTS TO CARERS,REDACTED,REDACTED,X,10
05.05.2021,CHILDREN AND FAMILIES,REDACTED PERSONAL DATA,743.57,FOSTERING ALLOWANCES,PAYMENTS TO CARERS,REDACTED,REDACTED,X,10
05.05.2021,CHILDREN AND FAMILIES,REDACTED PERSONAL DATA,743.57,FOSTERING ALLOWANCES,PAYMENTS TO CARERS,REDACTED,REDACTED,X,10
05.05.2021,CHILDREN AND FAMILIES,REDACTED PERSONAL DATA,743.57,FOSTERING ALLOWANCES,PAYMENTS TO CARERS,REDACTED,REDACTED,X,10
05.05.2021,CHILDREN AND FAMILIES,REDACTED PERSONAL DATA,745.28,FOSTERING ALLOWANCES,PAYMENTS TO CARERS,REDACTED,REDACTED,X,10
05.05.2021,CHILDREN AND FAMILIES,REDACTED PERSONAL DATA,773.57,FOSTERING ALLOWANCES,PAYMENTS TO CARERS,REDACTED,REDACTED,X,10
05.05.2021,CHILDREN AND FAMILIES,REDACTED PERSONAL DATA,773.57,FOSTERING ALLOWANCES,PAYMENTS TO CARERS,REDACTED,REDACTED,X,10
05.05.2021,CHILDREN AND FAMILIES,REDACTED PERSONAL DATA,773.57,FOSTERING ALLOWANCES,PAYMENTS TO CARERS,REDACTED,REDACTED,X,10
05.05.2021,CHILDREN AND FAMILIES,REDACTED PERSONAL DATA,773.57,FOSTERING ALLOWANCES,PAYMENTS TO CARERS,REDACTED,REDACTED,X,10
05.05.2021,CHILDREN AND FAMILIES,REDACTED PERSONAL DATA,775.28,FOSTERING ALLOWANCES,PAYMENTS TO CARERS,REDACTED,REDACTED,X,10
05.05.2021,CHILDREN AND FAMILIES,REDACTED PERSONAL DATA,775.28,FOSTERING ALLOWANCES,PAYMENTS TO CARERS,REDACTED,REDACTED,X,10
05.05.2021,CHILDREN AND FAMILIES,REDACTED PERSONAL DATA,775.28,FOSTERING ALLOWANCES,PAYMENTS TO CARERS,REDACTED,REDACTED,X,10
05.05.2021,CHILDREN AND FAMILIES,REDACTED PERSONAL DATA,776.08,FOSTERING ALLOWANCES,PAYMENTS TO CARERS,REDACTED,REDACTED,X,10
05.05.2021,CHILDREN AND FAMILIES,REDACTED PERSONAL DATA,847.43,FOSTERING ALLOWANCES,PAYMENTS TO CARERS,REDACTED,REDACTED,X,10
05.05.2021,CHILDREN AND FAMILIES,REDACTED PERSONAL DATA,847.43,FOSTERING ALLOWANCES,PAYMENTS TO CARERS,REDACTED,REDACTED,X,10
05.05.2021,CHILDREN AND FAMILIES,REDACTED PERSONAL DATA,847.43,FOSTERING ALLOWANCES,PAYMENTS TO CARERS,REDACTED,REDACTED,X,10
05.05.2021,CHILDREN AND FAMILIES,REDACTED PERSONAL DATA,847.43,FOSTERING ALLOWANCES,PAYMENTS TO CARERS,REDACTED,REDACTED,X,10
05.05.2021,CHILDREN AND FAMILIES,REDACTED PERSONAL DATA,847.43,FOSTERING ALLOWANCES,PAYMENTS TO CARERS,REDACTED,REDACTED,X,10
05.05.2021,CHILDREN AND FAMILIES,REDACTED PERSONAL DATA,849.71,FOSTERING ALLOWANCES,PAYMENTS TO CARERS,REDACTED,REDACTED,X,10
05.05.2021,CHILDREN AND FAMILIES,REDACTED PERSONAL DATA,849.71,FOSTERING ALLOWANCES,PAYMENTS TO CARERS,REDACTED,REDACTED,X,10
05.05.2021,CHILDREN AND FAMILIES,REDACTED PERSONAL DATA,849.71,FOSTERING ALLOWANCES,PAYMENTS TO CARERS,REDACTED,REDACTED,X,10
05.05.2021,CHILDREN AND FAMILIES,REDACTED PERSONAL DATA,849.71,FOSTERING ALLOWANCES,PAYMENTS TO CARERS,REDACTED,REDACTED,X,10
05.05.2021,CHILDREN AND FAMILIES,REDACTED PERSONAL DATA,862,FOSTERING ALLOWANCES,PAYMENTS TO CARERS,REDACTED,REDACTED,X,10
05.05.2021,CHILDREN AND FAMILIES,REDACTED PERSONAL DATA,862,FOSTERING ALLOWANCES,PAYMENTS TO CARERS,REDACTED,REDACTED,X,10
05.05.2021,CHILDREN AND FAMILIES,REDACTED PERSONAL DATA,862,FOSTERING ALLOWANCES,PAYMENTS TO CARERS,REDACTED,REDACTED,X,10
05.05.2021,CHILDREN AND FAMILIES,REDACTED PERSONAL DATA,862,FOSTERING ALLOWANCES,PAYMENTS TO CARERS,REDACTED,REDACTED,X,10
05.05.2021,CHILDREN AND FAMILIES,REDACTED PERSONAL DATA,864,FOSTERING ALLOWANCES,PAYMENTS TO CARERS,REDACTED,REDACTED,X,10
05.05.2021,CHILDREN AND FAMILIES,REDACTED PERSONAL DATA,876.86,FOSTERING ALLOWANCES,PAYMENTS TO CARERS,REDACTED,REDACTED,X,10
05.05.2021,CHILDREN AND FAMILIES,REDACTED PERSONAL DATA,877.43,FOSTERING ALLOWANCES,PAYMENTS TO CARERS,REDACTED,REDACTED,X,10
05.05.2021,CHILDREN AND FAMILIES,REDACTED PERSONAL DATA,877.43,FOSTERING ALLOWANCES,PAYMENTS TO CARERS,REDACTED,REDACTED,X,10
05.05.2021,CHILDREN AND FAMILIES,REDACTED PERSONAL DATA,877.43,FOSTERING ALLOWANCES,PAYMENTS TO CARERS,REDACTED,REDACTED,X,10
05.05.2021,CHILDREN AND FAMILIES,REDACTED PERSONAL DATA,877.43,FOSTERING ALLOWANCES,PAYMENTS TO CARERS,REDACTED,REDACTED,X,10
05.05.2021,CHILDREN AND FAMILIES,REDACTED PERSONAL DATA,877.43,FOSTERING ALLOWANCES,PAYMENTS TO CARERS,REDACTED,REDACTED,X,10
05.05.2021,CHILDREN AND FAMILIES,REDACTED PERSONAL DATA,877.43,FOSTERING ALLOWANCES,PAYMENTS TO CARERS,REDACTED,REDACTED,X,10
05.05.2021,CHILDREN AND FAMILIES,REDACTED PERSONAL DATA,877.43,FOSTERING ALLOWANCES,PAYMENTS TO CARERS,REDACTED,REDACTED,X,10
05.05.2021,CHILDREN AND FAMILIES,REDACTED PERSONAL DATA,877.43,FOSTERING ALLOWANCES,PAYMENTS TO CARERS,REDACTED,REDACTED,X,10
05.05.2021,CHILDREN AND FAMILIES,REDACTED PERSONAL DATA,877.43,FOSTERING ALLOWANCES,PAYMENTS TO CARERS,REDACTED,REDACTED,X,10
05.05.2021,CHILDREN AND FAMILIES,REDACTED PERSONAL DATA,877.43,FOSTERING ALLOWANCES,PAYMENTS TO CARERS,REDACTED,REDACTED,X,10
05.05.2021,CHILDREN AND FAMILIES,REDACTED PERSONAL DATA,877.43,FOSTERING ALLOWANCES,PAYMENTS TO CARERS,REDACTED,REDACTED,X,10
05.05.2021,CHILDREN AND FAMILIES,REDACTED PERSONAL DATA,877.43,FOSTERING ALLOWANCES,PAYMENTS TO CARERS,REDACTED,REDACTED,X,10
05.05.2021,CHILDREN AND FAMILIES,REDACTED PERSONAL DATA,877.43,FOSTERING ALLOWANCES,PAYMENTS TO CARERS,REDACTED,REDACTED,X,10
05.05.2021,CHILDREN AND FAMILIES,REDACTED PERSONAL DATA,877.43,FOSTERING ALLOWANCES,PAYMENTS TO CARERS,REDACTED,REDACTED,X,10
05.05.2021,CHILDREN AND FAMILIES,REDACTED PERSONAL DATA,877.43,FOSTERING ALLOWANCES,PAYMENTS TO CARERS,REDACTED,REDACTED,X,10
05.05.2021,CHILDREN AND FAMILIES,REDACTED PERSONAL DATA,877.43,FOSTERING ALLOWANCES,PAYMENTS TO CARERS,REDACTED,REDACTED,X,10
05.05.2021,CHILDREN AND FAMILIES,REDACTED PERSONAL DATA,877.43,FOSTERING ALLOWANCES,PAYMENTS TO CARERS,REDACTED,REDACTED,X,10
05.05.2021,CHILDREN AND FAMILIES,REDACTED PERSONAL DATA,877.43,FOSTERING ALLOWANCES,PAYMENTS TO CARERS,REDACTED,REDACTED,X,10
05.05.2021,CHILDREN AND FAMILIES,REDACTED PERSONAL DATA,877.43,FOSTERING ALLOWANCES,PAYMENTS TO CARERS,REDACTED,REDACTED,X,10
05.05.2021,CHILDREN AND FAMILIES,REDACTED PERSONAL DATA,877.43,FOSTERING ALLOWANCES,PAYMENTS TO CARERS,REDACTED,REDACTED,X,10
05.05.2021,CHILDREN AND FAMILIES,REDACTED PERSONAL DATA,877.43,FOSTERING ALLOWANCES,PAYMENTS TO CARERS,REDACTED,REDACTED,X,10
05.05.2021,CHILDREN AND FAMILIES,REDACTED PERSONAL DATA,877.43,FOSTERING ALLOWANCES,PAYMENTS TO CARERS,REDACTED,REDACTED,X,10
05.05.2021,CHILDREN AND FAMILIES,REDACTED PERSONAL DATA,877.43,FOSTERING ALLOWANCES,PAYMENTS TO CARERS,REDACTED,REDACTED,X,10
05.05.2021,CHILDREN AND FAMILIES,REDACTED PERSONAL DATA,877.43,FOSTERING ALLOWANCES,PAYMENTS TO CARERS,REDACTED,REDACTED,X,10
05.05.2021,CHILDREN AND FAMILIES,REDACTED PERSONAL DATA,879.42,FOSTERING ALLOWANCES,PAYMENTS TO CARERS,REDACTED,REDACTED,X,10
05.05.2021,CHILDREN AND FAMILIES,REDACTED PERSONAL DATA,879.42,FOSTERING ALLOWANCES,PAYMENTS TO CARERS,REDACTED,REDACTED,X,10
05.05.2021,CHILDREN AND FAMILIES,REDACTED PERSONAL DATA,879.72,FOSTERING ALLOWANCES,PAYMENTS TO CARERS,REDACTED,REDACTED,X,10
05.05.2021,CHILDREN AND FAMILIES,REDACTED PERSONAL DATA,879.72,FOSTERING ALLOWANCES,PAYMENTS TO CARERS,REDACTED,REDACTED,X,10
05.05.2021,CHILDREN AND FAMILIES,REDACTED PERSONAL DATA,879.72,FOSTERING ALLOWANCES,PAYMENTS TO CARERS,REDACTED,REDACTED,X,10
05.05.2021,CHILDREN AND FAMILIES,REDACTED PERSONAL DATA,879.72,FOSTERING ALLOWANCES,PAYMENTS TO CARERS,REDACTED,REDACTED,X,10
05.05.2021,CHILDREN AND FAMILIES,REDACTED PERSONAL DATA,879.72,FOSTERING ALLOWANCES,PAYMENTS TO CARERS,REDACTED,REDACTED,X,10
05.05.2021,CHILDREN AND FAMILIES,REDACTED PERSONAL DATA,879.72,FOSTERING ALLOWANCES,PAYMENTS TO CARERS,REDACTED,REDACTED,X,10
05.05.2021,CHILDREN AND FAMILIES,REDACTED PERSONAL DATA,879.72,FOSTERING ALLOWANCES,PAYMENTS TO CARERS,REDACTED,REDACTED,X,10
05.05.2021,CHILDREN AND FAMILIES,REDACTED PERSONAL DATA,879.72,FOSTERING ALLOWANCES,PAYMENTS TO CARERS,REDACTED,REDACTED,X,10
05.05.2021,CHILDREN AND FAMILIES,REDACTED PERSONAL DATA,881.71,FOSTERING ALLOWANCES,PAYMENTS TO CARERS,REDACTED,REDACTED,X,10
05.05.2021,CHILDREN AND FAMILIES,REDACTED PERSONAL DATA,881.72,FOSTERING ALLOWANCES,PAYMENTS TO CARERS,REDACTED,REDACTED,X,10
05.05.2021,CHILDREN AND FAMILIES,REDACTED PERSONAL DATA,881.72,FOSTERING ALLOWANCES,PAYMENTS TO CARERS,REDACTED,REDACTED,X,10
05.05.2021,CHILDREN AND FAMILIES,REDACTED PERSONAL DATA,881.72,FOSTERING ALLOWANCES,PAYMENTS TO CARERS,REDACTED,REDACTED,X,10
05.05.2021,CHILDREN AND FAMILIES,REDACTED PERSONAL DATA,881.72,FOSTERING ALLOWANCES,PAYMENTS TO CARERS,REDACTED,REDACTED,X,10
05.05.2021,CHILDREN AND FAMILIES,REDACTED PERSONAL DATA,881.72,FOSTERING ALLOWANCES,PAYMENTS TO CARERS,REDACTED,REDACTED,X,10
05.05.2021,CHILDREN AND FAMILIES,REDACTED PERSONAL DATA,881.72,FOSTERING ALLOWANCES,PAYMENTS TO CARERS,REDACTED,REDACTED,X,10
05.05.2021,CHILDREN AND FAMILIES,REDACTED PERSONAL DATA,881.72,FOSTERING ALLOWANCES,PAYMENTS TO CARERS,REDACTED,REDACTED,X,10
05.05.2021,CHILDREN AND FAMILIES,REDACTED PERSONAL DATA,881.72,FOSTERING ALLOWANCES,PAYMENTS TO CARERS,REDACTED,REDACTED,X,10
05.05.2021,CHILDREN AND FAMILIES,REDACTED PERSONAL DATA,881.72,FOSTERING ALLOWANCES,PAYMENTS TO CARERS,REDACTED,REDACTED,X,10
05.05.2021,CHILDREN AND FAMILIES,REDACTED PERSONAL DATA,881.72,FOSTERING ALLOWANCES,PAYMENTS TO CARERS,REDACTED,REDACTED,X,10
05.05.2021,CHILDREN AND FAMILIES,REDACTED PERSONAL DATA,881.72,FOSTERING ALLOWANCES,PAYMENTS TO CARERS,REDACTED,REDACTED,X,10
05.05.2021,CHILDREN AND FAMILIES,REDACTED PERSONAL DATA,881.72,FOSTERING ALLOWANCES,PAYMENTS TO CARERS,REDACTED,REDACTED,X,10
05.05.2021,CHILDREN AND FAMILIES,REDACTED PERSONAL DATA,881.72,FOSTERING ALLOWANCES,PAYMENTS TO CARERS,REDACTED,REDACTED,X,10
05.05.2021,CHILDREN AND FAMILIES,REDACTED PERSONAL DATA,881.72,FOSTERING ALLOWANCES,PAYMENTS TO CARERS,REDACTED,REDACTED,X,10
05.05.2021,CHILDREN AND FAMILIES,REDACTED PERSONAL DATA,881.72,FOSTERING ALLOWANCES,PAYMENTS TO CARERS,REDACTED,REDACTED,X,10
05.05.2021,CHILDREN AND FAMILIES,REDACTED PERSONAL DATA,881.72,FOSTERING ALLOWANCES,PAYMENTS TO CARERS,REDACTED,REDACTED,X,10
05.05.2021,CHILDREN AND FAMILIES,REDACTED PERSONAL DATA,881.72,FOSTERING ALLOWANCES,PAYMENTS TO CARERS,REDACTED,REDACTED,X,10
05.05.2021,CHILDREN AND FAMILIES,REDACTED PERSONAL DATA,881.72,FOSTERING ALLOWANCES,PAYMENTS TO CARERS,REDACTED,REDACTED,X,10
05.05.2021,CHILDREN AND FAMILIES,REDACTED PERSONAL DATA,911.43,FOSTERING ALLOWANCES,PAYMENTS TO CARERS,REDACTED,REDACTED,X,10
05.05.2021,CHILDREN AND FAMILIES,REDACTED PERSONAL DATA,911.43,FOSTERING ALLOWANCES,PAYMENTS TO CARERS,REDACTED,REDACTED,X,10
05.05.2021,CHILDREN AND FAMILIES,REDACTED PERSONAL DATA,920,FOSTERING ALLOWANCES,PAYMENTS TO CARERS,REDACTED,REDACTED,X,10
05.05.2021,CHILDREN AND FAMILIES,REDACTED PERSONAL DATA,935.43,FOSTERING ALLOWANCES,PAYMENTS TO CARERS,REDACTED,REDACTED,X,10
05.05.2021,CHILDREN AND FAMILIES,REDACTED PERSONAL DATA,937.72,FOSTERING ALLOWANCES,PAYMENTS TO CARERS,REDACTED,REDACTED,X,10
05.05.2021,CHILDREN AND FAMILIES,REDACTED PERSONAL DATA,937.72,FOSTERING ALLOWANCES,PAYMENTS TO CARERS,REDACTED,REDACTED,X,10
05.05.2021,CHILDREN AND FAMILIES,REDACTED PERSONAL DATA,937.72,FOSTERING ALLOWANCES,PAYMENTS TO CARERS,REDACTED,REDACTED,X,10
05.05.2021,CHILDREN AND FAMILIES,REDACTED PERSONAL DATA,946,FOSTERING ALLOWANCES,PAYMENTS TO CARERS,REDACTED,REDACTED,X,10
05.05.2021,CHILDREN AND FAMILIES,REDACTED PERSONAL DATA,954,FOSTERING ALLOWANCES,PAYMENTS TO CARERS,REDACTED,REDACTED,X,10
05.05.2021,CHILDREN AND FAMILIES,REDACTED PERSONAL DATA,969.43,FOSTERING ALLOWANCES,PAYMENTS TO CARERS,REDACTED,REDACTED,X,10
05.05.2021,CHILDREN AND FAMILIES,REDACTED PERSONAL DATA,969.43,FOSTERING ALLOWANCES,PAYMENTS TO CARERS,REDACTED,REDACTED,X,10
05.05.2021,CHILDREN AND FAMILIES,REDACTED PERSONAL DATA,969.43,FOSTERING ALLOWANCES,PAYMENTS TO CARERS,REDACTED,REDACTED,X,10
05.05.2021,CHILDREN AND FAMILIES,REDACTED PERSONAL DATA,969.43,FOSTERING ALLOWANCES,PAYMENTS TO CARERS,REDACTED,REDACTED,X,10
05.05.2021,CHILDREN AND FAMILIES,REDACTED PERSONAL DATA,969.43,FOSTERING ALLOWANCES,PAYMENTS TO CARERS,REDACTED,REDACTED,X,10
05.05.2021,CHILDREN AND FAMILIES,REDACTED PERSONAL DATA,969.43,FOSTERING ALLOWANCES,PAYMENTS TO CARERS,REDACTED,REDACTED,X,10
05.05.2021,CHILDREN AND FAMILIES,REDACTED PERSONAL DATA,969.43,FOSTERING ALLOWANCES,PAYMENTS TO CARERS,REDACTED,REDACTED,X,10
05.05.2021,CHILDREN AND FAMILIES,REDACTED PERSONAL DATA,971.71,FOSTERING ALLOWANCES,PAYMENTS TO CARERS,REDACTED,REDACTED,X,10
05.05.2021,CHILDREN AND FAMILIES,REDACTED PERSONAL DATA,984,FOSTERING ALLOWANCES,PAYMENTS TO CARERS,REDACTED,REDACTED,X,10
05.05.2021,CHILDREN AND FAMILIES,REDACTED PERSONAL DATA,"1,166.00",FOSTERING ALLOWANCES,PAYMENTS TO CARERS,REDACTED,REDACTED,X,10
05.05.2021,CHILDREN AND FAMILIES,REDACTED PERSONAL DATA,"1,360.71",FOSTERING ALLOWANCES,PAYMENTS TO CARERS,REDACTED,REDACTED,X,10
05.05.2021,CHILDREN AND FAMILIES,REDACTED PERSONAL DATA,"1,632.00",FOSTERING ALLOWANCES,PAYMENTS TO CARERS,REDACTED,REDACTED,X,10
05.05.2021,CHILDREN AND FAMILIES,REDACTED PERSONAL DATA,"1,632.00",FOSTERING ALLOWANCES,PAYMENTS TO CARERS,REDACTED,REDACTED,X,10
05.05.2021,CHILDREN AND FAMILIES,REDACTED PERSONAL DATA,"1,632.00",FOSTERING ALLOWANCES,PAYMENTS TO CARERS,REDACTED,REDACTED,X,10
05.05.2021,CHILDREN AND FAMILIES,REDACTED PERSONAL DATA,"1,632.00",FOSTERING ALLOWANCES,PAYMENTS TO CARERS,REDACTED,REDACTED,X,10
05.05.2021,CHILDREN AND FAMILIES,REDACTED PERSONAL DATA,"1,632.00",FOSTERING ALLOWANCES,PAYMENTS TO CARERS,REDACTED,REDACTED,X,10
05.05.2021,CHILDREN AND FAMILIES,REDACTED PERSONAL DATA,"1,632.00",FOSTERING ALLOWANCES,PAYMENTS TO CARERS,REDACTED,REDACTED,X,10
05.05.2021,CHILDREN AND FAMILIES,REDACTED PERSONAL DATA,"1,632.00",FOSTERING ALLOWANCES,PAYMENTS TO CARERS,REDACTED,REDACTED,X,10
05.05.2021,CHILDREN AND FAMILIES,REDACTED PERSONAL DATA,"1,713.10",FOSTERING ALLOWANCES,PAYMENTS TO CARERS,REDACTED,REDACTED,X,10
05.05.2021,CHILDREN AND FAMILIES,REDACTED PERSONAL DATA,"1,734.00",FOSTERING ALLOWANCES,PAYMENTS TO CARERS,REDACTED,REDACTED,X,10
05.05.2021,CHILDREN AND FAMILIES,REDACTED PERSONAL DATA,"2,484.00",FOSTERING ALLOWANCES,PAYMENTS TO CARERS,REDACTED,REDACTED,X,10
05.05.2021,CHILDREN AND FAMILIES,REDACTED PERSONAL DATA,500,LEAVING CARE GRANT,OTHER PAYMENTS FOR CLIENTS,REDACTED,REDACTED,X,10
05.05.2021,CHILDREN AND FAMILIES,HOLLY BRYAN ASSOCIATES LTD,"3,600.00",MANAGEMENT INFORMATION UNIT,PROFESSIONAL FEES,5902467436,1000077962,y,4
05.05.2021,CHILDREN AND FAMILIES,REDACTED PERSONAL DATA,600,SFS MGMT & SUPPORT,OTHER PAYMENTS FOR CLIENTS,REDACTED,REDACTED,X,10
05.05.2021,CHILDREN AND FAMILIES,REDACTED PERSONAL DATA,265.4,STAYPUT- FOST CARERS,PAYMENTS TO CARERS,REDACTED,REDACTED,X,10
05.05.2021,CHILDREN AND FAMILIES,REDACTED PERSONAL DATA,500,STAYPUT- FOST CARERS,PAYMENTS TO CARERS,REDACTED,REDACTED,X,10
05.05.2021,CHILDREN AND FAMILIES,REDACTED PERSONAL DATA,500,STAYPUT- FOST CARERS,PAYMENTS TO CARERS,REDACTED,REDACTED,X,10
05.05.2021,CHILDREN AND FAMILIES,REDACTED PERSONAL DATA,500,STAYPUT- FOST CARERS,PAYMENTS TO CARERS,REDACTED,REDACTED,X,10
05.05.2021,CHILDREN AND FAMILIES,REDACTED PERSONAL DATA,500,STAYPUT- FOST CARERS,PAYMENTS TO CARERS,REDACTED,REDACTED,X,10
05.05.2021,CHILDREN AND FAMILIES,REDACTED PERSONAL DATA,500,STAYPUT- FOST CARERS,PAYMENTS TO CARERS,REDACTED,REDACTED,X,10
05.05.2021,CHILDREN AND FAMILIES,REDACTED PERSONAL DATA,500,STAYPUT- FOST CARERS,PAYMENTS TO CARERS,REDACTED,REDACTED,X,10
05.05.2021,CHILDREN AND FAMILIES,REDACTED PERSONAL DATA,500,STAYPUT- FOST CARERS,PAYMENTS TO CARERS,REDACTED,REDACTED,X,10
05.05.2021,CHILDREN AND FAMILIES,REDACTED PERSONAL DATA,500,STAYPUT- FOST CARERS,PAYMENTS TO CARERS,REDACTED,REDACTED,X,10
05.05.2021,CHILDREN AND FAMILIES,REDACTED PERSONAL DATA,500,STAYPUT- FOST CARERS,PAYMENTS TO CARERS,REDACTED,REDACTED,X,10
05.05.2021,CHILDREN AND FAMILIES,REDACTED PERSONAL DATA,500,STAYPUT- FOST CARERS,PAYMENTS TO CARERS,REDACTED,REDACTED,X,10
05.05.2021,CHILDREN AND FAMILIES,REDACTED PERSONAL DATA,500,STAYPUT- FOST CARERS,PAYMENTS TO CARERS,REDACTED,REDACTED,X,10
05.05.2021,CHILDREN AND FAMILIES,REDACTED PERSONAL DATA,500,STAYPUT- FOST CARERS,PAYMENTS TO CARERS,REDACTED,REDACTED,X,10
05.05.2021,CHILDREN AND FAMILIES,REDACTED PERSONAL DATA,500,STAYPUT- FOST CARERS,PAYMENTS TO CARERS,REDACTED,REDACTED,X,10
05.05.2021,CHILDREN AND FAMILIES,REDACTED PERSONAL DATA,500,STAYPUT- FOST CARERS,PAYMENTS TO CARERS,REDACTED,REDACTED,X,10
05.05.2021,CHILDREN AND FAMILIES,REDACTED PERSONAL DATA,500,STAYPUT- FOST CARERS,PAYMENTS TO CARERS,REDACTED,REDACTED,X,10
05.05.2021,CHILDREN AND FAMILIES,REDACTED PERSONAL DATA,500,STAYPUT- FOST CARERS,PAYMENTS TO CARERS,REDACTED,REDACTED,X,10
05.05.2021,CHILDREN AND FAMILIES,REDACTED PERSONAL DATA,500,STAYPUT- FOST CARERS,PAYMENTS TO CARERS,REDACTED,REDACTED,X,10
05.05.2021,CHILDREN AND FAMILIES,REDACTED PERSONAL DATA,500,STAYPUT- FOST CARERS,PAYMENTS TO CARERS,REDACTED,REDACTED,X,10
05.05.2021,CHILDREN AND FAMILIES,REDACTED PERSONAL DATA,500,STAYPUT- FOST CARERS,PAYMENTS TO CARERS,REDACTED,REDACTED,X,10
05.05.2021,CHILDREN AND FAMILIES,REDACTED PERSONAL DATA,500,STAYPUT- FOST CARERS,PAYMENTS TO CARERS,REDACTED,REDACTED,X,10
05.05.2021,CHILDREN AND FAMILIES,REDACTED PERSONAL DATA,500,STAYPUT- FOST CARERS,PAYMENTS TO CARERS,REDACTED,REDACTED,X,10
05.05.2021,CHILDREN AND FAMILIES,REDACTED PERSONAL DATA,500,STAYPUT- FOST CARERS,PAYMENTS TO CARERS,REDACTED,REDACTED,X,10
05.05.2021,CHILDREN AND FAMILIES,REDACTED PERSONAL DATA,500,STAYPUT- FOST CARERS,PAYMENTS TO CARERS,REDACTED,REDACTED,X,10
05.05.2021,CHILDREN AND FAMILIES,REDACTED PERSONAL DATA,500,STAYPUT- FOST CARERS,PAYMENTS TO CARERS,REDACTED,REDACTED,X,10
05.05.2021,CHILDREN AND FAMILIES,REDACTED PERSONAL DATA,500,STAYPUT- FOST CARERS,PAYMENTS TO CARERS,REDACTED,REDACTED,X,10
05.05.2021,CHILDREN AND FAMILIES,REDACTED PERSONAL DATA,500,STAYPUT- FOST CARERS,PAYMENTS TO CARERS,REDACTED,REDACTED,X,10
05.05.2021,CHILDREN AND FAMILIES,REDACTED PERSONAL DATA,500,STAYPUT- FOST CARERS,PAYMENTS TO CARERS,REDACTED,REDACTED,X,10
05.05.2021,CHILDREN AND FAMILIES,REDACTED PERSONAL DATA,500,STAYPUT- FOST CARERS,PAYMENTS TO CARERS,REDACTED,REDACTED,X,10
05.05.2021,CHILDREN AND FAMILIES,REDACTED PERSONAL DATA,558,STAYPUT- FOST CARERS,PAYMENTS TO CARERS,REDACTED,REDACTED,X,10
05.05.2021,CHILDREN AND FAMILIES,REDACTED PERSONAL DATA,600,STAYPUT- FOST CARERS,PAYMENTS TO CARERS,REDACTED,REDACTED,X,10
05.05.2021,CHILDREN AND FAMILIES,REDACTED PERSONAL DATA,700,STAYPUT- FOST CARERS,PAYMENTS TO CARERS,REDACTED,REDACTED,X,10
05.05.2021,CHILDREN AND FAMILIES,REDACTED PERSONAL DATA,784,STAYPUT- FOST CARERS,PAYMENTS TO CARERS,REDACTED,REDACTED,X,10
05.05.2021,CHILDREN AND FAMILIES,REDACTED PERSONAL DATA,832,STAYPUT- FOST CARERS,PAYMENTS TO CARERS,REDACTED,REDACTED,X,10
05.05.2021,CHILDREN AND FAMILIES,REDACTED PERSONAL DATA,852,STAYPUT- FOST CARERS,PAYMENTS TO CARERS,REDACTED,REDACTED,X,10
05.05.2021,CHILDREN AND FAMILIES,REDACTED PERSONAL DATA,"2,500.00",STAYPUT- FOST CARERS,PAYMENTS TO CARERS,REDACTED,REDACTED,X,10
05.05.2021,CHILDREN AND FAMILIES,SOUTH OF THE RIVER INVESTMENTS LTD,"2,253.70",TEMP ACCOM FOR IH,EXTERNAL AGENCIES AND BODIES,5902467451,1000073638,y,4
05.05.2021,COMMUNITIES,SURREY GARDENS T&RA,"1,650.00",RESIDENTS PARTICIPATION FUND,GRANTS,5902467353,11021583,y,4
05.05.2021,COMMUNITIES,BELLS GARDENS T&RA,"2,000.00",RESIDENTS PARTICIPATION FUND,GRANTS,5902467348,1000058350,y,4
05.05.2021,CUSTOMER EXPERIENCE HGF,JAOX LTD,"1,025.48",HOMELESS PROJECTS,GRANTS,5902467448,1000086663,y,4
05.05.2021,CUSTOMER EXPERIENCE HGF,WE LET ROOMS LTD,"1,230.00",HOMELESS PROJECTS,GRANTS,5902467427,1000086662,y,4
05.05.2021,CUSTOMER EXPERIENCE HGF,WE LET ROOMS LTD,"1,230.00",HOMELESS PROJECTS,GRANTS,5902467429,1000086662,y,4
05.05.2021,CUSTOMER EXPERIENCE HGF,TOBY DANIEL DIXON,"1,461.53",HOMELESS PROJECTS,GRANTS,5902467445,1000086664,y,9
05.05.2021,CUSTOMER EXPERIENCE HGF,PAUL FASHADE,"2,292.00",HOMELESS PROJECTS,GRANTS,5902467434,1000086657,y,9
05.05.2021,CUSTOMER EXPERIENCE HGF,MARGERIE ADAM,"2,300.00",HOMELESS PROJECTS,GRANTS,5902467446,1000086665,y,9
05.05.2021,CUSTOMER EXPERIENCE HGF,SHELIA ROSE FOSTER,"2,600.00",HOMELESS PROJECTS,GRANTS,5902467444,1000086666,y,9
05.05.2021,CUSTOMER EXPERIENCE HGF,LOOK AHEAD CARE AND SUPPORT LTD,450,HOUSING OPTIONS,EXTERNAL AGENCIES AND BODIES,5902467343,1000072923,y,4
05.05.2021,CUSTOMER EXPERIENCE HGF,GOLDSTONE ESTATES LTD,"7,984.00",NIGHTLY TA (NSC),EXTERNAL AGENCIES AND BODIES,5902467467,1000076548,y,4
05.05.2021,CUSTOMER EXPERIENCE HGF,CITYGLEN LTD,"24,409.00",NIGHTLY TA (NSC),EXTERNAL AGENCIES AND BODIES,5902467344,1000026239,y,4
05.05.2021,CUSTOMER EXPERIENCE HGF,STENFORD PROPERTY LTD,"45,976.80",NIGHTLY TA (NSC),EXTERNAL AGENCIES AND BODIES,5902467428,1000074759,y,4
05.05.2021,CUSTOMER EXPERIENCE HGF,AVF LONDON LLP,"1,000.00",PSL (SOCIAL LETTINGS),EXTERNAL AGENCIES AND BODIES,2103258352,1000086647,y,4
05.05.2021,CUSTOMER EXPERIENCE HGF,AVF LONDON LLP,"2,000.00",PSL (SOCIAL LETTINGS),EXTERNAL AGENCIES AND BODIES,2103258354,1000086647,y,4
05.05.2021,CUSTOMER EXPERIENCE HGF,AVF LONDON LLP,"2,267.14",PSL (SOCIAL LETTINGS),EXTERNAL AGENCIES AND BODIES,2103258351,1000086647,y,4
05.05.2021,CUSTOMER EXPERIENCE HGF,AVF LONDON LLP,"2,957.14",PSL (SOCIAL LETTINGS),EXTERNAL AGENCIES AND BODIES,2103258353,1000086647,y,4
05.05.2021,EDUCATION,HATS GROUP LTD,"78,427.23",SCH TRANS � TRAVEL,CAB FARES,5902467468,1000042743,y,4
05.05.2021,ENVIRONMENT AND LEISURE,HILLIER NURSERIES LTD,267,CAPITAL PS (LEISURE),CONSTRUCTION FEES,5902467395,1000036638,y,4
05.05.2021,ENVIRONMENT AND LEISURE,HILLIER NURSERIES LTD,275,CAPITAL PS (LEISURE),CONSTRUCTION FEES,5902467400,1000036638,y,4
05.05.2021,ENVIRONMENT AND LEISURE,HILLIER NURSERIES LTD,494,CAPITAL PS (LEISURE),CONSTRUCTION FEES,5902467408,1000036638,y,4
05.05.2021,ENVIRONMENT AND LEISURE,HILLIER NURSERIES LTD,632,CAPITAL PS (LEISURE),CONSTRUCTION FEES,5902467401,1000036638,y,4
05.05.2021,ENVIRONMENT AND LEISURE,HILLIER NURSERIES LTD,872,CAPITAL PS (LEISURE),CONSTRUCTION FEES,5902467385,1000036638,y,4
05.05.2021,ENVIRONMENT AND LEISURE,HILLIER NURSERIES LTD,"1,148.00",CAPITAL PS (LEISURE),CONSTRUCTION FEES,5902467391,1000036638,y,4
05.05.2021,ENVIRONMENT AND LEISURE,HILLIER NURSERIES LTD,"1,259.00",CAPITAL PS (LEISURE),CONSTRUCTION FEES,5902467397,1000036638,y,4
05.05.2021,ENVIRONMENT AND LEISURE,HILLIER NURSERIES LTD,"2,649.00",CAPITAL PS (LEISURE),CONSTRUCTION FEES,5902467389,1000036638,y,4
05.05.2021,ENVIRONMENT AND LEISURE,HILLIER NURSERIES LTD,"5,774.00",CAPITAL PS (LEISURE),CONSTRUCTION FEES,5902467406,1000036638,y,4
05.05.2021,ENVIRONMENT DIRECTORATE,SMI INT GROUP LTD,430.5,GROUNDS (CENTRAL),"CLOTHING, UNIFORMS & LAUNDRY",5902467420,1000076606,y,4
05.05.2021,ENVIRONMENT DIRECTORATE,RICS,"1,530.00",HIGHWAYS MINOR WORKS - PRINCIPAL ROADS,OTHER CONTRACTORS,5902467465,1000015523,y,4
05.05.2021,ENVIRONMENT DIRECTORATE,KENT COUNTY COUNCIL,424,TRADING STANDARDS,PROFESSIONAL FEES,5902467463,1000053817,y,8
05.05.2021,F & C S EXCLUDING CORPORATE BUDGETS,NORTHGATE PUBLIC SERVICES (UK) LTD,750,ADMINISTRATIVE SUPPORT,SOFTWARE,5902467335,1000037405,y,4
05.05.2021,HOUSING,OCO LIMITED,"138,474.17",PAYMENTS CONTROL ACCOUNT - OCO,I-WORLD CONTRACTORS HOLDING ACCOUNT,5902467378,1006066,y,4
05.05.2021,HOUSING,SMITH & BYFORD LTD,"113,765.58",SMITH AND BYFORD,I-WORLD CONTRACTORS HOLDING ACCOUNT,5902467379,11212119,y,4
05.05.2021,HOUSING HRA,VITAL ENERGI UTILITIES LTD,"496,046.44",CAPITAL PS (HRA),CONSTRUCTION MAIN CONTRACT -CERTIFICATED,2103257447,3000001040,y,4
05.05.2021,LEISURE DIRECTORATE,AURELIA LTD,"1,725.00",SDM BUDGET,TRAINING,5902467438,1000053906,y,4
05.05.2021,LEISURE DIRECTORATE,ASKEWS & HOLTS LIBRARY SERVICES LTD,460.32,STOCK SERVICES,BOOKS & PUBLICATIONS,5902467449,1494168,y,4
05.05.2021,LEISURE DIRECTORATE,ASKEWS & HOLTS LIBRARY SERVICES LTD,"39,449.87",STOCK SERVICES,BOOKS & PUBLICATIONS,5902467454,1494168,y,4
05.05.2021,PUBLIC HEALTH,ELITE GUARDING (UK) LTD,"9,057.00",COVID-19 MASS RAPID TESTING,EXTERNAL AGENCIES AND BODIES,5902467347,1000086183,y,4
05.05.2021,PUBLIC HEALTH,ELITE GUARDING (UK) LTD,"24,205.00",COVID-19 MASS RAPID TESTING,EXTERNAL AGENCIES AND BODIES,5902467347,1000086183,y,4
05.05.2021,REGENERATION,TIBBALDS PLANNING & URBAN DESIGN LTD,"20,944.50",MASTER PLAN-H/WAY & TRANS INTERCHANGE,PROFESSIONAL FEES,5902467350,1000029772,y,4
05.05.2021,REGENERATION,ADAM KHAN ARCHITECTS LTD,"15,000.00",PECKHAM/CAMBERWELL SITES-FEES/MPLAN,CONSULTANTS SERVICES,5902467349,1000076029,y,4
05.05.2021,RESIDENT SERVICES,CONANT & RUTLEY T&RA,"3,000.00",PARKING CONTROL,MATERIALS,5902466888,1000068263,y,4
05.05.2021,RESIDENT SERVICES,COMPASS CONTRACT SERVICES (UK) LTD,-335,SUPPORTED HOSTELS,CATERING MATERIALS & SUPPLIES,5902467116,1000010625,y,4
05.05.2021,RESIDENT SERVICES,COMPASS CONTRACT SERVICES (UK) LTD,600.87,SUPPORTED HOSTELS,CATERING MATERIALS & SUPPLIES,5902467415,1000010625,y,4
05.05.2021,SBS SUPPORT,EE LTD (AIRTIME ACCOUNT),"4,899.10",R & M OVERHEADS,TELEPHONES (MOBILES),5902467414,1000079805,y,4
05.05.2021,SOUTHWARK BUILDING SERVICES,"BROWNING, JONES & MORRIS LTD",251.91,STORES/LOGISTICS,CREDITORS -GR/IR CLEARING ACCOUNT,5902467356,1027429,y,4
05.05.2021,SOUTHWARK BUILDING SERVICES,FAYERS PLUMBING & BUILDING SUPPLIES,282.3,STORES/LOGISTICS,CREDITORS -GR/IR CLEARING ACCOUNT,5902467456,1572765,y,4
05.05.2021,SOUTHWARK BUILDING SERVICES,"BROWNING, JONES & MORRIS LTD",299.4,STORES/LOGISTICS,CREDITORS -GR/IR CLEARING ACCOUNT,5902467370,1027429,y,4
05.05.2021,SOUTHWARK BUILDING SERVICES,"BROWNING, JONES & MORRIS LTD",383.76,STORES/LOGISTICS,CREDITORS -GR/IR CLEARING ACCOUNT,5902467471,1027429,y,4
05.05.2021,SOUTHWARK BUILDING SERVICES,"BROWNING, JONES & MORRIS LTD",453.6,STORES/LOGISTICS,CREDITORS -GR/IR CLEARING ACCOUNT,5902467365,1027429,y,4
05.05.2021,SOUTHWARK BUILDING SERVICES,"BROWNING, JONES & MORRIS LTD",489.42,STORES/LOGISTICS,CREDITORS -GR/IR CLEARING ACCOUNT,5902467364,1027429,y,4
05.05.2021,SOUTHWARK BUILDING SERVICES,"BROWNING, JONES & MORRIS LTD",489.42,STORES/LOGISTICS,CREDITORS -GR/IR CLEARING ACCOUNT,5902467364,1027429,y,4
05.05.2021,SOUTHWARK BUILDING SERVICES,"BROWNING, JONES & MORRIS LTD",587.79,STORES/LOGISTICS,CREDITORS -GR/IR CLEARING ACCOUNT,5902467354,1027429,y,4
05.05.2021,SOUTHWARK BUILDING SERVICES,"BROWNING, JONES & MORRIS LTD",990,STORES/LOGISTICS,CREDITORS -GR/IR CLEARING ACCOUNT,5902467359,1027429,y,4
05.05.2021,SOUTHWARK BUILDING SERVICES,"BROWNING, JONES & MORRIS LTD",990,STORES/LOGISTICS,CREDITORS -GR/IR CLEARING ACCOUNT,5902467360,1027429,y,4
05.05.2021,SOUTHWARK BUILDING SERVICES,"BROWNING, JONES & MORRIS LTD","1,032.00",STORES/LOGISTICS,CREDITORS -GR/IR CLEARING ACCOUNT,5902467471,1027429,y,4
05.05.2021,SOUTHWARK BUILDING SERVICES,"BROWNING, JONES & MORRIS LTD","1,110.60",STORES/LOGISTICS,CREDITORS -GR/IR CLEARING ACCOUNT,5902467364,1027429,y,4
05.05.2021,SOUTHWARK BUILDING SERVICES,KEMICO LIMITED,"4,797.00",STORES/LOGISTICS,CREDITORS -GR/IR CLEARING ACCOUNT,5902467407,1000030226,y,4
06.05.2021,ADULT SOCIAL CARE,METRO HOMECARE LTD,"35,200.69",DIR OF ASC,EXTERNAL AGENCIES AND BODIES,5902466980,1000070695,y,4
06.05.2021,ADULT SOCIAL CARE,MEDACS HOMECARE,"1,008.00",LD LTS 18-64,HOMECARE - C&V,2103258746,11287415,y,4
06.05.2021,ADULT SOCIAL CARE,MEDACS HOMECARE,"1,199.25",LD LTS 18-64,HOMECARE - C&V,2103258763,11287415,y,4
06.05.2021,ADULT SOCIAL CARE,SUPREME CARE SERVICES LTD,977.2,LD LTS 65+,HOMECARE - C&V,2103258827,1000059416,y,4
06.05.2021,ADULT SOCIAL CARE,SUPREME CARE SERVICES LTD,254.26,MEM LTS 65+,HOMECARE - C&V,2103258825,1000059416,y,4
06.05.2021,ADULT SOCIAL CARE,MEDACS HOMECARE,897.26,MEM LTS 65+,HOMECARE - C&V,2103258743,11287415,y,4
06.05.2021,ADULT SOCIAL CARE,MEDACS HOMECARE,"1,267.36",MEM LTS 65+,HOMECARE - C&V,2103258756,11287415,y,4
06.05.2021,ADULT SOCIAL CARE,MEDACS HOMECARE,499.5,MH LTS 18-64,HOMECARE - C&V,2103258774,11287415,y,4
06.05.2021,ADULT SOCIAL CARE,PAULWAYS KENNELS,570,MH LTS 18-64,OTHER PAYMENTS FOR CLIENTS,2103258831,1068767,y,4
06.05.2021,ADULT SOCIAL CARE,MEDACS HOMECARE,707.39,MH LTS 18-64,HOMECARE - C&V,2103258772,11287415,y,4
06.05.2021,ADULT SOCIAL CARE,OASIS CARE AND TRAINING AGENCY,824.2,MH LTS 18-64,SUPPORTED LIVING,2103258832,1000003687,y,4
06.05.2021,ADULT SOCIAL CARE,MEDACS HOMECARE,"1,534.50",MH LTS 18-64,HOMECARE - C&V,2103258801,11287415,y,4
06.05.2021,ADULT SOCIAL CARE,MEDACS HOMECARE,"1,552.52",MH LTS 18-64,HOMECARE - C&V,2103258771,11287415,y,4
06.05.2021,ADULT SOCIAL CARE,MEDACS HOMECARE,490.5,MH LTS 65+,HOMECARE - C&V,2103258762,11287415,y,4
06.05.2021,ADULT SOCIAL CARE,MEDACS HOMECARE,252,PHY LTS 18-64,HOMECARE - C&V,2103258747,11287415,y,4
06.05.2021,ADULT SOCIAL CARE,MEDACS HOMECARE,265.5,PHY LTS 18-64,HOMECARE - C&V,2103258736,11287415,y,4
06.05.2021,ADULT SOCIAL CARE,MEDACS HOMECARE,283.5,PHY LTS 18-64,HOMECARE - C&V,2103258745,11287415,y,4
06.05.2021,ADULT SOCIAL CARE,MEDACS HOMECARE,288,PHY LTS 18-64,HOMECARE - C&V,2103258783,11287415,y,4
06.05.2021,ADULT SOCIAL CARE,MEDACS HOMECARE,288.99,PHY LTS 18-64,HOMECARE - C&V,2103258740,11287415,y,4
06.05.2021,ADULT SOCIAL CARE,MEDACS HOMECARE,306.36,PHY LTS 18-64,HOMECARE - C&V,2103258759,11287415,y,4
06.05.2021,ADULT SOCIAL CARE,MEDACS HOMECARE,319.5,PHY LTS 18-64,HOMECARE - C&V,2103258808,11287415,y,4
06.05.2021,ADULT SOCIAL CARE,MEDACS HOMECARE,373.5,PHY LTS 18-64,HOMECARE - C&V,2103258793,11287415,y,4
06.05.2021,ADULT SOCIAL CARE,MEDACS HOMECARE,379.62,PHY LTS 18-64,HOMECARE - C&V,2103258761,11287415,y,4
06.05.2021,ADULT SOCIAL CARE,MEDACS HOMECARE,405,PHY LTS 18-64,HOMECARE - C&V,2103258752,11287415,y,4
06.05.2021,ADULT SOCIAL CARE,MEDACS HOMECARE,499.5,PHY LTS 18-64,HOMECARE - C&V,2103258797,11287415,y,4
06.05.2021,ADULT SOCIAL CARE,MEDACS HOMECARE,549.34,PHY LTS 18-64,HOMECARE - C&V,2103258750,11287415,y,4
06.05.2021,ADULT SOCIAL CARE,MEDACS HOMECARE,585,PHY LTS 18-64,HOMECARE - C&V,2103258802,11287415,y,4
06.05.2021,ADULT SOCIAL CARE,MEDACS HOMECARE,648,PHY LTS 18-64,HOMECARE - C&V,2103258767,11287415,y,4
06.05.2021,ADULT SOCIAL CARE,MEDACS HOMECARE,679.5,PHY LTS 18-64,HOMECARE - C&V,2103258798,11287415,y,4
06.05.2021,ADULT SOCIAL CARE,MEDACS HOMECARE,738,PHY LTS 18-64,HOMECARE - C&V,2103258742,11287415,y,4
06.05.2021,ADULT SOCIAL CARE,SUPREME CARE SERVICES LTD,889.96,PHY LTS 18-64,HOMECARE - C&V,2103258817,1000059416,y,4
06.05.2021,ADULT SOCIAL CARE,SUPREME CARE SERVICES LTD,"1,020.83",PHY LTS 18-64,HOMECARE - C&V,2103258821,1000059416,y,4
06.05.2021,ADULT SOCIAL CARE,MEDACS HOMECARE,"1,273.50",PHY LTS 18-64,HOMECARE - C&V,2103258782,11287415,y,4
06.05.2021,ADULT SOCIAL CARE,MEDACS HOMECARE,"1,431.00",PHY LTS 18-64,HOMECARE - C&V,2103258778,11287415,y,4
06.05.2021,ADULT SOCIAL CARE,MEDACS HOMECARE,"3,290.86",PHY LTS 18-64,HOMECARE - C&V,2103258744,11287415,y,4
06.05.2021,ADULT SOCIAL CARE,MEDACS HOMECARE,268.4,PHY LTS 65+,HOMECARE - C&V,2103258769,11287415,y,4
06.05.2021,ADULT SOCIAL CARE,MEDACS HOMECARE,270,PHY LTS 65+,HOMECARE - C&V,2103258788,11287415,y,4
06.05.2021,ADULT SOCIAL CARE,MEDACS HOMECARE,323.56,PHY LTS 65+,HOMECARE - C&V,2103258770,11287415,y,4
06.05.2021,ADULT SOCIAL CARE,MEDACS HOMECARE,340.74,PHY LTS 65+,HOMECARE - C&V,2103258811,11287415,y,4
06.05.2021,ADULT SOCIAL CARE,MEDACS HOMECARE,364.5,PHY LTS 65+,HOMECARE - C&V,2103258768,11287415,y,4
06.05.2021,ADULT SOCIAL CARE,MEDACS HOMECARE,364.5,PHY LTS 65+,HOMECARE - C&V,2103258807,11287415,y,4
06.05.2021,ADULT SOCIAL CARE,SUPREME CARE SERVICES LTD,383.92,PHY LTS 65+,HOMECARE - C&V,2103258819,1000059416,y,4
06.05.2021,ADULT SOCIAL CARE,MEDACS HOMECARE,396.86,PHY LTS 65+,HOMECARE - C&V,2103258810,11287415,y,4
06.05.2021,ADULT SOCIAL CARE,MEDACS HOMECARE,530.63,PHY LTS 65+,HOMECARE - C&V,2103258779,11287415,y,4
06.05.2021,ADULT SOCIAL CARE,SUPREME CARE SERVICES LTD,593.32,PHY LTS 65+,HOMECARE - C&V,2103258823,1000059416,y,4
06.05.2021,ADULT SOCIAL CARE,SUPREME CARE SERVICES LTD,610.76,PHY LTS 65+,HOMECARE - C&V,2103258814,1000059416,y,4
06.05.2021,ADULT SOCIAL CARE,MEDACS HOMECARE,672.95,PHY LTS 65+,HOMECARE - C&V,2103258751,11287415,y,4
06.05.2021,ADULT SOCIAL CARE,SUPREME CARE SERVICES LTD,698,PHY LTS 65+,HOMECARE - C&V,2103258828,1000059416,y,4
06.05.2021,ADULT SOCIAL CARE,SUPREME CARE SERVICES LTD,750.36,PHY LTS 65+,HOMECARE - C&V,2103258822,1000059416,y,4
06.05.2021,ADULT SOCIAL CARE,MEDACS HOMECARE,837,PHY LTS 65+,HOMECARE - C&V,2103258804,11287415,y,4
06.05.2021,ADULT SOCIAL CARE,SUPREME CARE SERVICES LTD,855.04,PHY LTS 65+,HOMECARE - C&V,2103258818,1000059416,y,4
06.05.2021,ADULT SOCIAL CARE,MEDACS HOMECARE,862.88,PHY LTS 65+,HOMECARE - C&V,2103258776,11287415,y,4
06.05.2021,ADULT SOCIAL CARE,MEDACS HOMECARE,877.5,PHY LTS 65+,HOMECARE - C&V,2103258803,11287415,y,4
06.05.2021,ADULT SOCIAL CARE,MEDACS HOMECARE,918.9,PHY LTS 65+,HOMECARE - C&V,2103258735,11287415,y,4
06.05.2021,ADULT SOCIAL CARE,MEDACS HOMECARE,943.42,PHY LTS 65+,HOMECARE - C&V,2103258765,11287415,y,4
06.05.2021,ADULT SOCIAL CARE,MEDACS HOMECARE,963,PHY LTS 65+,HOMECARE - C&V,2103258758,11287415,y,4
06.05.2021,ADULT SOCIAL CARE,MEDACS HOMECARE,972,PHY LTS 65+,HOMECARE - C&V,2103258800,11287415,y,4
06.05.2021,ADULT SOCIAL CARE,MEDACS HOMECARE,"1,057.50",PHY LTS 65+,HOMECARE - C&V,2103258749,11287415,y,4
06.05.2021,ADULT SOCIAL CARE,MEDACS HOMECARE,"1,071.00",PHY LTS 65+,HOMECARE - C&V,2103258794,11287415,y,4
06.05.2021,ADULT SOCIAL CARE,MEDACS HOMECARE,"1,075.50",PHY LTS 65+,HOMECARE - C&V,2103258764,11287415,y,4
06.05.2021,ADULT SOCIAL CARE,MEDACS HOMECARE,"1,075.50",PHY LTS 65+,HOMECARE - C&V,2103258780,11287415,y,4
06.05.2021,ADULT SOCIAL CARE,MEDACS HOMECARE,"1,099.96",PHY LTS 65+,HOMECARE - C&V,2103258777,11287415,y,4
06.05.2021,ADULT SOCIAL CARE,MEDACS HOMECARE,"1,138.50",PHY LTS 65+,HOMECARE - C&V,2103258791,11287415,y,4
06.05.2021,ADULT SOCIAL CARE,SUPREME CARE SERVICES LTD,"1,151.72",PHY LTS 65+,HOMECARE - C&V,2103258824,1000059416,y,4
06.05.2021,ADULT SOCIAL CARE,MEDACS HOMECARE,"1,165.50",PHY LTS 65+,HOMECARE - C&V,2103258753,11287415,y,4
06.05.2021,ADULT SOCIAL CARE,MEDACS HOMECARE,"1,170.00",PHY LTS 65+,HOMECARE - C&V,2103258792,11287415,y,4
06.05.2021,ADULT SOCIAL CARE,SUPREME CARE SERVICES LTD,"1,204.04",PHY LTS 65+,HOMECARE - C&V,2103258826,1000059416,y,4
06.05.2021,ADULT SOCIAL CARE,MEDACS HOMECARE,"1,228.50",PHY LTS 65+,HOMECARE - C&V,2103258805,11287415,y,4
06.05.2021,ADULT SOCIAL CARE,MEDACS HOMECARE,"1,273.50",PHY LTS 65+,HOMECARE - C&V,2103258789,11287415,y,4
06.05.2021,ADULT SOCIAL CARE,MEDACS HOMECARE,"1,384.19",PHY LTS 65+,HOMECARE - C&V,2103258773,11287415,y,4
06.05.2021,ADULT SOCIAL CARE,SUPREME CARE SERVICES LTD,"1,620.36",PHY LTS 65+,HOMECARE - C&V,2103258830,1000059416,y,4
06.05.2021,ADULT SOCIAL CARE,SUPREME CARE SERVICES LTD,"1,692.64",PHY LTS 65+,HOMECARE - C&V,2103258816,1000059416,y,4
06.05.2021,ADULT SOCIAL CARE,MEDACS HOMECARE,"1,777.50",PHY LTS 65+,HOMECARE - C&V,2103258754,11287415,y,4
06.05.2021,ADULT SOCIAL CARE,MEDACS HOMECARE,"2,155.50",PHY LTS 65+,HOMECARE - C&V,2103258737,11287415,y,4
06.05.2021,ADULT SOCIAL CARE,MEDACS HOMECARE,"2,272.50",PHY LTS 65+,HOMECARE - C&V,2103258786,11287415,y,4
06.05.2021,ADULT SOCIAL CARE,MEDACS HOMECARE,"2,385.00",PHY LTS 65+,HOMECARE - C&V,2103258775,11287415,y,4
06.05.2021,ADULT SOCIAL CARE,MEDACS HOMECARE,"2,740.50",PHY LTS 65+,HOMECARE - C&V,2103258738,11287415,y,4
06.05.2021,ADULT SOCIAL CARE,MEDACS HOMECARE,"3,485.04",PHY LTS 65+,HOMECARE - C&V,2103258748,11287415,y,4
06.05.2021,ADULT SOCIAL CARE,SUPREME CARE SERVICES LTD,584.58,PHY STS 65+,HOMECARE - IC,2103258815,1000059416,y,4
06.05.2021,ADULT SOCIAL CARE,MEDACS HOMECARE,292.5,SUB LTS 18-64,HOMECARE - C&V,2103258766,11287415,y,4
06.05.2021,ADULT SOCIAL CARE,MEDACS HOMECARE,"1,021.50",SUB LTS 18-64,HOMECARE - SPOT,2103258733,11287415,y,4
06.05.2021,ADULT SOCIAL CARE,HEBRON TRUST,"3,424.20",SUB LTS 18-64,PLACEMENTS - REHAB,2103258812,1000056819,y,4
06.05.2021,ASSET MANAGEMENT,ASHFORDS LLP OFFICE ACCOUNT,"12,000.00",DISREPAIR,PAYMENTS FOR LEGAL SERVICES,5902467513,1000082695,y,4
06.05.2021,CENTRAL FUNCTIONS,STANDAGE & CO LTD,"45,200.00",AYLESBURY,SECURITY SERVICES,2103258877,4002817,y,4
06.05.2021,CENTRAL FUNCTIONS HGF,RELATIVE GROUNDWORK LIMITED,"10,625.00",MHCLG PRIVATE BUILDING OWNERS EWI,OTHER R&M,5902467209,1000086270,y,4
06.05.2021,CHIEF EXECUTIVE,BL CW HOLDINGS LTD,"316,019.15",CAPITAL PS (REGEN),CONSTRUCTION FEES,5902467630,1000086680,y,4
06.05.2021,CHIEF EXECUTIVE,BL CW HOLDINGS LTD,"4,898,284.18",CAPITAL PS (REGEN),CONSTRUCTION FEES,5902467618,1000086680,y,4
06.05.2021,CHILDREN AND ADULT,PELLINGS LLP,324,CAPITAL PS (EDUCATION),CONSTRUCTION MAIN CONTRACT,5902467567,1009262,y,4
06.05.2021,CHILDREN AND FAMILIES,CLIFTON CHILDRENS SOCIETY,582.12,ADOPT LONDON SOUTH,EXTERNAL AGENCIES AND BODIES,5902467533,1000049956,y,4
06.05.2021,CHILDREN AND FAMILIES,REDACTED PERSONAL DATA,500,ADOPTION ALLOWANCES,PAYMENTS TO CARERS,REDACTED,REDACTED,X,10
06.05.2021,CHILDREN AND FAMILIES,THE BEXLEY DAY NURSERY LIMITED,603.5,ADOPTION ALLOWANCES,NURSING PLACEMENTS FEES,5902467532,1000033000,y,4
06.05.2021,CHILDREN AND FAMILIES,REDACTED PERSONAL DATA,270,ADOPTION SUPP FUND,PROFESSIONAL FEES,REDACTED,REDACTED,X,10
06.05.2021,CHILDREN AND FAMILIES,REDACTED PERSONAL DATA,275,ADOPTION SUPP FUND,PROFESSIONAL FEES,REDACTED,REDACTED,X,10
06.05.2021,CHILDREN AND FAMILIES,REDACTED PERSONAL DATA,300,ADOPTION SUPP FUND,PROFESSIONAL FEES,REDACTED,REDACTED,X,10
06.05.2021,CHILDREN AND FAMILIES,REDACTED PERSONAL DATA,317,ADOPTION SUPP FUND,PROFESSIONAL FEES,REDACTED,REDACTED,X,10
06.05.2021,CHILDREN AND FAMILIES,INDEPENDENT BIA LTD,340,ADOPTION SUPP FUND,PROFESSIONAL FEES,5902467535,1000086264,y,4
06.05.2021,CHILDREN AND FAMILIES,ALICE MALLORIE THERAPY SERVICE,360,ADOPTION SUPP FUND,PROFESSIONAL FEES,5902467539,1000085491,y,4
06.05.2021,CHILDREN AND FAMILIES,REDACTED PERSONAL DATA,360,ADOPTION SUPP FUND,PROFESSIONAL FEES,REDACTED,REDACTED,X,10
06.05.2021,CHILDREN AND FAMILIES,REDACTED PERSONAL DATA,480,ADOPTION SUPP FUND,PROFESSIONAL FEES,REDACTED,REDACTED,X,10
06.05.2021,CHILDREN AND FAMILIES,REDACTED PERSONAL DATA,480,ADOPTION SUPP FUND,PROFESSIONAL FEES,REDACTED,REDACTED,X,10
06.05.2021,CHILDREN AND FAMILIES,REDACTED PERSONAL DATA,600,ADOPTION SUPP FUND,PROFESSIONAL FEES,REDACTED,REDACTED,X,10
06.05.2021,CHILDREN AND FAMILIES,REDACTED PERSONAL DATA,639.73,ADOPTION SUPP FUND,PROFESSIONAL FEES,REDACTED,REDACTED,X,10
06.05.2021,CHILDREN AND FAMILIES,REDACTED PERSONAL DATA,"1,203.00",ADOPTION SUPP FUND,PROFESSIONAL FEES,REDACTED,REDACTED,X,10
06.05.2021,CHILDREN AND FAMILIES,CORAL SUPPORT AND CRISIS INTERVENTION SERVICE,"49,996.50",FAMILY ASSESS RESID,RESIDENTIAL CARE,2103258730,1000081529,y,4
06.05.2021,CHILDREN AND FAMILIES,FAMILY FOSTERING LTD,"5,571.30",FRIENDS & FAMILY FOSTERING,EXTERNAL AGENCIES AND BODIES,2103258847,1000075179,y,4
06.05.2021,CHILDREN AND FAMILIES,REDACTED PERSONAL DATA,275,FRIENDS &FAMILY FOST,ADDITIONAL PAYMENTS TO AGENCIES/CARERS,REDACTED,REDACTED,X,10
06.05.2021,CHILDREN AND FAMILIES,REDACTED PERSONAL DATA,300,FRIENDS &FAMILY FOST,OTHER PAYMENTS FOR CLIENTS,REDACTED,REDACTED,X,10
06.05.2021,CHILDREN AND FAMILIES,REDACTED PERSONAL DATA,300,FRIENDS &FAMILY FOST,OTHER PAYMENTS FOR CLIENTS,REDACTED,REDACTED,X,10
06.05.2021,CHILDREN AND FAMILIES,REDACTED PERSONAL DATA,300,FRIENDS &FAMILY FOST,OTHER PAYMENTS FOR CLIENTS,REDACTED,REDACTED,X,10
06.05.2021,CHILDREN AND FAMILIES,REDACTED PERSONAL DATA,300,FRIENDS &FAMILY FOST,OTHER PAYMENTS FOR CLIENTS,REDACTED,REDACTED,X,10
06.05.2021,CHILDREN AND FAMILIES,REDACTED PERSONAL DATA,304,FRIENDS &FAMILY FOST,PAYMENTS TO CARERS,REDACTED,REDACTED,X,10
06.05.2021,CHILDREN AND FAMILIES,REDACTED PERSONAL DATA,310,FRIENDS &FAMILY FOST,PAYMENTS TO CARERS,REDACTED,REDACTED,X,10
06.05.2021,CHILDREN AND FAMILIES,REDACTED PERSONAL DATA,310,FRIENDS &FAMILY FOST,PAYMENTS TO CARERS,REDACTED,REDACTED,X,10
06.05.2021,CHILDREN AND FAMILIES,REDACTED PERSONAL DATA,348,FRIENDS &FAMILY FOST,PAYMENTS TO CARERS,REDACTED,REDACTED,X,10
06.05.2021,CHILDREN AND FAMILIES,REDACTED PERSONAL DATA,348,FRIENDS &FAMILY FOST,PAYMENTS TO CARERS,REDACTED,REDACTED,X,10
06.05.2021,CHILDREN AND FAMILIES,REDACTED PERSONAL DATA,348,FRIENDS &FAMILY FOST,PAYMENTS TO CARERS,REDACTED,REDACTED,X,10
06.05.2021,CHILDREN AND FAMILIES,REDACTED PERSONAL DATA,348,FRIENDS &FAMILY FOST,PAYMENTS TO CARERS,REDACTED,REDACTED,X,10
06.05.2021,CHILDREN AND FAMILIES,REDACTED PERSONAL DATA,348,FRIENDS &FAMILY FOST,PAYMENTS TO CARERS,REDACTED,REDACTED,X,10
06.05.2021,CHILDREN AND FAMILIES,REDACTED PERSONAL DATA,348,FRIENDS &FAMILY FOST,PAYMENTS TO CARERS,REDACTED,REDACTED,X,10
06.05.2021,CHILDREN AND FAMILIES,REDACTED PERSONAL DATA,394,FRIENDS &FAMILY FOST,PAYMENTS TO CARERS,REDACTED,REDACTED,X,10
06.05.2021,CHILDREN AND FAMILIES,REDACTED PERSONAL DATA,394,FRIENDS &FAMILY FOST,PAYMENTS TO CARERS,REDACTED,REDACTED,X,10
06.05.2021,CHILDREN AND FAMILIES,REDACTED PERSONAL DATA,394,FRIENDS &FAMILY FOST,PAYMENTS TO CARERS,REDACTED,REDACTED,X,10
06.05.2021,CHILDREN AND FAMILIES,REDACTED PERSONAL DATA,394,FRIENDS &FAMILY FOST,PAYMENTS TO CARERS,REDACTED,REDACTED,X,10
06.05.2021,CHILDREN AND FAMILIES,REDACTED PERSONAL DATA,394,FRIENDS &FAMILY FOST,PAYMENTS TO CARERS,REDACTED,REDACTED,X,10
06.05.2021,CHILDREN AND FAMILIES,REDACTED PERSONAL DATA,394,FRIENDS &FAMILY FOST,PAYMENTS TO CARERS,REDACTED,REDACTED,X,10
06.05.2021,CHILDREN AND FAMILIES,REDACTED PERSONAL DATA,394,FRIENDS &FAMILY FOST,PAYMENTS TO CARERS,REDACTED,REDACTED,X,10
06.05.2021,CHILDREN AND FAMILIES,REDACTED PERSONAL DATA,394,FRIENDS &FAMILY FOST,PAYMENTS TO CARERS,REDACTED,REDACTED,X,10
06.05.2021,CHILDREN AND FAMILIES,REDACTED PERSONAL DATA,400,FRIENDS &FAMILY FOST,ADDITIONAL PAYMENTS TO AGENCIES/CARERS,REDACTED,REDACTED,X,10
06.05.2021,CHILDREN AND FAMILIES,REDACTED PERSONAL DATA,400,FRIENDS &FAMILY FOST,ADDITIONAL PAYMENTS TO AGENCIES/CARERS,REDACTED,REDACTED,X,10
06.05.2021,CHILDREN AND FAMILIES,REDACTED PERSONAL DATA,418,FRIENDS &FAMILY FOST,PAYMENTS TO CARERS,REDACTED,REDACTED,X,10
06.05.2021,CHILDREN AND FAMILIES,REDACTED PERSONAL DATA,462,FRIENDS &FAMILY FOST,PAYMENTS TO CARERS,REDACTED,REDACTED,X,10
06.05.2021,CHILDREN AND FAMILIES,REDACTED PERSONAL DATA,462,FRIENDS &FAMILY FOST,PAYMENTS TO CARERS,REDACTED,REDACTED,X,10
06.05.2021,CHILDREN AND FAMILIES,REDACTED PERSONAL DATA,462,FRIENDS &FAMILY FOST,PAYMENTS TO CARERS,REDACTED,REDACTED,X,10
06.05.2021,CHILDREN AND FAMILIES,REDACTED PERSONAL DATA,476.08,FRIENDS &FAMILY FOST,PAYMENTS TO CARERS,REDACTED,REDACTED,X,10
06.05.2021,CHILDREN AND FAMILIES,REDACTED PERSONAL DATA,589.71,FRIENDS &FAMILY FOST,PAYMENTS TO CARERS,REDACTED,REDACTED,X,10
06.05.2021,CHILDREN AND FAMILIES,REDACTED PERSONAL DATA,589.71,FRIENDS &FAMILY FOST,PAYMENTS TO CARERS,REDACTED,REDACTED,X,10
06.05.2021,CHILDREN AND FAMILIES,REDACTED PERSONAL DATA,589.71,FRIENDS &FAMILY FOST,PAYMENTS TO CARERS,REDACTED,REDACTED,X,10
06.05.2021,CHILDREN AND FAMILIES,REDACTED PERSONAL DATA,666,FRIENDS &FAMILY FOST,PAYMENTS TO CARERS,REDACTED,REDACTED,X,10
06.05.2021,CHILDREN AND FAMILIES,REDACTED PERSONAL DATA,666,FRIENDS &FAMILY FOST,PAYMENTS TO CARERS,REDACTED,REDACTED,X,10
06.05.2021,CHILDREN AND FAMILIES,REDACTED PERSONAL DATA,673.14,FRIENDS &FAMILY FOST,PAYMENTS TO CARERS,REDACTED,REDACTED,X,10
06.05.2021,CHILDREN AND FAMILIES,REDACTED PERSONAL DATA,673.14,FRIENDS &FAMILY FOST,PAYMENTS TO CARERS,REDACTED,REDACTED,X,10
06.05.2021,CHILDREN AND FAMILIES,REDACTED PERSONAL DATA,673.14,FRIENDS &FAMILY FOST,PAYMENTS TO CARERS,REDACTED,REDACTED,X,10
06.05.2021,CHILDREN AND FAMILIES,REDACTED PERSONAL DATA,673.14,FRIENDS &FAMILY FOST,PAYMENTS TO CARERS,REDACTED,REDACTED,X,10
06.05.2021,CHILDREN AND FAMILIES,REDACTED PERSONAL DATA,673.14,FRIENDS &FAMILY FOST,PAYMENTS TO CARERS,REDACTED,REDACTED,X,10
06.05.2021,CHILDREN AND FAMILIES,REDACTED PERSONAL DATA,673.14,FRIENDS &FAMILY FOST,PAYMENTS TO CARERS,REDACTED,REDACTED,X,10
06.05.2021,CHILDREN AND FAMILIES,REDACTED PERSONAL DATA,690.15,FRIENDS &FAMILY FOST,PAYMENTS TO CARERS,REDACTED,REDACTED,X,10
06.05.2021,CHILDREN AND FAMILIES,REDACTED PERSONAL DATA,695.3,FRIENDS &FAMILY FOST,PAYMENTS TO CARERS,REDACTED,REDACTED,X,10
06.05.2021,CHILDREN AND FAMILIES,REDACTED PERSONAL DATA,695.3,FRIENDS &FAMILY FOST,PAYMENTS TO CARERS,REDACTED,REDACTED,X,10
06.05.2021,CHILDREN AND FAMILIES,REDACTED PERSONAL DATA,695.3,FRIENDS &FAMILY FOST,PAYMENTS TO CARERS,REDACTED,REDACTED,X,10
06.05.2021,CHILDREN AND FAMILIES,REDACTED PERSONAL DATA,696.72,FRIENDS &FAMILY FOST,PAYMENTS TO CARERS,REDACTED,REDACTED,X,10
06.05.2021,CHILDREN AND FAMILIES,REDACTED PERSONAL DATA,716,FRIENDS &FAMILY FOST,PAYMENTS TO CARERS,REDACTED,REDACTED,X,10
06.05.2021,CHILDREN AND FAMILIES,REDACTED PERSONAL DATA,716,FRIENDS &FAMILY FOST,PAYMENTS TO CARERS,REDACTED,REDACTED,X,10
06.05.2021,CHILDREN AND FAMILIES,REDACTED PERSONAL DATA,729.71,FRIENDS &FAMILY FOST,PAYMENTS TO CARERS,REDACTED,REDACTED,X,10
06.05.2021,CHILDREN AND FAMILIES,REDACTED PERSONAL DATA,745.28,FRIENDS &FAMILY FOST,PAYMENTS TO CARERS,REDACTED,REDACTED,X,10
06.05.2021,CHILDREN AND FAMILIES,REDACTED PERSONAL DATA,769,FRIENDS &FAMILY FOST,PAYMENTS TO CARERS,REDACTED,REDACTED,X,10
06.05.2021,CHILDREN AND FAMILIES,REDACTED PERSONAL DATA,824,FRIENDS &FAMILY FOST,PAYMENTS TO CARERS,REDACTED,REDACTED,X,10
06.05.2021,CHILDREN AND FAMILIES,REDACTED PERSONAL DATA,824,FRIENDS &FAMILY FOST,PAYMENTS TO CARERS,REDACTED,REDACTED,X,10
06.05.2021,CHILDREN AND FAMILIES,REDACTED PERSONAL DATA,824,FRIENDS &FAMILY FOST,PAYMENTS TO CARERS,REDACTED,REDACTED,X,10
06.05.2021,CHILDREN AND FAMILIES,REDACTED PERSONAL DATA,824,FRIENDS &FAMILY FOST,PAYMENTS TO CARERS,REDACTED,REDACTED,X,10
06.05.2021,CHILDREN AND FAMILIES,REDACTED PERSONAL DATA,824,FRIENDS &FAMILY FOST,PAYMENTS TO CARERS,REDACTED,REDACTED,X,10
06.05.2021,CHILDREN AND FAMILIES,REDACTED PERSONAL DATA,824,FRIENDS &FAMILY FOST,PAYMENTS TO CARERS,REDACTED,REDACTED,X,10
06.05.2021,CHILDREN AND FAMILIES,REDACTED PERSONAL DATA,847.7,FRIENDS &FAMILY FOST,PAYMENTS TO CARERS,REDACTED,REDACTED,X,10
06.05.2021,CHILDREN AND FAMILIES,REDACTED PERSONAL DATA,847.7,FRIENDS &FAMILY FOST,PAYMENTS TO CARERS,REDACTED,REDACTED,X,10
06.05.2021,CHILDREN AND FAMILIES,REDACTED PERSONAL DATA,849.71,FRIENDS &FAMILY FOST,PAYMENTS TO CARERS,REDACTED,REDACTED,X,10
06.05.2021,CHILDREN AND FAMILIES,REDACTED PERSONAL DATA,849.71,FRIENDS &FAMILY FOST,PAYMENTS TO CARERS,REDACTED,REDACTED,X,10
06.05.2021,CHILDREN AND FAMILIES,REDACTED PERSONAL DATA,849.71,FRIENDS &FAMILY FOST,PAYMENTS TO CARERS,REDACTED,REDACTED,X,10
06.05.2021,CHILDREN AND FAMILIES,REDACTED PERSONAL DATA,849.71,FRIENDS &FAMILY FOST,PAYMENTS TO CARERS,REDACTED,REDACTED,X,10
06.05.2021,CHILDREN AND FAMILIES,REDACTED PERSONAL DATA,900,FRIENDS &FAMILY FOST,PAYMENTS TO CARERS,REDACTED,REDACTED,X,10
06.05.2021,CHILDREN AND FAMILIES,REDACTED PERSONAL DATA,912,FRIENDS &FAMILY FOST,PAYMENTS TO CARERS,REDACTED,REDACTED,X,10
06.05.2021,CHILDREN AND FAMILIES,REDACTED PERSONAL DATA,932,FRIENDS &FAMILY FOST,PAYMENTS TO CARERS,REDACTED,REDACTED,X,10
06.05.2021,CHILDREN AND FAMILIES,ELLIOT LEIGH TLC LTD,"-1,146.86",SEMI-IND CARELEAVERS,COSTS RECOVERED,2103258870,1000079022,y,4
06.05.2021,CHILDREN AND FAMILIES,ELLIOT LEIGH TLC LTD,-899.99,SEMI-IND CARELEAVERS,COSTS RECOVERED,2103258869,1000079022,y,4
06.05.2021,CHILDREN AND FAMILIES,ELLIOT LEIGH TLC LTD,-491.49,SEMI-IND CARELEAVERS,COSTS RECOVERED,2103258872,1000079022,y,4
06.05.2021,CHILDREN AND FAMILIES,ELLIOT LEIGH TLC LTD,-449.99,SEMI-IND CARELEAVERS,COSTS RECOVERED,2103258871,1000079022,y,4
06.05.2021,CHILDREN AND FAMILIES,LOOK AHEAD CARE AND SUPPORT LTD,257.84,SEMI-IND CARELEAVERS,EXTERNAL AGENCIES AND BODIES,2103258862,1000047299,y,4
06.05.2021,CHILDREN AND FAMILIES,CONTACT PROFESSIONALS,295.4,SEMI-IND CARELEAVERS,EXTERNAL AGENCIES AND BODIES,2103258839,1000057263,y,4
06.05.2021,CHILDREN AND FAMILIES,OWNLIFE LTD,360,SEMI-IND CARELEAVERS,EXTERNAL AGENCIES AND BODIES,2103258837,1000056219,y,4
06.05.2021,CHILDREN AND FAMILIES,ELLIOT LEIGH TLC LTD,"1,671.30",SEMI-IND CARELEAVERS,EXTERNAL AGENCIES AND BODIES,2103258845,1000079022,y,4
06.05.2021,CHILDREN AND FAMILIES,ELLIOT LEIGH TLC LTD,"1,950.00",SEMI-IND CARELEAVERS,EXTERNAL AGENCIES AND BODIES,2103258852,1000079022,y,4
06.05.2021,CHILDREN AND FAMILIES,ELLIOT LEIGH TLC LTD,"2,241.30",SEMI-IND CARELEAVERS,EXTERNAL AGENCIES AND BODIES,2103258858,1000079022,y,4
06.05.2021,CHILDREN AND FAMILIES,OWNLIFE LTD,"2,378.57",SEMI-IND CARELEAVERS,EXTERNAL AGENCIES AND BODIES,2103258836,1000056219,y,4
06.05.2021,CHILDREN AND FAMILIES,ELLIOT LEIGH TLC LTD,"2,421.30",SEMI-IND CARELEAVERS,EXTERNAL AGENCIES AND BODIES,2103258846,1000079022,y,4
06.05.2021,CHILDREN AND FAMILIES,NETPEX LTD CORPORATE SERVICES,"2,464.26",SEMI-IND CARELEAVERS,EXTERNAL AGENCIES AND BODIES,2103258848,1000076073,y,4
06.05.2021,CHILDREN AND FAMILIES,EDEN ESTATES LONDON LTD,"2,476.92",SEMI-IND CARELEAVERS,EXTERNAL AGENCIES AND BODIES,5902467523,1000061217,y,4
06.05.2021,CHILDREN AND FAMILIES,ELLIOT LEIGH TLC LTD,"2,635.80",SEMI-IND CARELEAVERS,EXTERNAL AGENCIES AND BODIES,2103258859,1000079022,y,4
06.05.2021,CHILDREN AND FAMILIES,NETPEX LTD CORPORATE SERVICES,"2,678.70",SEMI-IND CARELEAVERS,EXTERNAL AGENCIES AND BODIES,2103258843,1000076073,y,4
06.05.2021,CHILDREN AND FAMILIES,ELLIOT LEIGH TLC LTD,"2,808.30",SEMI-IND CARELEAVERS,EXTERNAL AGENCIES AND BODIES,2103258857,1000079022,y,4
06.05.2021,CHILDREN AND FAMILIES,NETPEX LTD CORPORATE SERVICES,"3,214.20",SEMI-IND CARELEAVERS,EXTERNAL AGENCIES AND BODIES,2103258842,1000076073,y,4
06.05.2021,CHILDREN AND FAMILIES,TRANSFORMING LIVES COMPANY LTD,"3,619.20",SEMI-IND CARELEAVERS,EXTERNAL AGENCIES AND BODIES,2103258854,1000083352,y,4
06.05.2021,CHILDREN AND FAMILIES,NETPEX LTD CORPORATE SERVICES,"4,071.60",SEMI-IND CARELEAVERS,EXTERNAL AGENCIES AND BODIES,2103258844,1000076073,y,4
06.05.2021,CHILDREN AND FAMILIES,LOOK AHEAD CARE AND SUPPORT LTD,"4,613.65",SEMI-IND CARELEAVERS,EXTERNAL AGENCIES AND BODIES,2103258863,1000047299,y,4
06.05.2021,CHILDREN AND FAMILIES,TRANSFORMING LIVES COMPANY LTD,300,SEMI-IND LAC 16-17,OTHER PAYMENTS FOR CLIENTS,2103258866,1000083352,y,4
06.05.2021,CHILDREN AND FAMILIES,A HUSSAIN T/A ALPHA CARS LTD,960,SEMI-IND LAC 16-17,OTHER PAYMENTS FOR CLIENTS,2103258864,1000082147,y,4
06.05.2021,CHILDREN AND FAMILIES,OWNLIFE LTD,"2,057.15",SEMI-IND LAC 16-17,EXTERNAL AGENCIES AND BODIES,2103258867,1000056219,y,4
06.05.2021,CHILDREN AND FAMILIES,TRANSFORMING LIVES COMPANY LTD,"4,015.50",SEMI-IND LAC 16-17,EXTERNAL AGENCIES AND BODIES,2103258865,1000083352,y,4
06.05.2021,CHILDREN AND FAMILIES,REDACTED PERSONAL DATA,341.15,SPECIAL GUARDIANSHIP,PAYMENTS TO CARERS,REDACTED,REDACTED,X,10
06.05.2021,CHILDREN AND FAMILIES,REDACTED PERSONAL DATA,342.45,SPECIAL GUARDIANSHIP,PAYMENTS TO CARERS,REDACTED,REDACTED,X,10
06.05.2021,CHILDREN AND FAMILIES,REDACTED PERSONAL DATA,356.15,SPECIAL GUARDIANSHIP,PAYMENTS TO CARERS,REDACTED,REDACTED,X,10
06.05.2021,CHILDREN AND FAMILIES,REDACTED PERSONAL DATA,388.04,SPECIAL GUARDIANSHIP,PAYMENTS TO CARERS,REDACTED,REDACTED,X,10
06.05.2021,CHILDREN AND FAMILIES,REDACTED PERSONAL DATA,389.34,SPECIAL GUARDIANSHIP,PAYMENTS TO CARERS,REDACTED,REDACTED,X,10
06.05.2021,CHILDREN AND FAMILIES,REDACTED PERSONAL DATA,403.04,SPECIAL GUARDIANSHIP,PAYMENTS TO CARERS,REDACTED,REDACTED,X,10
06.05.2021,CHILDREN AND FAMILIES,REDACTED PERSONAL DATA,525,SPECIAL GUARDIANSHIP,PAYMENTS TO CARERS,REDACTED,REDACTED,X,10
06.05.2021,CHILDREN AND FAMILIES,REDACTED PERSONAL DATA,525,SPECIAL GUARDIANSHIP,PAYMENTS TO CARERS,REDACTED,REDACTED,X,10
06.05.2021,CHILDREN AND FAMILIES,ARC COMMUNITY TRUSTEES,650,SPECIAL GUARDIANSHIP,EXTERNAL AGENCIES AND BODIES,5902467549,1000046206,y,4
06.05.2021,CHILDREN AND FAMILIES,REDACTED PERSONAL DATA,500,STAYPUT- FOST CARERS,PAYMENTS TO CARERS,REDACTED,REDACTED,X,10
06.05.2021,CHILDREN AND FAMILIES,GREATER LONDON FOSTERING,"2,241.82",STAYPUT- FOST CARERS,EXTERNAL AGENCIES AND BODIES,2103258840,1000029184,y,4
06.05.2021,CHILDREN AND FAMILIES,NATIONWIDE ACCOMMODATION,"1,124.00",TEMP ACCOM FOR IH,EXTERNAL AGENCIES AND BODIES,5902467515,1000076112,y,4
06.05.2021,CHILDREN AND FAMILIES,NATIONWIDE ACCOMMODATION,"2,072.00",TEMP ACCOM FOR IH,EXTERNAL AGENCIES AND BODIES,5902467518,1000076112,y,4
06.05.2021,CHILDREN AND FAMILIES,LOOK AHEAD CARE AND SUPPORT LTD,375.44,UASC CARELEAVERS,EXTERNAL AGENCIES AND BODIES,2103258861,1000047299,y,4
06.05.2021,CHILDREN AND FAMILIES,ELLIOT LEIGH TLC LTD,"1,658.40",UASC CARELEAVERS,EXTERNAL AGENCIES AND BODIES,2103258855,1000079022,y,4
06.05.2021,CHILDREN AND FAMILIES,ELLIOT LEIGH TLC LTD,"1,671.30",UASC CARELEAVERS,EXTERNAL AGENCIES AND BODIES,2103258853,1000079022,y,4
06.05.2021,CHILDREN AND FAMILIES,ELLIOT LEIGH TLC LTD,"2,314.20",UASC CARELEAVERS,EXTERNAL AGENCIES AND BODIES,2103258860,1000079022,y,4
06.05.2021,CHILDREN AND FAMILIES,ELLIOT LEIGH TLC LTD,"2,347.80",UASC CARELEAVERS,EXTERNAL AGENCIES AND BODIES,2103258856,1000079022,y,4
06.05.2021,CHILDREN AND FAMILIES,OWNLIFE LTD,"2,700.00",UASC CARELEAVERS,EXTERNAL AGENCIES AND BODIES,2103258835,1000056219,y,4
06.05.2021,CHILDREN AND FAMILIES,NETPEX LTD CORPORATE SERVICES,"3,528.72",UASC CARELEAVERS,EXTERNAL AGENCIES AND BODIES,2103258850,1000076073,y,4
06.05.2021,COMMUNITIES,SUPREME CARE SERVICES LTD,959.12,NO RECOURSE TO PUBLIC FUNDS,HOMECARE - C&V,2103258813,1000059416,y,4
06.05.2021,COMMUNITIES,TOM HOPKINS ASSOCIATES LTD,560,TENANT MGT INITITIVES,TRAINING,5902467506,1000078726,y,4
06.05.2021,CUSTOMER EXPERIENCE,SGS UK LTD,"1,312.50",CUSTOMER SUPPORT,CONSULTANTS SERVICES,5902467185,1000037326,y,4
06.05.2021,CUSTOMER EXPERIENCE HGF,RENT WITH US LTD,"1,587.96",HOMELESS PROJECTS,GRANTS,5902466860,1000085885,y,4
06.05.2021,CUSTOMER EXPERIENCE HGF,LATEEF KAREEM,"2,700.00",HOMELESS PROJECTS,GRANTS,5902467651,1000086669,y,9
06.05.2021,CUSTOMER EXPERIENCE HGF,EASY LET HOUSING,"2,796.12",HOMELESS PROJECTS,GRANTS,5902467606,1000068714,y,4
06.05.2021,CUSTOMER EXPERIENCE HGF,M2M PROPERTY SERVICES LTD,"3,854.80",HOMELESS PROJECTS,GRANTS,5902467611,1000086668,y,4
06.05.2021,CUSTOMER EXPERIENCE HGF,M2M PROPERTY SERVICES LTD,"3,854.80",HOMELESS PROJECTS,GRANTS,5902467616,1000086668,y,4
06.05.2021,CUSTOMER EXPERIENCE HGF,S & G PROPERTIES,"8,032.82",NIGHTLY TA (NSC),EXTERNAL AGENCIES AND BODIES,5902467492,1000005082,y,4
06.05.2021,CUSTOMER EXPERIENCE HGF,CITYGLEN LTD,"22,710.00",NIGHTLY TA (NSC),EXTERNAL AGENCIES AND BODIES,5902467496,1000026239,y,4
06.05.2021,DSG,SPA EDUCATION TRUST,"9,517.95",SPECIALIST POST-16,STATEMENTED FEES,2103258364,1000081600,y,4
06.05.2021,DSG,SPA EDUCATION TRUST,"9,517.95",SPECIALIST POST-16,STATEMENTED FEES,2103258365,1000081600,y,4
06.05.2021,DSG,SPA EDUCATION TRUST,"9,517.95",SPECIALIST POST-16,STATEMENTED FEES,2103258366,1000081600,y,4
06.05.2021,DSG,SPA EDUCATION TRUST,"9,517.95",SPECIALIST POST-16,STATEMENTED FEES,2103258367,1000081600,y,4
06.05.2021,DSG,SPA EDUCATION TRUST,"9,517.95",SPECIALIST POST-16,STATEMENTED FEES,2103258368,1000081600,y,4
06.05.2021,DSG,SPA EDUCATION TRUST,"9,517.95",SPECIALIST POST-16,STATEMENTED FEES,2103258371,1000081600,y,4
06.05.2021,DSG,SPA EDUCATION TRUST,"9,517.95",SPECIALIST POST-16,STATEMENTED FEES,2103258372,1000081600,y,4
06.05.2021,DSG,SPA EDUCATION TRUST,"11,158.97",SPECIALIST POST-16,STATEMENTED FEES,2103258369,1000081600,y,4
06.05.2021,DSG,SPA EDUCATION TRUST,"11,158.97",SPECIALIST POST-16,STATEMENTED FEES,2103258370,1000081600,y,4
06.05.2021,DSG,BURLINGTON INFANT & NURSERY SCHOOL,"1,520.00",VIRTUAL SCHOOL PP,SCHOOLS CAPITATION,5902467493,1000086635,y,11
06.05.2021,ENVIRONMENT DIRECTORATE,LONDON COUNCILS,"12,584.00",ALG ACCOUNT,PROFESSIONAL FEES,5902467508,11237079,y,4
06.05.2021,ENVIRONMENT DIRECTORATE,LEX AUTOLEASE,"4,210.97",CAR LEASING CTRL A/C,VEHICLE REPAIRS & MAINTENANCE,5902467505,1000069462,y,4
06.05.2021,ENVIRONMENT DIRECTORATE,BRITISH TELECOMMUNICATIONS PLC,"2,588.12",CCTV,TELEPHONES (LAND LINES),5902467565,11149671,y,4
06.05.2021,ENVIRONMENT DIRECTORATE,BRITISH TELECOMMUNICATIONS PLC,"4,970.66",CCTV,TELEPHONES (LAND LINES),5902467560,11149671,y,4
06.05.2021,ENVIRONMENT DIRECTORATE,I.S & G STEEL STOCKHOLDER LTD,310,ENGINEERING CRAFTS,MATERIALS,5902467647,1028293,y,4
06.05.2021,ENVIRONMENT DIRECTORATE,I.S & G STEEL STOCKHOLDER LTD,356,ENGINEERING CRAFTS,MATERIALS,5902467646,1028293,y,4
06.05.2021,ENVIRONMENT DIRECTORATE,ANGLESEY BOLLARD LTD,370,ENGINEERING CRAFTS,MATERIALS,5902467585,1000068368,y,4
06.05.2021,ENVIRONMENT DIRECTORATE,RIGHTON & BLACKBURNS LTD,414.7,ENGINEERING CRAFTS,MATERIALS,5902467620,1000041264,y,4
06.05.2021,ENVIRONMENT DIRECTORATE,INSTARMAC GROUP PLC,652.4,ENGINEERING CRAFTS,MATERIALS,5902467593,1000070786,y,4
06.05.2021,ENVIRONMENT DIRECTORATE,F H BRUNDLE,"1,260.00",ENGINEERING CRAFTS,MATERIALS,5902467649,1082714,y,4
06.05.2021,ENVIRONMENT DIRECTORATE,LEX AUTOLEASE,"2,043.56",FLEET INSURANCE WORKS,TRANSPORT INSURANCE COSTS,5902467507,1000069462,y,4
06.05.2021,ENVIRONMENT DIRECTORATE,APCOA PARKING (UK) LTD,"359,172.33",PARKING OVERHEADS,OTHER CONTRACTORS,5902467641,1718645,y,4
06.05.2021,ENVIRONMENT DIRECTORATE,KOMPAN LTD,510,PARKS TECH UNIT (PREMISES),MATERIALS,5902467642,1080346,y,4
06.05.2021,ENVIRONMENT DIRECTORATE,KOMPAN LTD,620,PARKS TECH UNIT (PREMISES),MATERIALS,5902467642,1080346,y,4
06.05.2021,ENVIRONMENT DIRECTORATE,KOMPAN LTD,810,PARKS TECH UNIT (PREMISES),MATERIALS,5902467642,1080346,y,4
06.05.2021,ENVIRONMENT DIRECTORATE,KOMPAN LTD,"1,800.00",PARKS TECH UNIT (PREMISES),MATERIALS,5902467642,1080346,y,4
06.05.2021,ENVIRONMENT DIRECTORATE,WICKSTEED LEISURE LTD,"2,500.00",PARKS TECH UNIT (PREMISES),MATERIALS,5902467622,1000014383,y,4
06.05.2021,ENVIRONMENT DIRECTORATE,EDMUNDSON ELECTRICAL LTD,553,PUBLIC LIGHTING,MATERIALS,5902467595,1000066568,y,4
06.05.2021,ENVIRONMENT DIRECTORATE,BEW ELECTRICAL DISTRIBUTORS LTD,995.01,PUBLIC LIGHTING,MATERIALS,5902467605,1000045371,y,4
06.05.2021,ENVIRONMENT DIRECTORATE,BEW ELECTRICAL DISTRIBUTORS LTD,"1,487.64",PUBLIC LIGHTING,MATERIALS,5902467619,1000045371,y,4
06.05.2021,ENVIRONMENT DIRECTORATE,CABLE TEST LTD,"1,961.90",PUBLIC LIGHTING,OTHER CONTRACTORS,5902467589,1000079183,y,4
06.05.2021,ENVIRONMENT DIRECTORATE,CABLE TEST LTD,"2,057.26",PUBLIC LIGHTING,OTHER CONTRACTORS,5902467588,1000079183,y,4
06.05.2021,ENVIRONMENT DIRECTORATE,CABLE TEST LTD,"3,286.58",PUBLIC LIGHTING,OTHER CONTRACTORS,5902467592,1000079183,y,4
06.05.2021,ENVIRONMENT DIRECTORATE,CABLE TEST LTD,"5,825.60",PUBLIC LIGHTING,OTHER CONTRACTORS,5902467591,1000079183,y,4
06.05.2021,ENVIRONMENT DIRECTORATE,TYCO INTEGRATED FIRE & SECURITY,453.88,TOWN CENTRE CCTV,OTHER CONTRACTORS,5902467656,1000077948,y,4
06.05.2021,F & C S EXCLUDING CORPORATE BUDGETS,NORTHGATE PUBLIC SERVICES (UK) LTD,"2,557.50",ADMINISTRATIVE SUPPORT,SOFTWARE,5902467337,1000037405,y,4
06.05.2021,F & C S EXCLUDING CORPORATE BUDGETS,EMS EVENTS LTD,"2,415.60",GLA ELECTIONS,OP LEASE/HIRE CHARGES:PLANT/EQUIP/FURNIT,5902466908,1000057494,y,4
06.05.2021,HOUSING,SILK & MACKMAN SERVICES LTD,"10,627.28",ENG CONTRACTS (NORTH),I-WORLD CONTRACTORS HOLDING ACCOUNT,5902466953,1000035282,y,4
06.05.2021,HOUSING,PRB ESTATES LTD,"80,026.24",PRBE,I-WORLD CONTRACTORS HOLDING ACCOUNT,2103258873,3000001691,y,4
06.05.2021,HOUSING GENERAL FUND,HIGHER ELEVATION LTD,"2,530.00",CAPITAL PS (HOUSING GF),CAPITAL GRANTS,5902467478,1000067328,y,4
06.05.2021,HOUSING HRA,CALFORD SEADEN LLP,"2,352.00",CAPITAL PS (HRA),CONSTRUCTION FEES  - EXTERNAL,5902467087,1061592,y,4
06.05.2021,HOUSING HRA,CALFORD SEADEN LLP,"2,646.00",CAPITAL PS (HRA),CONSTRUCTION FEES - EMPLOYERS AGENT,5902467088,1061592,y,4
06.05.2021,HOUSING HRA,CALFORD SEADEN LLP,"2,940.00",CAPITAL PS (HRA),CONSTRUCTION FEES  - EXTERNAL,5902466896,1061592,y,4
06.05.2021,HUMAN RESOURCES,SHERRIDAN HUGHES,"2,175.00",OCCUPATIONAL ASSESSMENT,CONSULTANTS SERVICES,5902467511,1000074250,y,1
06.05.2021,HUMAN RESOURCES,CIVICA UK LTD,750,SUPPORT COSTS,COMMS & COMPUTING CONTRACT CHARGES,5902466963,1730625,y,4
06.05.2021,LEISURE DIRECTORATE,QUADRON SERVICES LIMITED,324,BURGESS AREA TEAM,GROUNDS MAINTENANCE,5902467500,1000066528,y,4
06.05.2021,LEISURE DIRECTORATE,KENT COUNTY COUNCIL - LASER,558.01,CEMETERIES,ELECTRICITY,5902467042,1000012926,y,4
06.05.2021,LEISURE DIRECTORATE,KENT COUNTY COUNCIL - LASER,790.8,CEMETERIES,ELECTRICITY,5902467205,1000012926,y,4
06.05.2021,LEISURE DIRECTORATE,RESIDENTIAL MANAGEMENT GROUP LTD,"1,111.42",GROVE VALE LIBRARY,SERVICE CHARGES,2103258380,1000024833,y,4
06.05.2021,LEISURE DIRECTORATE,NIELSEN BOOK SERVICES LTD,290,LIBRARIES DEVELOPMENT,SUBSCRIPTIONS,5902467490,1000047403,y,4
06.05.2021,LEISURE DIRECTORATE,NIELSEN BOOK SERVICES LTD,"3,000.00",LIBRARIES DEVELOPMENT,SUBSCRIPTIONS,5902467490,1000047403,y,4
06.05.2021,LEISURE DIRECTORATE,FOUNTAINS & FEATURES LTD,460,PARKS SERVICES DEVELOPMENT,PROFESSIONAL FEES,5902467177,1000082729,y,4
06.05.2021,LEISURE DIRECTORATE,TRADE UK,370.87,SDM BUDGET,MATERIALS,5902467489,1000064945,y,4
06.05.2021,LEISURE DIRECTORATE,QUADRON SERVICES LIMITED,253.12,SOUTHWARK AREA TEAM,GROUNDS MAINTENANCE,5902466889,1000066528,y,4
06.05.2021,MODERNISATION HGF,ROYAL MAIL GROUP LTD,"2,002.08",160 TOOLEY ST.,POSTAGES,5902467569,1000008168,y,4
06.05.2021,MODERNISATION HGF,VIRGIN MEDIA,775.73,IT MANAGEMENT,COMMS & COMPUTING CONTRACT CHARGES,5902467494,1000026457,y,4
06.05.2021,MODERNISATION HGF,VIRGIN MEDIA,"6,500.52",IT MANAGEMENT,COMMS & COMPUTING CONTRACT CHARGES,5902467502,1000026457,y,4
06.05.2021,REGENERATION,PINSENT MASONS LLP,"3,779.06",CANADA WATER,PAYMENTS FOR LEGAL SERVICES,5902467652,1000046862,y,4
06.05.2021,REGENERATION,PINSENT MASONS LLP,"7,917.00",CANADA WATER,PAYMENTS FOR LEGAL SERVICES,5902467653,1000046862,y,4
06.05.2021,RESIDENT SERVICES,BRIDGEWATER ROOFING CONTRACTORS LTD,"18,472.00",GREAT ESTATES,BUILDING R&M,2103258876,3000001482,y,4
06.05.2021,RESIDENT SERVICES,CRIME CONCERN UK LTD,"1,000.00",OPERATIONS/OFFICES ACCOMMODATION,OTHER CONTRACTORS,5902467514,1000067928,y,4
06.05.2021,RESIDENT SERVICES,CRIME CONCERN UK LTD,"2,080.00",OPERATIONS/OFFICES ACCOMMODATION,OTHER CONTRACTORS,5902467514,1000067928,y,4
06.05.2021,SBS OPERATIONS,TRAVIS PERKINS TRADING COMPANY LTD,313.33,NUNHEAD DD,MATERIALS,5902467574,1514319,y,4
06.05.2021,SOUTHWARK BUILDING SERVICES,"BROWNING, JONES & MORRIS LTD",290,STORES/LOGISTICS,CREDITORS -GR/IR CLEARING ACCOUNT,5902467479,1027429,y,4
06.05.2021,SOUTHWARK BUILDING SERVICES,REXEL UK LTD T/A NEWEY & EYRE,944,STORES/LOGISTICS,CREDITORS -GR/IR CLEARING ACCOUNT,5902467394,1000019785,y,4
06.05.2021,STRATEGIC FINANCING BUDGETS,COMENSURA LTD,"578,474.40",WEEKLY PAYMENTS,AGENCY STAFF,5902467553,1000051261,y,4
07.05.2021,ADULT SOCIAL CARE,RHYS HADDEN,575,AAD TEAM,LEGAL FEES & COURT COSTS,2103260314,1000063367,y,6a
07.05.2021,ADULT SOCIAL CARE,REDACTED PERSONAL DATA,288,CARERS SERVICES,PAYMENTS TO CLIENTS (DIRECT PAYMENTS),REDACTED,REDACTED,X,10
07.05.2021,ADULT SOCIAL CARE,THE DRIVE CARE HOMES LTD,"1,210.00",DISABILITIES LAC,OTHER PAYMENTS FOR CLIENTS,2103259107,1000003889,y,4
07.05.2021,ADULT SOCIAL CARE,THE DRIVE CARE HOMES LTD,"13,670.83",DISABILITIES LAC,RESIDENTIAL CARE,2103259111,1000003889,y,4
07.05.2021,ADULT SOCIAL CARE,THE DRIVE CARE HOMES LTD,"14,393.10",DISABILITIES LAC,EXTERNAL AGENCIES AND BODIES,2103259109,1000003889,y,4
07.05.2021,ADULT SOCIAL CARE,REDACTED PERSONAL DATA,296.96,DISCHARGE TO ACCESS,PAYMENTS TO CLIENTS (DIRECT PAYMENTS),REDACTED,REDACTED,X,10
07.05.2021,ADULT SOCIAL CARE,REDACTED PERSONAL DATA,791.84,DISCHARGE TO ACCESS,PAYMENTS TO CLIENTS (DIRECT PAYMENTS),REDACTED,REDACTED,X,10
07.05.2021,ADULT SOCIAL CARE,REDACTED PERSONAL DATA,826,DISCHARGE TO ACCESS,PAYMENTS TO CLIENTS (DIRECT PAYMENTS),REDACTED,REDACTED,X,10
07.05.2021,ADULT SOCIAL CARE,REDACTED PERSONAL DATA,898.8,DISCHARGE TO ACCESS,PAYMENTS TO CLIENTS (DIRECT PAYMENTS),REDACTED,REDACTED,X,10
07.05.2021,ADULT SOCIAL CARE,BEDE HOUSE ASSOCIATION,"1,930.00",DISCHARGE TO ACCESS,SUPPORTED LIVING,2103260176,1553877,y,4
07.05.2021,ADULT SOCIAL CARE,PEOPLEPLUS ILS,"2,266.72",DISCHARGE TO ACCESS,PAYMENTS TO CLIENTS (DIRECT PAYMENTS),2103260049,1000061886,y,4
07.05.2021,ADULT SOCIAL CARE,PEOPLEPLUS ILS,"3,015.60",DISCHARGE TO ACCESS,PAYMENTS TO CLIENTS (DIRECT PAYMENTS),2103259751,1000061886,y,4
07.05.2021,ADULT SOCIAL CARE,PEOPLEPLUS ILS,"-18,713.96",LD LTS 18-64,PAYMENTS TO CLIENTS (DIRECT PAYMENTS),2103259254,1000061886,y,4
07.05.2021,ADULT SOCIAL CARE,PEOPLEPLUS ILS,"-2,397.00",LD LTS 18-64,PAYMENTS TO CLIENTS (DIRECT PAYMENTS),2103259355,1000061886,y,4
07.05.2021,ADULT SOCIAL CARE,REDACTED PERSONAL DATA,"-1,843.08",LD LTS 18-64,PAYMENTS TO CLIENTS (DIRECT PAYMENTS),REDACTED,REDACTED,X,10
07.05.2021,ADULT SOCIAL CARE,PEOPLEPLUS ILS,"-1,690.24",LD LTS 18-64,PAYMENTS TO CLIENTS (DIRECT PAYMENTS),2103259740,1000061886,y,4
07.05.2021,ADULT SOCIAL CARE,PEOPLEPLUS ILS,-769.8,LD LTS 18-64,DISCRETIONARY FLEXIBLE FEES & INCOME,2103259406,1000061886,y,4
07.05.2021,ADULT SOCIAL CARE,REDACTED PERSONAL DATA,-347.2,LD LTS 18-64,DISCRETIONARY FLEXIBLE FEES & INCOME,REDACTED,REDACTED,X,10
07.05.2021,ADULT SOCIAL CARE,PEOPLEPLUS ILS,-344.72,LD LTS 18-64,DISCRETIONARY FLEXIBLE FEES & INCOME,2103259612,1000061886,y,4
07.05.2021,ADULT SOCIAL CARE,PEOPLEPLUS ILS,-287.28,LD LTS 18-64,DISCRETIONARY FLEXIBLE FEES & INCOME,2103259530,1000061886,y,4
07.05.2021,ADULT SOCIAL CARE,PEOPLEPLUS ILS,-273.56,LD LTS 18-64,DISCRETIONARY FLEXIBLE FEES & INCOME,2103259195,1000061886,y,4
07.05.2021,ADULT SOCIAL CARE,PEOPLEPLUS ILS,-273.4,LD LTS 18-64,DISCRETIONARY FLEXIBLE FEES & INCOME,2103259304,1000061886,y,4
07.05.2021,ADULT SOCIAL CARE,PEOPLEPLUS ILS,260,LD LTS 18-64,PAYMENTS TO CLIENTS (DIRECT PAYMENTS),2103259205,1000061886,y,4
07.05.2021,ADULT SOCIAL CARE,REDACTED PERSONAL DATA,260,LD LTS 18-64,PAYMENTS TO CLIENTS (DIRECT PAYMENTS),REDACTED,REDACTED,X,10
07.05.2021,ADULT SOCIAL CARE,PEOPLEPLUS ILS,266,LD LTS 18-64,PAYMENTS TO CLIENTS (DIRECT PAYMENTS),2103259643,1000061886,y,4
07.05.2021,ADULT SOCIAL CARE,REDACTED PERSONAL DATA,282.8,LD LTS 18-64,PAYMENTS TO CLIENTS (DIRECT PAYMENTS),REDACTED,REDACTED,X,10
07.05.2021,ADULT SOCIAL CARE,REDACTED PERSONAL DATA,282.8,LD LTS 18-64,PAYMENTS TO CLIENTS (DIRECT PAYMENTS),REDACTED,REDACTED,X,10
07.05.2021,ADULT SOCIAL CARE,BEDE HOUSE ASSOCIATION,290,LD LTS 18-64,DAYCARE,2103260163,1553877,y,4
07.05.2021,ADULT SOCIAL CARE,PEOPLEPLUS ILS,299.6,LD LTS 18-64,PAYMENTS TO CLIENTS (DIRECT PAYMENTS),2103259560,1000061886,y,4
07.05.2021,ADULT SOCIAL CARE,REDACTED PERSONAL DATA,300,LD LTS 18-64,PAYMENTS TO CLIENTS (DIRECT PAYMENTS),REDACTED,REDACTED,X,10
07.05.2021,ADULT SOCIAL CARE,PEOPLEPLUS ILS,305.88,LD LTS 18-64,PAYMENTS TO CLIENTS (DIRECT PAYMENTS),2103259432,1000061886,y,4
07.05.2021,ADULT SOCIAL CARE,PEOPLEPLUS ILS,316.8,LD LTS 18-64,PAYMENTS TO CLIENTS (DIRECT PAYMENTS),2103259786,1000061886,y,4
07.05.2021,ADULT SOCIAL CARE,REDACTED PERSONAL DATA,320,LD LTS 18-64,PAYMENTS TO CLIENTS (DIRECT PAYMENTS),REDACTED,REDACTED,X,10
07.05.2021,ADULT SOCIAL CARE,BEDE HOUSE ASSOCIATION,325,LD LTS 18-64,DAYCARE,2103260165,1553877,y,4
07.05.2021,ADULT SOCIAL CARE,BEDE HOUSE ASSOCIATION,325,LD LTS 18-64,DAYCARE,2103260185,1553877,y,4
07.05.2021,ADULT SOCIAL CARE,BEDE HOUSE ASSOCIATION,325,LD LTS 18-64,SUPPORTED LIVING,2103260183,1553877,y,4
07.05.2021,ADULT SOCIAL CARE,REDACTED PERSONAL DATA,327.2,LD LTS 18-64,PAYMENTS TO CLIENTS (DIRECT PAYMENTS),REDACTED,REDACTED,X,10
07.05.2021,ADULT SOCIAL CARE,PEOPLEPLUS ILS,329.32,LD LTS 18-64,PAYMENTS TO CLIENTS (DIRECT PAYMENTS),2103259606,1000061886,y,4
07.05.2021,ADULT SOCIAL CARE,PEOPLEPLUS ILS,329.8,LD LTS 18-64,PAYMENTS TO CLIENTS (DIRECT PAYMENTS),2103259841,1000061886,y,4
07.05.2021,ADULT SOCIAL CARE,PEOPLEPLUS ILS,334,LD LTS 18-64,PAYMENTS TO CLIENTS (DIRECT PAYMENTS),2103259860,1000061886,y,4
07.05.2021,ADULT SOCIAL CARE,PEOPLEPLUS ILS,342,LD LTS 18-64,PAYMENTS TO CLIENTS (DIRECT PAYMENTS),2103259257,1000061886,y,4
07.05.2021,ADULT SOCIAL CARE,PEOPLEPLUS ILS,349,LD LTS 18-64,PAYMENTS TO CLIENTS (DIRECT PAYMENTS),2103259653,1000061886,y,4
07.05.2021,ADULT SOCIAL CARE,BEDE HOUSE ASSOCIATION,350,LD LTS 18-64,DAYCARE,2103260177,1553877,y,4
07.05.2021,ADULT SOCIAL CARE,PEOPLEPLUS ILS,352,LD LTS 18-64,PAYMENTS TO CLIENTS (DIRECT PAYMENTS),2103259875,1000061886,y,4
07.05.2021,ADULT SOCIAL CARE,REDACTED PERSONAL DATA,359.36,LD LTS 18-64,PAYMENTS TO CLIENTS (DIRECT PAYMENTS),REDACTED,REDACTED,X,10
07.05.2021,ADULT SOCIAL CARE,PEOPLEPLUS ILS,374,LD LTS 18-64,PAYMENTS TO CLIENTS (DIRECT PAYMENTS),2103259592,1000061886,y,4
07.05.2021,ADULT SOCIAL CARE,REDACTED PERSONAL DATA,376,LD LTS 18-64,PAYMENTS TO CLIENTS (DIRECT PAYMENTS),REDACTED,REDACTED,X,10
07.05.2021,ADULT SOCIAL CARE,PEOPLEPLUS ILS,385.6,LD LTS 18-64,PAYMENTS TO CLIENTS (DIRECT PAYMENTS),2103259238,1000061886,y,4
07.05.2021,ADULT SOCIAL CARE,PEOPLEPLUS ILS,393.52,LD LTS 18-64,PAYMENTS TO CLIENTS (DIRECT PAYMENTS),2103259615,1000061886,y,4
07.05.2021,ADULT SOCIAL CARE,PEOPLEPLUS ILS,393.52,LD LTS 18-64,PAYMENTS TO CLIENTS (DIRECT PAYMENTS),2103259624,1000061886,y,4
07.05.2021,ADULT SOCIAL CARE,BEDE HOUSE ASSOCIATION,409,LD LTS 18-64,DAYCARE,2103260167,1553877,y,4
07.05.2021,ADULT SOCIAL CARE,REDACTED PERSONAL DATA,414.8,LD LTS 18-64,PAYMENTS TO CLIENTS (DIRECT PAYMENTS),REDACTED,REDACTED,X,10
07.05.2021,ADULT SOCIAL CARE,PEOPLEPLUS ILS,419.44,LD LTS 18-64,PAYMENTS TO CLIENTS (DIRECT PAYMENTS),2103259763,1000061886,y,4
07.05.2021,ADULT SOCIAL CARE,PEOPLEPLUS ILS,430.8,LD LTS 18-64,PAYMENTS TO CLIENTS (DIRECT PAYMENTS),2103259821,1000061886,y,4
07.05.2021,ADULT SOCIAL CARE,REDACTED PERSONAL DATA,430.8,LD LTS 18-64,PAYMENTS TO CLIENTS (DIRECT PAYMENTS),REDACTED,REDACTED,X,10
07.05.2021,ADULT SOCIAL CARE,PEOPLEPLUS ILS,437.6,LD LTS 18-64,PAYMENTS TO CLIENTS (DIRECT PAYMENTS),2103259299,1000061886,y,4
07.05.2021,ADULT SOCIAL CARE,PEOPLEPLUS ILS,440,LD LTS 18-64,PAYMENTS TO CLIENTS (DIRECT PAYMENTS),2103259316,1000061886,y,4
07.05.2021,ADULT SOCIAL CARE,REDACTED PERSONAL DATA,444.04,LD LTS 18-64,PAYMENTS TO CLIENTS (DIRECT PAYMENTS),REDACTED,REDACTED,X,10
07.05.2021,ADULT SOCIAL CARE,PEOPLEPLUS ILS,452.48,LD LTS 18-64,PAYMENTS TO CLIENTS (DIRECT PAYMENTS),2103259588,1000061886,y,4
07.05.2021,ADULT SOCIAL CARE,PEOPLEPLUS ILS,458.08,LD LTS 18-64,PAYMENTS TO CLIENTS (DIRECT PAYMENTS),2103259785,1000061886,y,4
07.05.2021,ADULT SOCIAL CARE,REDACTED PERSONAL DATA,460.04,LD LTS 18-64,PAYMENTS TO CLIENTS (DIRECT PAYMENTS),REDACTED,REDACTED,X,10
07.05.2021,ADULT SOCIAL CARE,PEOPLEPLUS ILS,464.8,LD LTS 18-64,PAYMENTS TO CLIENTS (DIRECT PAYMENTS),2103259233,1000061886,y,4
07.05.2021,ADULT SOCIAL CARE,FRESH IDEAS & SOLUTIONS SERVICES CIC,465.64,LD LTS 18-64,PAYMENTS TO CLIENTS (DIRECT PAYMENTS),2103259454,1000070832,y,4
07.05.2021,ADULT SOCIAL CARE,SURREY DOCKS FARM PROVIDENT SOCIETY,480,LD LTS 18-64,DAYCARE,2103260195,1000000958,y,4
07.05.2021,ADULT SOCIAL CARE,PEOPLEPLUS ILS,486.48,LD LTS 18-64,PAYMENTS TO CLIENTS (DIRECT PAYMENTS),2103259636,1000061886,y,4
07.05.2021,ADULT SOCIAL CARE,SURREY DOCKS FARM PROVIDENT SOCIETY,487.5,LD LTS 18-64,DAYCARE,2103260191,1000000958,y,4
07.05.2021,ADULT SOCIAL CARE,PEOPLEPLUS ILS,493.36,LD LTS 18-64,PAYMENTS TO CLIENTS (DIRECT PAYMENTS),2103259640,1000061886,y,4
07.05.2021,ADULT SOCIAL CARE,REDACTED PERSONAL DATA,502.6,LD LTS 18-64,PAYMENTS TO CLIENTS (DIRECT PAYMENTS),REDACTED,REDACTED,X,10
07.05.2021,ADULT SOCIAL CARE,PEOPLEPLUS ILS,513.36,LD LTS 18-64,PAYMENTS TO CLIENTS (DIRECT PAYMENTS),2103259869,1000061886,y,4
07.05.2021,ADULT SOCIAL CARE,PEOPLEPLUS ILS,517.2,LD LTS 18-64,PAYMENTS TO CLIENTS (DIRECT PAYMENTS),2103259353,1000061886,y,4
07.05.2021,ADULT SOCIAL CARE,REDACTED PERSONAL DATA,522.6,LD LTS 18-64,PAYMENTS TO CLIENTS (DIRECT PAYMENTS),REDACTED,REDACTED,X,10
07.05.2021,ADULT SOCIAL CARE,REDACTED PERSONAL DATA,522.6,LD LTS 18-64,PAYMENTS TO CLIENTS (DIRECT PAYMENTS),REDACTED,REDACTED,X,10
07.05.2021,ADULT SOCIAL CARE,PEOPLEPLUS ILS,558.72,LD LTS 18-64,PAYMENTS TO CLIENTS (DIRECT PAYMENTS),2103259912,1000061886,y,4
07.05.2021,ADULT SOCIAL CARE,PEOPLEPLUS ILS,573.28,LD LTS 18-64,PAYMENTS TO CLIENTS (DIRECT PAYMENTS),2103259632,1000061886,y,4
07.05.2021,ADULT SOCIAL CARE,BEDE HOUSE ASSOCIATION,580,LD LTS 18-64,DAYCARE,2103260184,1553877,y,4
07.05.2021,ADULT SOCIAL CARE,BEDE HOUSE ASSOCIATION,580,LD LTS 18-64,SUPPORTED LIVING,2103260170,1553877,y,4
07.05.2021,ADULT SOCIAL CARE,REDACTED PERSONAL DATA,584,LD LTS 18-64,PAYMENTS TO CLIENTS (DIRECT PAYMENTS),REDACTED,REDACTED,X,10
07.05.2021,ADULT SOCIAL CARE,REDACTED PERSONAL DATA,594.4,LD LTS 18-64,PAYMENTS TO CLIENTS (DIRECT PAYMENTS),REDACTED,REDACTED,X,10
07.05.2021,ADULT SOCIAL CARE,PEOPLEPLUS ILS,612.36,LD LTS 18-64,PAYMENTS TO CLIENTS (DIRECT PAYMENTS),2103259508,1000061886,y,4
07.05.2021,ADULT SOCIAL CARE,BEDE HOUSE ASSOCIATION,615,LD LTS 18-64,DAYCARE,2103260155,1553877,y,4
07.05.2021,ADULT SOCIAL CARE,BEDE HOUSE ASSOCIATION,615,LD LTS 18-64,DAYCARE,2103260162,1553877,y,4
07.05.2021,ADULT SOCIAL CARE,BEDE HOUSE ASSOCIATION,615,LD LTS 18-64,DAYCARE,2103260166,1553877,y,4
07.05.2021,ADULT SOCIAL CARE,BEDE HOUSE ASSOCIATION,615,LD LTS 18-64,DAYCARE,2103260175,1553877,y,4
07.05.2021,ADULT SOCIAL CARE,BEDE HOUSE ASSOCIATION,615,LD LTS 18-64,DAYCARE,2103260180,1553877,y,4
07.05.2021,ADULT SOCIAL CARE,BEDE HOUSE ASSOCIATION,620,LD LTS 18-64,DAYCARE,2103260154,1553877,y,4
07.05.2021,ADULT SOCIAL CARE,PEOPLEPLUS ILS,632.4,LD LTS 18-64,PAYMENTS TO CLIENTS (DIRECT PAYMENTS),2103259371,1000061886,y,4
07.05.2021,ADULT SOCIAL CARE,PEOPLEPLUS ILS,633.2,LD LTS 18-64,PAYMENTS TO CLIENTS (DIRECT PAYMENTS),2103259906,1000061886,y,4
07.05.2021,ADULT SOCIAL CARE,REDACTED PERSONAL DATA,639.2,LD LTS 18-64,PAYMENTS TO CLIENTS (DIRECT PAYMENTS),REDACTED,REDACTED,X,10
07.05.2021,ADULT SOCIAL CARE,BEDE HOUSE ASSOCIATION,650,LD LTS 18-64,DAYCARE,2103260161,1553877,y,4
07.05.2021,ADULT SOCIAL CARE,BEDE HOUSE ASSOCIATION,663,LD LTS 18-64,DAYCARE,2103260159,1553877,y,4
07.05.2021,ADULT SOCIAL CARE,PEOPLEPLUS ILS,670,LD LTS 18-64,PAYMENTS TO CLIENTS (DIRECT PAYMENTS),2103259364,1000061886,y,4
07.05.2021,ADULT SOCIAL CARE,PEOPLEPLUS ILS,670,LD LTS 18-64,PAYMENTS TO CLIENTS (DIRECT PAYMENTS),2103259566,1000061886,y,4
07.05.2021,ADULT SOCIAL CARE,BEDE HOUSE ASSOCIATION,675,LD LTS 18-64,DAYCARE,2103260169,1553877,y,4
07.05.2021,ADULT SOCIAL CARE,REDACTED PERSONAL DATA,676,LD LTS 18-64,PAYMENTS TO CLIENTS (DIRECT PAYMENTS),REDACTED,REDACTED,X,10
07.05.2021,ADULT SOCIAL CARE,PEOPLEPLUS ILS,685.72,LD LTS 18-64,PAYMENTS TO CLIENTS (DIRECT PAYMENTS),2103259864,1000061886,y,4
07.05.2021,ADULT SOCIAL CARE,PEOPLEPLUS ILS,694,LD LTS 18-64,PAYMENTS TO CLIENTS (DIRECT PAYMENTS),2103259910,1000061886,y,4
07.05.2021,ADULT SOCIAL CARE,REDACTED PERSONAL DATA,698.72,LD LTS 18-64,PAYMENTS TO CLIENTS (DIRECT PAYMENTS),REDACTED,REDACTED,X,10
07.05.2021,ADULT SOCIAL CARE,PEOPLEPLUS ILS,718,LD LTS 18-64,PAYMENTS TO CLIENTS (DIRECT PAYMENTS),2103259235,1000061886,y,4
07.05.2021,ADULT SOCIAL CARE,REDACTED PERSONAL DATA,718,LD LTS 18-64,PAYMENTS TO CLIENTS (DIRECT PAYMENTS),REDACTED,REDACTED,X,10
07.05.2021,ADULT SOCIAL CARE,SURREY DOCKS FARM PROVIDENT SOCIETY,720,LD LTS 18-64,DAYCARE,2103260194,1000000958,y,4
07.05.2021,ADULT SOCIAL CARE,PEOPLEPLUS ILS,724.24,LD LTS 18-64,PAYMENTS TO CLIENTS (DIRECT PAYMENTS),2103259757,1000061886,y,4
07.05.2021,ADULT SOCIAL CARE,PEOPLEPLUS ILS,732.2,LD LTS 18-64,PAYMENTS TO CLIENTS (DIRECT PAYMENTS),2103259376,1000061886,y,4
07.05.2021,ADULT SOCIAL CARE,REDACTED PERSONAL DATA,738,LD LTS 18-64,PAYMENTS TO CLIENTS (DIRECT PAYMENTS),REDACTED,REDACTED,X,10
07.05.2021,ADULT SOCIAL CARE,FRESH IDEAS & SOLUTIONS SERVICES CIC,740,LD LTS 18-64,PAYMENTS TO CLIENTS (DIRECT PAYMENTS),2103259453,1000070832,y,4
07.05.2021,ADULT SOCIAL CARE,PEOPLEPLUS ILS,753.04,LD LTS 18-64,PAYMENTS TO CLIENTS (DIRECT PAYMENTS),2103259556,1000061886,y,4
07.05.2021,ADULT SOCIAL CARE,PEOPLEPLUS ILS,753.04,LD LTS 18-64,PAYMENTS TO CLIENTS (DIRECT PAYMENTS),2103259782,1000061886,y,4
07.05.2021,ADULT SOCIAL CARE,PEOPLEPLUS ILS,762.28,LD LTS 18-64,PAYMENTS TO CLIENTS (DIRECT PAYMENTS),2103259391,1000061886,y,4
07.05.2021,ADULT SOCIAL CARE,PEOPLEPLUS ILS,780,LD LTS 18-64,PAYMENTS TO CLIENTS (DIRECT PAYMENTS),2103259568,1000061886,y,4
07.05.2021,ADULT SOCIAL CARE,PEOPLEPLUS ILS,784.08,LD LTS 18-64,PAYMENTS TO CLIENTS (DIRECT PAYMENTS),2103259482,1000061886,y,4
07.05.2021,ADULT SOCIAL CARE,REDACTED PERSONAL DATA,787.76,LD LTS 18-64,PAYMENTS TO CLIENTS (DIRECT PAYMENTS),REDACTED,REDACTED,X,10
07.05.2021,ADULT SOCIAL CARE,PEOPLEPLUS ILS,789.6,LD LTS 18-64,PAYMENTS TO CLIENTS (DIRECT PAYMENTS),2103259762,1000061886,y,4
07.05.2021,ADULT SOCIAL CARE,FRESH IDEAS & SOLUTIONS SERVICES CIC,791.84,LD LTS 18-64,PAYMENTS TO CLIENTS (DIRECT PAYMENTS),2103259343,1000070832,y,4
07.05.2021,ADULT SOCIAL CARE,PEOPLEPLUS ILS,794,LD LTS 18-64,PAYMENTS TO CLIENTS (DIRECT PAYMENTS),2103259418,1000061886,y,4
07.05.2021,ADULT SOCIAL CARE,PEOPLEPLUS ILS,800,LD LTS 18-64,PAYMENTS TO CLIENTS (DIRECT PAYMENTS),2103259909,1000061886,y,4
07.05.2021,ADULT SOCIAL CARE,REDACTED PERSONAL DATA,809.8,LD LTS 18-64,PAYMENTS TO CLIENTS (DIRECT PAYMENTS),REDACTED,REDACTED,X,10
07.05.2021,ADULT SOCIAL CARE,REDACTED PERSONAL DATA,838.88,LD LTS 18-64,PAYMENTS TO CLIENTS (DIRECT PAYMENTS),REDACTED,REDACTED,X,10
07.05.2021,ADULT SOCIAL CARE,REDACTED PERSONAL DATA,858.88,LD LTS 18-64,PAYMENTS TO CLIENTS (DIRECT PAYMENTS),REDACTED,REDACTED,X,10
07.05.2021,ADULT SOCIAL CARE,PEOPLEPLUS ILS,860,LD LTS 18-64,PAYMENTS TO CLIENTS (DIRECT PAYMENTS),2103259462,1000061886,y,4
07.05.2021,ADULT SOCIAL CARE,FRESH IDEAS & SOLUTIONS SERVICES CIC,875.6,LD LTS 18-64,PAYMENTS TO CLIENTS (DIRECT PAYMENTS),2103259185,1000070832,y,4
07.05.2021,ADULT SOCIAL CARE,REDACTED PERSONAL DATA,888.84,LD LTS 18-64,PAYMENTS TO CLIENTS (DIRECT PAYMENTS),REDACTED,REDACTED,X,10
07.05.2021,ADULT SOCIAL CARE,PEOPLEPLUS ILS,890.84,LD LTS 18-64,PAYMENTS TO CLIENTS (DIRECT PAYMENTS),2103259443,1000061886,y,4
07.05.2021,ADULT SOCIAL CARE,PEOPLEPLUS ILS,896.8,LD LTS 18-64,PAYMENTS TO CLIENTS (DIRECT PAYMENTS),2103259665,1000061886,y,4
07.05.2021,ADULT SOCIAL CARE,FRESH IDEAS & SOLUTIONS SERVICES CIC,900,LD LTS 18-64,PAYMENTS TO CLIENTS (DIRECT PAYMENTS),2103259709,1000070832,y,4
07.05.2021,ADULT SOCIAL CARE,PEOPLEPLUS ILS,904.96,LD LTS 18-64,PAYMENTS TO CLIENTS (DIRECT PAYMENTS),2103259340,1000061886,y,4
07.05.2021,ADULT SOCIAL CARE,PEOPLEPLUS ILS,932.8,LD LTS 18-64,PAYMENTS TO CLIENTS (DIRECT PAYMENTS),2103259279,1000061886,y,4
07.05.2021,ADULT SOCIAL CARE,REDACTED PERSONAL DATA,956.16,LD LTS 18-64,PAYMENTS TO CLIENTS (DIRECT PAYMENTS),REDACTED,REDACTED,X,10
07.05.2021,ADULT SOCIAL CARE,REDACTED PERSONAL DATA,962.76,LD LTS 18-64,PAYMENTS TO CLIENTS (DIRECT PAYMENTS),REDACTED,REDACTED,X,10
07.05.2021,ADULT SOCIAL CARE,PEOPLEPLUS ILS,970.2,LD LTS 18-64,PAYMENTS TO CLIENTS (DIRECT PAYMENTS),2103259382,1000061886,y,4
07.05.2021,ADULT SOCIAL CARE,PEOPLEPLUS ILS,988,LD LTS 18-64,PAYMENTS TO CLIENTS (DIRECT PAYMENTS),2103259933,1000061886,y,4
07.05.2021,ADULT SOCIAL CARE,PEOPLEPLUS ILS,997.2,LD LTS 18-64,PAYMENTS TO CLIENTS (DIRECT PAYMENTS),2103259758,1000061886,y,4
07.05.2021,ADULT SOCIAL CARE,PEOPLEPLUS ILS,"1,000.00",LD LTS 18-64,PAYMENTS TO CLIENTS (DIRECT PAYMENTS),2103259600,1000061886,y,4
07.05.2021,ADULT SOCIAL CARE,PEOPLEPLUS ILS,"1,000.00",LD LTS 18-64,PAYMENTS TO CLIENTS (DIRECT PAYMENTS),2103259788,1000061886,y,4
07.05.2021,ADULT SOCIAL CARE,PEOPLEPLUS ILS,"1,009.00",LD LTS 18-64,PAYMENTS TO CLIENTS (DIRECT PAYMENTS),2103259804,1000061886,y,4
07.05.2021,ADULT SOCIAL CARE,REDACTED PERSONAL DATA,"1,009.46",LD LTS 18-64,PAYMENTS TO CLIENTS (DIRECT PAYMENTS),REDACTED,REDACTED,X,10
07.05.2021,ADULT SOCIAL CARE,PEOPLEPLUS ILS,"1,013.48",LD LTS 18-64,PAYMENTS TO CLIENTS (DIRECT PAYMENTS),2103259317,1000061886,y,4
07.05.2021,ADULT SOCIAL CARE,REDACTED PERSONAL DATA,"1,025.20",LD LTS 18-64,PAYMENTS TO CLIENTS (DIRECT PAYMENTS),REDACTED,REDACTED,X,10
07.05.2021,ADULT SOCIAL CARE,REDACTED PERSONAL DATA,"1,032.16",LD LTS 18-64,SUPPORTED LIVING,REDACTED,REDACTED,X,10
07.05.2021,ADULT SOCIAL CARE,REDACTED PERSONAL DATA,"1,033.72",LD LTS 18-64,PAYMENTS TO CLIENTS (DIRECT PAYMENTS),REDACTED,REDACTED,X,10
07.05.2021,ADULT SOCIAL CARE,PEOPLEPLUS ILS,"1,040.60",LD LTS 18-64,PAYMENTS TO CLIENTS (DIRECT PAYMENTS),2103259424,1000061886,y,4
07.05.2021,ADULT SOCIAL CARE,FRESH IDEAS & SOLUTIONS SERVICES CIC,"1,047.52",LD LTS 18-64,PAYMENTS TO CLIENTS (DIRECT PAYMENTS),2103259766,1000070832,y,4
07.05.2021,ADULT SOCIAL CARE,PEOPLEPLUS ILS,"1,054.00",LD LTS 18-64,PAYMENTS TO CLIENTS (DIRECT PAYMENTS),2103259277,1000061886,y,4
07.05.2021,ADULT SOCIAL CARE,BEDE HOUSE ASSOCIATION,"1,080.00",LD LTS 18-64,DAYCARE,2103260173,1553877,y,4
07.05.2021,ADULT SOCIAL CARE,PEOPLEPLUS ILS,"1,112.56",LD LTS 18-64,PAYMENTS TO CLIENTS (DIRECT PAYMENTS),2103259625,1000061886,y,4
07.05.2021,ADULT SOCIAL CARE,PEOPLEPLUS ILS,"1,128.96",LD LTS 18-64,PAYMENTS TO CLIENTS (DIRECT PAYMENTS),2103259293,1000061886,y,4
07.05.2021,ADULT SOCIAL CARE,BEDE HOUSE ASSOCIATION,"1,160.00",LD LTS 18-64,DAYCARE,2103260160,1553877,y,4
07.05.2021,ADULT SOCIAL CARE,BEDE HOUSE ASSOCIATION,"1,160.00",LD LTS 18-64,DAYCARE,2103260182,1553877,y,4
07.05.2021,ADULT SOCIAL CARE,PEOPLEPLUS ILS,"1,170.00",LD LTS 18-64,PAYMENTS TO CLIENTS (DIRECT PAYMENTS),2103259306,1000061886,y,4
07.05.2021,ADULT SOCIAL CARE,PEOPLEPLUS ILS,"1,172.48",LD LTS 18-64,PAYMENTS TO CLIENTS (DIRECT PAYMENTS),2103259269,1000061886,y,4
07.05.2021,ADULT SOCIAL CARE,PEOPLEPLUS ILS,"1,182.80",LD LTS 18-64,PAYMENTS TO CLIENTS (DIRECT PAYMENTS),2103259692,1000061886,y,4
07.05.2021,ADULT SOCIAL CARE,PEOPLEPLUS ILS,"1,182.80",LD LTS 18-64,PAYMENTS TO CLIENTS (DIRECT PAYMENTS),2103259924,1000061886,y,4
07.05.2021,ADULT SOCIAL CARE,BEDE HOUSE ASSOCIATION,"1,195.00",LD LTS 18-64,DAYCARE,2103260168,1553877,y,4
07.05.2021,ADULT SOCIAL CARE,BEDE HOUSE ASSOCIATION,"1,195.00",LD LTS 18-64,DAYCARE,2103260172,1553877,y,4
07.05.2021,ADULT SOCIAL CARE,BEDE HOUSE ASSOCIATION,"1,230.00",LD LTS 18-64,DAYCARE,2103260187,1553877,y,4
07.05.2021,ADULT SOCIAL CARE,PEOPLEPLUS ILS,"1,242.40",LD LTS 18-64,PAYMENTS TO CLIENTS (DIRECT PAYMENTS),2103259229,1000061886,y,4
07.05.2021,ADULT SOCIAL CARE,PEOPLEPLUS ILS,"1,244.00",LD LTS 18-64,PAYMENTS TO CLIENTS (DIRECT PAYMENTS),2103259916,1000061886,y,4
07.05.2021,ADULT SOCIAL CARE,BEDE HOUSE ASSOCIATION,"1,275.00",LD LTS 18-64,DAYCARE,2103260174,1553877,y,4
07.05.2021,ADULT SOCIAL CARE,REDACTED PERSONAL DATA,"1,293.44",LD LTS 18-64,PAYMENTS TO CLIENTS (DIRECT PAYMENTS),REDACTED,REDACTED,X,10
07.05.2021,ADULT SOCIAL CARE,PEOPLEPLUS ILS,"1,326.40",LD LTS 18-64,PAYMENTS TO CLIENTS (DIRECT PAYMENTS),2103259691,1000061886,y,4
07.05.2021,ADULT SOCIAL CARE,BEDE HOUSE ASSOCIATION,"1,328.00",LD LTS 18-64,DAYCARE,2103260181,1553877,y,4
07.05.2021,ADULT SOCIAL CARE,REDACTED PERSONAL DATA,"1,357.44",LD LTS 18-64,PAYMENTS TO CLIENTS (DIRECT PAYMENTS),REDACTED,REDACTED,X,10
07.05.2021,ADULT SOCIAL CARE,PEOPLEPLUS ILS,"1,359.24",LD LTS 18-64,PAYMENTS TO CLIENTS (DIRECT PAYMENTS),2103259882,1000061886,y,4
07.05.2021,ADULT SOCIAL CARE,PEOPLEPLUS ILS,"1,360.24",LD LTS 18-64,PAYMENTS TO CLIENTS (DIRECT PAYMENTS),2103259404,1000061886,y,4
07.05.2021,ADULT SOCIAL CARE,REDACTED PERSONAL DATA,"1,368.32",LD LTS 18-64,PAYMENTS TO CLIENTS (DIRECT PAYMENTS),REDACTED,REDACTED,X,10
07.05.2021,ADULT SOCIAL CARE,REDACTED PERSONAL DATA,"1,400.00",LD LTS 18-64,PAYMENTS TO CLIENTS (DIRECT PAYMENTS),REDACTED,REDACTED,X,10
07.05.2021,ADULT SOCIAL CARE,REDACTED PERSONAL DATA,"1,420.12",LD LTS 18-64,PAYMENTS TO CLIENTS (DIRECT PAYMENTS),REDACTED,REDACTED,X,10
07.05.2021,ADULT SOCIAL CARE,PEOPLEPLUS ILS,"1,433.20",LD LTS 18-64,PAYMENTS TO CLIENTS (DIRECT PAYMENTS),2103259671,1000061886,y,4
07.05.2021,ADULT SOCIAL CARE,PEOPLEPLUS ILS,"1,460.96",LD LTS 18-64,PAYMENTS TO CLIENTS (DIRECT PAYMENTS),2103259451,1000061886,y,4
07.05.2021,ADULT SOCIAL CARE,REDACTED PERSONAL DATA,"1,532.68",LD LTS 18-64,PAYMENTS TO CLIENTS (DIRECT PAYMENTS),REDACTED,REDACTED,X,10
07.05.2021,ADULT SOCIAL CARE,REDACTED PERSONAL DATA,"1,532.92",LD LTS 18-64,PAYMENTS TO CLIENTS (DIRECT PAYMENTS),REDACTED,REDACTED,X,10
07.05.2021,ADULT SOCIAL CARE,REDACTED PERSONAL DATA,"1,534.00",LD LTS 18-64,PAYMENTS TO CLIENTS (DIRECT PAYMENTS),REDACTED,REDACTED,X,10
07.05.2021,ADULT SOCIAL CARE,PEOPLEPLUS ILS,"1,593.92",LD LTS 18-64,PAYMENTS TO CLIENTS (DIRECT PAYMENTS),2103259697,1000061886,y,4
07.05.2021,ADULT SOCIAL CARE,PEOPLEPLUS ILS,"1,605.76",LD LTS 18-64,PAYMENTS TO CLIENTS (DIRECT PAYMENTS),2103259659,1000061886,y,4
07.05.2021,ADULT SOCIAL CARE,PEOPLEPLUS ILS,"1,689.00",LD LTS 18-64,PAYMENTS TO CLIENTS (DIRECT PAYMENTS),2103259759,1000061886,y,4
07.05.2021,ADULT SOCIAL CARE,PEOPLEPLUS ILS,"1,693.36",LD LTS 18-64,PAYMENTS TO CLIENTS (DIRECT PAYMENTS),2103259501,1000061886,y,4
07.05.2021,ADULT SOCIAL CARE,PEOPLEPLUS ILS,"1,696.80",LD LTS 18-64,PAYMENTS TO CLIENTS (DIRECT PAYMENTS),2103259593,1000061886,y,4
07.05.2021,ADULT SOCIAL CARE,PEOPLEPLUS ILS,"1,730.80",LD LTS 18-64,PAYMENTS TO CLIENTS (DIRECT PAYMENTS),2103259645,1000061886,y,4
07.05.2021,ADULT SOCIAL CARE,REDACTED PERSONAL DATA,"1,746.16",LD LTS 18-64,PAYMENTS TO CLIENTS (DIRECT PAYMENTS),REDACTED,REDACTED,X,10
07.05.2021,ADULT SOCIAL CARE,PEOPLEPLUS ILS,"1,773.96",LD LTS 18-64,PAYMENTS TO CLIENTS (DIRECT PAYMENTS),2103259567,1000061886,y,4
07.05.2021,ADULT SOCIAL CARE,GRANGE FARM COMPLEX,"1,778.36",LD LTS 18-64,SUPPORTED LIVING,2103259723,11086081,y,4
07.05.2021,ADULT SOCIAL CARE,PEOPLEPLUS ILS,"1,817.12",LD LTS 18-64,PAYMENTS TO CLIENTS (DIRECT PAYMENTS),2103259423,1000061886,y,4
07.05.2021,ADULT SOCIAL CARE,PEOPLEPLUS ILS,"1,823.48",LD LTS 18-64,PAYMENTS TO CLIENTS (DIRECT PAYMENTS),2103259465,1000061886,y,4
07.05.2021,ADULT SOCIAL CARE,PEOPLEPLUS ILS,"1,829.60",LD LTS 18-64,PAYMENTS TO CLIENTS (DIRECT PAYMENTS),2103259477,1000061886,y,4
07.05.2021,ADULT SOCIAL CARE,REDACTED PERSONAL DATA,"1,829.92",LD LTS 18-64,PAYMENTS TO CLIENTS (DIRECT PAYMENTS),REDACTED,REDACTED,X,10
07.05.2021,ADULT SOCIAL CARE,PEOPLEPLUS ILS,"1,832.64",LD LTS 18-64,PAYMENTS TO CLIENTS (DIRECT PAYMENTS),2103259348,1000061886,y,4
07.05.2021,ADULT SOCIAL CARE,FRESH IDEAS & SOLUTIONS SERVICES CIC,"1,848.00",LD LTS 18-64,PAYMENTS TO CLIENTS (DIRECT PAYMENTS),2103259851,1000070832,y,4
07.05.2021,ADULT SOCIAL CARE,BEDE HOUSE ASSOCIATION,"1,855.00",LD LTS 18-64,DAYCARE,2103260179,1553877,y,4
07.05.2021,ADULT SOCIAL CARE,PEOPLEPLUS ILS,"1,888.28",LD LTS 18-64,PAYMENTS TO CLIENTS (DIRECT PAYMENTS),2103259365,1000061886,y,4
07.05.2021,ADULT SOCIAL CARE,REDACTED PERSONAL DATA,"1,979.60",LD LTS 18-64,PAYMENTS TO CLIENTS (DIRECT PAYMENTS),REDACTED,REDACTED,X,10
07.05.2021,ADULT SOCIAL CARE,REDACTED PERSONAL DATA,"1,980.00",LD LTS 18-64,PAYMENTS TO CLIENTS (DIRECT PAYMENTS),REDACTED,REDACTED,X,10
07.05.2021,ADULT SOCIAL CARE,PEOPLEPLUS ILS,"2,090.00",LD LTS 18-64,PAYMENTS TO CLIENTS (DIRECT PAYMENTS),2103259193,1000061886,y,4
07.05.2021,ADULT SOCIAL CARE,PEOPLEPLUS ILS,"2,097.56",LD LTS 18-64,PAYMENTS TO CLIENTS (DIRECT PAYMENTS),2103259267,1000061886,y,4
07.05.2021,ADULT SOCIAL CARE,REDACTED PERSONAL DATA,"2,116.00",LD LTS 18-64,PAYMENTS TO CLIENTS (DIRECT PAYMENTS),REDACTED,REDACTED,X,10
07.05.2021,ADULT SOCIAL CARE,PEOPLEPLUS ILS,"2,131.20",LD LTS 18-64,PAYMENTS TO CLIENTS (DIRECT PAYMENTS),2103259867,1000061886,y,4
07.05.2021,ADULT SOCIAL CARE,REDACTED PERSONAL DATA,"2,158.60",LD LTS 18-64,PAYMENTS TO CLIENTS (DIRECT PAYMENTS),REDACTED,REDACTED,X,10
07.05.2021,ADULT SOCIAL CARE,PEOPLEPLUS ILS,"2,194.88",LD LTS 18-64,PAYMENTS TO CLIENTS (DIRECT PAYMENTS),2103259455,1000061886,y,4
07.05.2021,ADULT SOCIAL CARE,REDACTED PERSONAL DATA,"2,262.40",LD LTS 18-64,PAYMENTS TO CLIENTS (DIRECT PAYMENTS),REDACTED,REDACTED,X,10
07.05.2021,ADULT SOCIAL CARE,PEOPLEPLUS ILS,"2,289.28",LD LTS 18-64,PAYMENTS TO CLIENTS (DIRECT PAYMENTS),2103259676,1000061886,y,4
07.05.2021,ADULT SOCIAL CARE,REDACTED PERSONAL DATA,"2,317.60",LD LTS 18-64,PAYMENTS TO CLIENTS (DIRECT PAYMENTS),REDACTED,REDACTED,X,10
07.05.2021,ADULT SOCIAL CARE,REDACTED PERSONAL DATA,"2,347.24",LD LTS 18-64,PAYMENTS TO CLIENTS (DIRECT PAYMENTS),REDACTED,REDACTED,X,10
07.05.2021,ADULT SOCIAL CARE,PEOPLEPLUS ILS,"2,494.00",LD LTS 18-64,PAYMENTS TO CLIENTS (DIRECT PAYMENTS),2103259620,1000061886,y,4
07.05.2021,ADULT SOCIAL CARE,PEOPLEPLUS ILS,"2,550.80",LD LTS 18-64,PAYMENTS TO CLIENTS (DIRECT PAYMENTS),2103259657,1000061886,y,4
07.05.2021,ADULT SOCIAL CARE,FRESH IDEAS & SOLUTIONS SERVICES CIC,"2,618.80",LD LTS 18-64,PAYMENTS TO CLIENTS (DIRECT PAYMENTS),2103259646,1000070832,y,4
07.05.2021,ADULT SOCIAL CARE,REDACTED PERSONAL DATA,"2,660.20",LD LTS 18-64,PAYMENTS TO CLIENTS (DIRECT PAYMENTS),REDACTED,REDACTED,X,10
07.05.2021,ADULT SOCIAL CARE,PEOPLEPLUS ILS,"2,668.40",LD LTS 18-64,PAYMENTS TO CLIENTS (DIRECT PAYMENTS),2103259573,1000061886,y,4
07.05.2021,ADULT SOCIAL CARE,REDACTED PERSONAL DATA,"2,736.00",LD LTS 18-64,PAYMENTS TO CLIENTS (DIRECT PAYMENTS),REDACTED,REDACTED,X,10
07.05.2021,ADULT SOCIAL CARE,PEOPLEPLUS ILS,"2,769.00",LD LTS 18-64,PAYMENTS TO CLIENTS (DIRECT PAYMENTS),2103259425,1000061886,y,4
07.05.2021,ADULT SOCIAL CARE,PEOPLEPLUS ILS,"2,865.00",LD LTS 18-64,PAYMENTS TO CLIENTS (DIRECT PAYMENTS),2103259429,1000061886,y,4
07.05.2021,ADULT SOCIAL CARE,PEOPLEPLUS ILS,"2,889.40",LD LTS 18-64,PAYMENTS TO CLIENTS (DIRECT PAYMENTS),2103259703,1000061886,y,4
07.05.2021,ADULT SOCIAL CARE,PEOPLEPLUS ILS,"2,906.00",LD LTS 18-64,PAYMENTS TO CLIENTS (DIRECT PAYMENTS),2103259270,1000061886,y,4
07.05.2021,ADULT SOCIAL CARE,PEOPLEPLUS ILS,"2,918.00",LD LTS 18-64,PAYMENTS TO CLIENTS (DIRECT PAYMENTS),2103259361,1000061886,y,4
07.05.2021,ADULT SOCIAL CARE,PEOPLEPLUS ILS,"3,106.52",LD LTS 18-64,PAYMENTS TO CLIENTS (DIRECT PAYMENTS),2103259225,1000061886,y,4
07.05.2021,ADULT SOCIAL CARE,BEDE HOUSE ASSOCIATION,"3,650.00",LD LTS 18-64,DAYCARE,2103260157,1553877,y,4
07.05.2021,ADULT SOCIAL CARE,PEOPLEPLUS ILS,"3,795.20",LD LTS 18-64,PAYMENTS TO CLIENTS (DIRECT PAYMENTS),2103259248,1000061886,y,4
07.05.2021,ADULT SOCIAL CARE,REDACTED PERSONAL DATA,"3,864.64",LD LTS 18-64,PAYMENTS TO CLIENTS (DIRECT PAYMENTS),REDACTED,REDACTED,X,10
07.05.2021,ADULT SOCIAL CARE,PEOPLEPLUS ILS,"3,913.00",LD LTS 18-64,PAYMENTS TO CLIENTS (DIRECT PAYMENTS),2103259596,1000061886,y,4
07.05.2021,ADULT SOCIAL CARE,REDACTED PERSONAL DATA,"3,923.12",LD LTS 18-64,PAYMENTS TO CLIENTS (DIRECT PAYMENTS),REDACTED,REDACTED,X,10
07.05.2021,ADULT SOCIAL CARE,PEOPLEPLUS ILS,"4,242.00",LD LTS 18-64,PAYMENTS TO CLIENTS (DIRECT PAYMENTS),2103259899,1000061886,y,4
07.05.2021,ADULT SOCIAL CARE,REDACTED PERSONAL DATA,"4,407.86",LD LTS 18-64,PAYMENTS TO CLIENTS (DIRECT PAYMENTS),REDACTED,REDACTED,X,10
07.05.2021,ADULT SOCIAL CARE,PEOPLEPLUS ILS,"4,524.80",LD LTS 18-64,PAYMENTS TO CLIENTS (DIRECT PAYMENTS),2103259242,1000061886,y,4
07.05.2021,ADULT SOCIAL CARE,PEOPLEPLUS ILS,"4,629.20",LD LTS 18-64,PAYMENTS TO CLIENTS (DIRECT PAYMENTS),2103259341,1000061886,y,4
07.05.2021,ADULT SOCIAL CARE,REDACTED PERSONAL DATA,"5,026.00",LD LTS 18-64,PAYMENTS TO CLIENTS (DIRECT PAYMENTS),REDACTED,REDACTED,X,10
07.05.2021,ADULT SOCIAL CARE,REDACTED PERSONAL DATA,"6,286.08",LD LTS 18-64,PAYMENTS TO CLIENTS (DIRECT PAYMENTS),REDACTED,REDACTED,X,10
07.05.2021,ADULT SOCIAL CARE,REDACTED PERSONAL DATA,"6,287.92",LD LTS 18-64,PAYMENTS TO CLIENTS (DIRECT PAYMENTS),REDACTED,REDACTED,X,10
07.05.2021,ADULT SOCIAL CARE,REDACTED PERSONAL DATA,"6,644.40",LD LTS 18-64,PAYMENTS TO CLIENTS (DIRECT PAYMENTS),REDACTED,REDACTED,X,10
07.05.2021,ADULT SOCIAL CARE,PEOPLEPLUS ILS,"7,997.92",LD LTS 18-64,PAYMENTS TO CLIENTS (DIRECT PAYMENTS),2103259362,1000061886,y,4
07.05.2021,ADULT SOCIAL CARE,REDACTED PERSONAL DATA,"8,484.60",LD LTS 18-64,PAYMENTS TO CLIENTS (DIRECT PAYMENTS),REDACTED,REDACTED,X,10
07.05.2021,ADULT SOCIAL CARE,PEOPLEPLUS ILS,"9,126.80",LD LTS 18-64,PAYMENTS TO CLIENTS (DIRECT PAYMENTS),2103259750,1000061886,y,4
07.05.2021,ADULT SOCIAL CARE,PEOPLEPLUS ILS,"11,809.20",LD LTS 18-64,PAYMENTS TO CLIENTS (DIRECT PAYMENTS),2103259754,1000061886,y,4
07.05.2021,ADULT SOCIAL CARE,REDACTED PERSONAL DATA,"12,580.00",LD LTS 18-64,PAYMENTS TO CLIENTS (DIRECT PAYMENTS),REDACTED,REDACTED,X,10
07.05.2021,ADULT SOCIAL CARE,PEOPLEPLUS ILS,"12,619.20",LD LTS 18-64,PAYMENTS TO CLIENTS (DIRECT PAYMENTS),2103259890,1000061886,y,4
07.05.2021,ADULT SOCIAL CARE,PEOPLEPLUS ILS,"12,619.20",LD LTS 18-64,PAYMENTS TO CLIENTS (DIRECT PAYMENTS),2103259892,1000061886,y,4
07.05.2021,ADULT SOCIAL CARE,PEOPLEPLUS ILS,-445.6,LD LTS 65+,DISCRETIONARY FLEXIBLE FEES & INCOME,2103259616,1000061886,y,4
07.05.2021,ADULT SOCIAL CARE,PEOPLEPLUS ILS,735,LD LTS 65+,PAYMENTS TO CLIENTS (DIRECT PAYMENTS),2103259690,1000061886,y,4
07.05.2021,ADULT SOCIAL CARE,REDACTED PERSONAL DATA,256,MEM LTS 18-64,SUPPORTED LIVING,REDACTED,REDACTED,X,10
07.05.2021,ADULT SOCIAL CARE,PEOPLEPLUS ILS,480.76,MEM LTS 18-64,PAYMENTS TO CLIENTS (DIRECT PAYMENTS),2103259441,1000061886,y,4
07.05.2021,ADULT SOCIAL CARE,PEOPLEPLUS ILS,"1,184.00",MEM LTS 18-64,PAYMENTS TO CLIENTS (DIRECT PAYMENTS),2103259375,1000061886,y,4
07.05.2021,ADULT SOCIAL CARE,REDACTED PERSONAL DATA,"-1,219.00",MEM LTS 65+,DISCRETIONARY FLEXIBLE FEES & INCOME,REDACTED,REDACTED,X,10
07.05.2021,ADULT SOCIAL CARE,REDACTED PERSONAL DATA,-309.64,MEM LTS 65+,DISCRETIONARY FLEXIBLE FEES & INCOME,REDACTED,REDACTED,X,10
07.05.2021,ADULT SOCIAL CARE,PEOPLEPLUS ILS,-274.48,MEM LTS 65+,DISCRETIONARY FLEXIBLE FEES & INCOME,2103259557,1000061886,y,4
07.05.2021,ADULT SOCIAL CARE,PEOPLEPLUS ILS,989.8,MEM LTS 65+,PAYMENTS TO CLIENTS (DIRECT PAYMENTS),2103259558,1000061886,y,4
07.05.2021,ADULT SOCIAL CARE,PEOPLEPLUS ILS,"1,221.76",MEM LTS 65+,PAYMENTS TO CLIENTS (DIRECT PAYMENTS),2103259787,1000061886,y,4
07.05.2021,ADULT SOCIAL CARE,REDACTED PERSONAL DATA,"1,345.44",MEM LTS 65+,PAYMENTS TO CLIENTS (DIRECT PAYMENTS),REDACTED,REDACTED,X,10
07.05.2021,ADULT SOCIAL CARE,PEOPLEPLUS ILS,"2,191.56",MEM LTS 65+,PAYMENTS TO CLIENTS (DIRECT PAYMENTS),2103259372,1000061886,y,4
07.05.2021,ADULT SOCIAL CARE,REDACTED PERSONAL DATA,"2,678.32",MEM LTS 65+,PAYMENTS TO CLIENTS (DIRECT PAYMENTS),REDACTED,REDACTED,X,10
07.05.2021,ADULT SOCIAL CARE,REDACTED PERSONAL DATA,"3,167.36",MEM LTS 65+,PAYMENTS TO CLIENTS (DIRECT PAYMENTS),REDACTED,REDACTED,X,10
07.05.2021,ADULT SOCIAL CARE,PEOPLEPLUS ILS,-503.36,MH LTS 18-64,DISCRETIONARY FLEXIBLE FEES & INCOME,2103259832,1000061886,y,4
07.05.2021,ADULT SOCIAL CARE,PEOPLEPLUS ILS,-318,MH LTS 18-64,DISCRETIONARY FLEXIBLE FEES & INCOME,2103259823,1000061886,y,4
07.05.2021,ADULT SOCIAL CARE,PEOPLEPLUS ILS,274,MH LTS 18-64,PAYMENTS TO CLIENTS (DIRECT PAYMENTS),2103259539,1000061886,y,4
07.05.2021,ADULT SOCIAL CARE,PEOPLEPLUS ILS,276.4,MH LTS 18-64,PAYMENTS TO CLIENTS (DIRECT PAYMENTS),2103259528,1000061886,y,4
07.05.2021,ADULT SOCIAL CARE,PEOPLEPLUS ILS,287.2,MH LTS 18-64,PAYMENTS TO CLIENTS (DIRECT PAYMENTS),2103259263,1000061886,y,4
07.05.2021,ADULT SOCIAL CARE,PEOPLEPLUS ILS,287.96,MH LTS 18-64,PAYMENTS TO CLIENTS (DIRECT PAYMENTS),2103259244,1000061886,y,4
07.05.2021,ADULT SOCIAL CARE,PEOPLEPLUS ILS,293.44,MH LTS 18-64,PAYMENTS TO CLIENTS (DIRECT PAYMENTS),2103259552,1000061886,y,4
07.05.2021,ADULT SOCIAL CARE,SWK DISABLEMENT ASSN,295.36,MH LTS 18-64,SUPPORTED LIVING,2103260188,1000011698,y,4
07.05.2021,ADULT SOCIAL CARE,PEOPLEPLUS ILS,308,MH LTS 18-64,PAYMENTS TO CLIENTS (DIRECT PAYMENTS),2103259298,1000061886,y,4
07.05.2021,ADULT SOCIAL CARE,PEOPLEPLUS ILS,318,MH LTS 18-64,PAYMENTS TO CLIENTS (DIRECT PAYMENTS),2103259877,1000061886,y,4
07.05.2021,ADULT SOCIAL CARE,PEOPLEPLUS ILS,327.44,MH LTS 18-64,PAYMENTS TO CLIENTS (DIRECT PAYMENTS),2103259876,1000061886,y,4
07.05.2021,ADULT SOCIAL CARE,PEOPLEPLUS ILS,334,MH LTS 18-64,PAYMENTS TO CLIENTS (DIRECT PAYMENTS),2103259403,1000061886,y,4
07.05.2021,ADULT SOCIAL CARE,PEOPLEPLUS ILS,334,MH LTS 18-64,PAYMENTS TO CLIENTS (DIRECT PAYMENTS),2103259514,1000061886,y,4
07.05.2021,ADULT SOCIAL CARE,BEDE HOUSE ASSOCIATION,350,MH LTS 18-64,DAYCARE,2103260178,1553877,y,4
07.05.2021,ADULT SOCIAL CARE,PEOPLEPLUS ILS,364,MH LTS 18-64,PAYMENTS TO CLIENTS (DIRECT PAYMENTS),2103259485,1000061886,y,4
07.05.2021,ADULT SOCIAL CARE,PEOPLEPLUS ILS,373.36,MH LTS 18-64,PAYMENTS TO CLIENTS (DIRECT PAYMENTS),2103259463,1000061886,y,4
07.05.2021,ADULT SOCIAL CARE,PEOPLEPLUS ILS,373.36,MH LTS 18-64,PAYMENTS TO CLIENTS (DIRECT PAYMENTS),2103259563,1000061886,y,4
07.05.2021,ADULT SOCIAL CARE,PEOPLEPLUS ILS,385.76,MH LTS 18-64,PAYMENTS TO CLIENTS (DIRECT PAYMENTS),2103259203,1000061886,y,4
07.05.2021,ADULT SOCIAL CARE,PEOPLEPLUS ILS,394,MH LTS 18-64,PAYMENTS TO CLIENTS (DIRECT PAYMENTS),2103259459,1000061886,y,4
07.05.2021,ADULT SOCIAL CARE,REDACTED PERSONAL DATA,396,MH LTS 18-64,PAYMENTS TO CLIENTS (DIRECT PAYMENTS),REDACTED,REDACTED,X,10
07.05.2021,ADULT SOCIAL CARE,REDACTED PERSONAL DATA,410.08,MH LTS 18-64,PAYMENTS TO CLIENTS (DIRECT PAYMENTS),REDACTED,REDACTED,X,10
07.05.2021,ADULT SOCIAL CARE,PEOPLEPLUS ILS,415.8,MH LTS 18-64,PAYMENTS TO CLIENTS (DIRECT PAYMENTS),2103259895,1000061886,y,4
07.05.2021,ADULT SOCIAL CARE,PEOPLEPLUS ILS,427.92,MH LTS 18-64,PAYMENTS TO CLIENTS (DIRECT PAYMENTS),2103259417,1000061886,y,4
07.05.2021,ADULT SOCIAL CARE,PEOPLEPLUS ILS,440.16,MH LTS 18-64,PAYMENTS TO CLIENTS (DIRECT PAYMENTS),2103259259,1000061886,y,4
07.05.2021,ADULT SOCIAL CARE,RACHEL FAMILY HOUSING,501.76,MH LTS 18-64,SUPPORTED LIVING,2103260197,1000084986,y,4
07.05.2021,ADULT SOCIAL CARE,PEOPLEPLUS ILS,510.84,MH LTS 18-64,PAYMENTS TO CLIENTS (DIRECT PAYMENTS),2103259256,1000061886,y,4
07.05.2021,ADULT SOCIAL CARE,PEOPLEPLUS ILS,547.52,MH LTS 18-64,PAYMENTS TO CLIENTS (DIRECT PAYMENTS),2103259686,1000061886,y,4
07.05.2021,ADULT SOCIAL CARE,PEOPLEPLUS ILS,553,MH LTS 18-64,PAYMENTS TO CLIENTS (DIRECT PAYMENTS),2103259576,1000061886,y,4
07.05.2021,ADULT SOCIAL CARE,PEOPLEPLUS ILS,556.69,MH LTS 18-64,PAYMENTS TO CLIENTS (DIRECT PAYMENTS),2103259833,1000061886,y,4
07.05.2021,ADULT SOCIAL CARE,PEOPLEPLUS ILS,559.84,MH LTS 18-64,PAYMENTS TO CLIENTS (DIRECT PAYMENTS),2103259772,1000061886,y,4
07.05.2021,ADULT SOCIAL CARE,PEOPLEPLUS ILS,565.6,MH LTS 18-64,PAYMENTS TO CLIENTS (DIRECT PAYMENTS),2103259336,1000061886,y,4
07.05.2021,ADULT SOCIAL CARE,PEOPLEPLUS ILS,573,MH LTS 18-64,PAYMENTS TO CLIENTS (DIRECT PAYMENTS),2103259881,1000061886,y,4
07.05.2021,ADULT SOCIAL CARE,PEOPLEPLUS ILS,585.48,MH LTS 18-64,PAYMENTS TO CLIENTS (DIRECT PAYMENTS),2103259261,1000061886,y,4
07.05.2021,ADULT SOCIAL CARE,PEOPLEPLUS ILS,587.84,MH LTS 18-64,PAYMENTS TO CLIENTS (DIRECT PAYMENTS),2103259399,1000061886,y,4
07.05.2021,ADULT SOCIAL CARE,PEOPLEPLUS ILS,603.4,MH LTS 18-64,PAYMENTS TO CLIENTS (DIRECT PAYMENTS),2103259384,1000061886,y,4
07.05.2021,ADULT SOCIAL CARE,PEOPLEPLUS ILS,657.08,MH LTS 18-64,PAYMENTS TO CLIENTS (DIRECT PAYMENTS),2103259654,1000061886,y,4
07.05.2021,ADULT SOCIAL CARE,PEOPLEPLUS ILS,659.6,MH LTS 18-64,PAYMENTS TO CLIENTS (DIRECT PAYMENTS),2103259426,1000061886,y,4
07.05.2021,ADULT SOCIAL CARE,PEOPLEPLUS ILS,694.16,MH LTS 18-64,PAYMENTS TO CLIENTS (DIRECT PAYMENTS),2103259655,1000061886,y,4
07.05.2021,ADULT SOCIAL CARE,PEOPLEPLUS ILS,694.24,MH LTS 18-64,PAYMENTS TO CLIENTS (DIRECT PAYMENTS),2103259268,1000061886,y,4
07.05.2021,ADULT SOCIAL CARE,PEOPLEPLUS ILS,"1,144.00",MH LTS 18-64,PAYMENTS TO CLIENTS (DIRECT PAYMENTS),2103259761,1000061886,y,4
07.05.2021,ADULT SOCIAL CARE,REDACTED PERSONAL DATA,"1,158.36",MH LTS 18-64,PAYMENTS TO CLIENTS (DIRECT PAYMENTS),REDACTED,REDACTED,X,10
07.05.2021,ADULT SOCIAL CARE,PEOPLEPLUS ILS,"2,311.60",MH LTS 18-64,PAYMENTS TO CLIENTS (DIRECT PAYMENTS),2103259484,1000061886,y,4
07.05.2021,ADULT SOCIAL CARE,PEOPLEPLUS ILS,321.56,MH LTS 65+,PAYMENTS TO CLIENTS (DIRECT PAYMENTS),2103259472,1000061886,y,4
07.05.2021,ADULT SOCIAL CARE,PEOPLEPLUS ILS,"1,202.60",MH LTS 65+,PAYMENTS TO CLIENTS (DIRECT PAYMENTS),2103259810,1000061886,y,4
07.05.2021,ADULT SOCIAL CARE,PEOPLEPLUS ILS,"1,470.00",PHB- SOUTHWARK CCG,RECOVERABLE COSTS INCL. HEALTH,2103259318,1000061886,y,4
07.05.2021,ADULT SOCIAL CARE,REDACTED PERSONAL DATA,"2,549.52",PHB- SOUTHWARK CCG,RECOVERABLE COSTS INCL. HEALTH,REDACTED,REDACTED,X,10
07.05.2021,ADULT SOCIAL CARE,PEOPLEPLUS ILS,"4,127.92",PHB- SOUTHWARK CCG,RECOVERABLE COSTS INCL. HEALTH,2103259486,1000061886,y,4
07.05.2021,ADULT SOCIAL CARE,PEOPLEPLUS ILS,"6,673.20",PHB- SOUTHWARK CCG,RECOVERABLE COSTS INCL. HEALTH,2103259297,1000061886,y,4
07.05.2021,ADULT SOCIAL CARE,REDACTED PERSONAL DATA,"7,482.40",PHB- SOUTHWARK CCG,RECOVERABLE COSTS INCL. HEALTH,REDACTED,REDACTED,X,10
07.05.2021,ADULT SOCIAL CARE,REDACTED PERSONAL DATA,"9,079.20",PHB- SOUTHWARK CCG,RECOVERABLE COSTS INCL. HEALTH,REDACTED,REDACTED,X,10
07.05.2021,ADULT SOCIAL CARE,REDACTED PERSONAL DATA,"-1,905.40",PHY LTS 18-64,PAYMENTS TO CLIENTS (DIRECT PAYMENTS),REDACTED,REDACTED,X,10
07.05.2021,ADULT SOCIAL CARE,PEOPLEPLUS ILS,-541.2,PHY LTS 18-64,DISCRETIONARY FLEXIBLE FEES & INCOME,2103259352,1000061886,y,4
07.05.2021,ADULT SOCIAL CARE,REDACTED PERSONAL DATA,-359.04,PHY LTS 18-64,DISCRETIONARY FLEXIBLE FEES & INCOME,REDACTED,REDACTED,X,10
07.05.2021,ADULT SOCIAL CARE,REDACTED PERSONAL DATA,-326.96,PHY LTS 18-64,DISCRETIONARY FLEXIBLE FEES & INCOME,REDACTED,REDACTED,X,10
07.05.2021,ADULT SOCIAL CARE,REDACTED PERSONAL DATA,254.52,PHY LTS 18-64,PAYMENTS TO CLIENTS (DIRECT PAYMENTS),REDACTED,REDACTED,X,10
07.05.2021,ADULT SOCIAL CARE,PEOPLEPLUS ILS,265.64,PHY LTS 18-64,PAYMENTS TO CLIENTS (DIRECT PAYMENTS),2103259473,1000061886,y,4
07.05.2021,ADULT SOCIAL CARE,PEOPLEPLUS ILS,293.92,PHY LTS 18-64,PAYMENTS TO CLIENTS (DIRECT PAYMENTS),2103259273,1000061886,y,4
07.05.2021,ADULT SOCIAL CARE,PEOPLEPLUS ILS,295.04,PHY LTS 18-64,PAYMENTS TO CLIENTS (DIRECT PAYMENTS),2103259419,1000061886,y,4
07.05.2021,ADULT SOCIAL CARE,REDACTED PERSONAL DATA,296.96,PHY LTS 18-64,PAYMENTS TO CLIENTS (DIRECT PAYMENTS),REDACTED,REDACTED,X,10
07.05.2021,ADULT SOCIAL CARE,PEOPLEPLUS ILS,307.56,PHY LTS 18-64,PAYMENTS TO CLIENTS (DIRECT PAYMENTS),2103259926,1000061886,y,4
07.05.2021,ADULT SOCIAL CARE,REDACTED PERSONAL DATA,339.36,PHY LTS 18-64,PAYMENTS TO CLIENTS (DIRECT PAYMENTS),REDACTED,REDACTED,X,10
07.05.2021,ADULT SOCIAL CARE,PEOPLEPLUS ILS,365,PHY LTS 18-64,PAYMENTS TO CLIENTS (DIRECT PAYMENTS),2103259474,1000061886,y,4
07.05.2021,ADULT SOCIAL CARE,PEOPLEPLUS ILS,387.52,PHY LTS 18-64,PAYMENTS TO CLIENTS (DIRECT PAYMENTS),2103259818,1000061886,y,4
07.05.2021,ADULT SOCIAL CARE,PEOPLEPLUS ILS,388.4,PHY LTS 18-64,PAYMENTS TO CLIENTS (DIRECT PAYMENTS),2103259379,1000061886,y,4
07.05.2021,ADULT SOCIAL CARE,REDACTED PERSONAL DATA,395.92,PHY LTS 18-64,PAYMENTS TO CLIENTS (DIRECT PAYMENTS),REDACTED,REDACTED,X,10
07.05.2021,ADULT SOCIAL CARE,REDACTED PERSONAL DATA,400,PHY LTS 18-64,PAYMENTS TO CLIENTS (DIRECT PAYMENTS),REDACTED,REDACTED,X,10
07.05.2021,ADULT SOCIAL CARE,PEOPLEPLUS ILS,411.8,PHY LTS 18-64,PAYMENTS TO CLIENTS (DIRECT PAYMENTS),2103259745,1000061886,y,4
07.05.2021,ADULT SOCIAL CARE,PEOPLEPLUS ILS,429.92,PHY LTS 18-64,PAYMENTS TO CLIENTS (DIRECT PAYMENTS),2103259637,1000061886,y,4
07.05.2021,ADULT SOCIAL CARE,REDACTED PERSONAL DATA,430.08,PHY LTS 18-64,PAYMENTS TO CLIENTS (DIRECT PAYMENTS),REDACTED,REDACTED,X,10
07.05.2021,ADULT SOCIAL CARE,PEOPLEPLUS ILS,447.4,PHY LTS 18-64,PAYMENTS TO CLIENTS (DIRECT PAYMENTS),2103259373,1000061886,y,4
07.05.2021,ADULT SOCIAL CARE,PEOPLEPLUS ILS,472.36,PHY LTS 18-64,PAYMENTS TO CLIENTS (DIRECT PAYMENTS),2103259855,1000061886,y,4
07.05.2021,ADULT SOCIAL CARE,REDACTED PERSONAL DATA,472.48,PHY LTS 18-64,PAYMENTS TO CLIENTS (DIRECT PAYMENTS),REDACTED,REDACTED,X,10
07.05.2021,ADULT SOCIAL CARE,REDACTED PERSONAL DATA,494.92,PHY LTS 18-64,PAYMENTS TO CLIENTS (DIRECT PAYMENTS),REDACTED,REDACTED,X,10
07.05.2021,ADULT SOCIAL CARE,PEOPLEPLUS ILS,504,PHY LTS 18-64,PAYMENTS TO CLIENTS (DIRECT PAYMENTS),2103259681,1000061886,y,4
07.05.2021,ADULT SOCIAL CARE,PEOPLEPLUS ILS,505.4,PHY LTS 18-64,PAYMENTS TO CLIENTS (DIRECT PAYMENTS),2103259378,1000061886,y,4
07.05.2021,ADULT SOCIAL CARE,REDACTED PERSONAL DATA,523.56,PHY LTS 18-64,PAYMENTS TO CLIENTS (DIRECT PAYMENTS),REDACTED,REDACTED,X,10
07.05.2021,ADULT SOCIAL CARE,PEOPLEPLUS ILS,543.04,PHY LTS 18-64,PAYMENTS TO CLIENTS (DIRECT PAYMENTS),2103259817,1000061886,y,4
07.05.2021,ADULT SOCIAL CARE,REDACTED PERSONAL DATA,543.2,PHY LTS 18-64,PAYMENTS TO CLIENTS (DIRECT PAYMENTS),REDACTED,REDACTED,X,10
07.05.2021,ADULT SOCIAL CARE,REDACTED PERSONAL DATA,551.48,PHY LTS 18-64,PAYMENTS TO CLIENTS (DIRECT PAYMENTS),REDACTED,REDACTED,X,10
07.05.2021,ADULT SOCIAL CARE,REDACTED PERSONAL DATA,565.6,PHY LTS 18-64,PAYMENTS TO CLIENTS (DIRECT PAYMENTS),REDACTED,REDACTED,X,10
07.05.2021,ADULT SOCIAL CARE,PEOPLEPLUS ILS,579.6,PHY LTS 18-64,PAYMENTS TO CLIENTS (DIRECT PAYMENTS),2103259769,1000061886,y,4
07.05.2021,ADULT SOCIAL CARE,PEOPLEPLUS ILS,585.48,PHY LTS 18-64,PAYMENTS TO CLIENTS (DIRECT PAYMENTS),2103259834,1000061886,y,4
07.05.2021,ADULT SOCIAL CARE,REDACTED PERSONAL DATA,585.6,PHY LTS 18-64,PAYMENTS TO CLIENTS (DIRECT PAYMENTS),REDACTED,REDACTED,X,10
07.05.2021,ADULT SOCIAL CARE,PEOPLEPLUS ILS,587.32,PHY LTS 18-64,PAYMENTS TO CLIENTS (DIRECT PAYMENTS),2103259215,1000061886,y,4
07.05.2021,ADULT SOCIAL CARE,REDACTED PERSONAL DATA,593.88,PHY LTS 18-64,PAYMENTS TO CLIENTS (DIRECT PAYMENTS),REDACTED,REDACTED,X,10
07.05.2021,ADULT SOCIAL CARE,PEOPLEPLUS ILS,598.4,PHY LTS 18-64,PAYMENTS TO CLIENTS (DIRECT PAYMENTS),2103259651,1000061886,y,4
07.05.2021,ADULT SOCIAL CARE,PEOPLEPLUS ILS,599.6,PHY LTS 18-64,PAYMENTS TO CLIENTS (DIRECT PAYMENTS),2103259717,1000061886,y,4
07.05.2021,ADULT SOCIAL CARE,PEOPLEPLUS ILS,608.04,PHY LTS 18-64,PAYMENTS TO CLIENTS (DIRECT PAYMENTS),2103259781,1000061886,y,4
07.05.2021,ADULT SOCIAL CARE,PEOPLEPLUS ILS,613.76,PHY LTS 18-64,PAYMENTS TO CLIENTS (DIRECT PAYMENTS),2103259481,1000061886,y,4
07.05.2021,ADULT SOCIAL CARE,PEOPLEPLUS ILS,613.76,PHY LTS 18-64,PAYMENTS TO CLIENTS (DIRECT PAYMENTS),2103259670,1000061886,y,4
07.05.2021,ADULT SOCIAL CARE,PEOPLEPLUS ILS,613.76,PHY LTS 18-64,PAYMENTS TO CLIENTS (DIRECT PAYMENTS),2103259853,1000061886,y,4
07.05.2021,ADULT SOCIAL CARE,PEOPLEPLUS ILS,627.88,PHY LTS 18-64,PAYMENTS TO CLIENTS (DIRECT PAYMENTS),2103259262,1000061886,y,4
07.05.2021,ADULT SOCIAL CARE,PEOPLEPLUS ILS,627.88,PHY LTS 18-64,PAYMENTS TO CLIENTS (DIRECT PAYMENTS),2103259320,1000061886,y,4
07.05.2021,ADULT SOCIAL CARE,PEOPLEPLUS ILS,636.32,PHY LTS 18-64,PAYMENTS TO CLIENTS (DIRECT PAYMENTS),2103259679,1000061886,y,4
07.05.2021,ADULT SOCIAL CARE,PEOPLEPLUS ILS,642.04,PHY LTS 18-64,PAYMENTS TO CLIENTS (DIRECT PAYMENTS),2103259666,1000061886,y,4
07.05.2021,ADULT SOCIAL CARE,PEOPLEPLUS ILS,670.32,PHY LTS 18-64,PAYMENTS TO CLIENTS (DIRECT PAYMENTS),2103259548,1000061886,y,4
07.05.2021,ADULT SOCIAL CARE,REDACTED PERSONAL DATA,670.44,PHY LTS 18-64,PAYMENTS TO CLIENTS (DIRECT PAYMENTS),REDACTED,REDACTED,X,10
07.05.2021,ADULT SOCIAL CARE,PEOPLEPLUS ILS,678.72,PHY LTS 18-64,PAYMENTS TO CLIENTS (DIRECT PAYMENTS),2103259286,1000061886,y,4
07.05.2021,ADULT SOCIAL CARE,PEOPLEPLUS ILS,678.72,PHY LTS 18-64,PAYMENTS TO CLIENTS (DIRECT PAYMENTS),2103259775,1000061886,y,4
07.05.2021,ADULT SOCIAL CARE,PEOPLEPLUS ILS,684.44,PHY LTS 18-64,PAYMENTS TO CLIENTS (DIRECT PAYMENTS),2103259488,1000061886,y,4
07.05.2021,ADULT SOCIAL CARE,REDACTED PERSONAL DATA,707,PHY LTS 18-64,PAYMENTS TO CLIENTS (DIRECT PAYMENTS),REDACTED,REDACTED,X,10
07.05.2021,ADULT SOCIAL CARE,FRESH IDEAS & SOLUTIONS SERVICES CIC,712.72,PHY LTS 18-64,PAYMENTS TO CLIENTS (DIRECT PAYMENTS),2103259555,1000070832,y,4
07.05.2021,ADULT SOCIAL CARE,REDACTED PERSONAL DATA,738,PHY LTS 18-64,PAYMENTS TO CLIENTS (DIRECT PAYMENTS),REDACTED,REDACTED,X,10
07.05.2021,ADULT SOCIAL CARE,PEOPLEPLUS ILS,741,PHY LTS 18-64,PAYMENTS TO CLIENTS (DIRECT PAYMENTS),2103259405,1000061886,y,4
07.05.2021,ADULT SOCIAL CARE,REDACTED PERSONAL DATA,741.16,PHY LTS 18-64,PAYMENTS TO CLIENTS (DIRECT PAYMENTS),REDACTED,REDACTED,X,10
07.05.2021,ADULT SOCIAL CARE,REDACTED PERSONAL DATA,751.96,PHY LTS 18-64,PAYMENTS TO CLIENTS (DIRECT PAYMENTS),REDACTED,REDACTED,X,10
07.05.2021,ADULT SOCIAL CARE,PEOPLEPLUS ILS,769.28,PHY LTS 18-64,PAYMENTS TO CLIENTS (DIRECT PAYMENTS),2103259846,1000061886,y,4
07.05.2021,ADULT SOCIAL CARE,PEOPLEPLUS ILS,769.28,PHY LTS 18-64,PAYMENTS TO CLIENTS (DIRECT PAYMENTS),2103259879,1000061886,y,4
07.05.2021,ADULT SOCIAL CARE,REDACTED PERSONAL DATA,769.44,PHY LTS 18-64,PAYMENTS TO CLIENTS (DIRECT PAYMENTS),REDACTED,REDACTED,X,10
07.05.2021,ADULT SOCIAL CARE,REDACTED PERSONAL DATA,777.72,PHY LTS 18-64,PAYMENTS TO CLIENTS (DIRECT PAYMENTS),REDACTED,REDACTED,X,10
07.05.2021,ADULT SOCIAL CARE,PEOPLEPLUS ILS,786.2,PHY LTS 18-64,PAYMENTS TO CLIENTS (DIRECT PAYMENTS),2103259319,1000061886,y,4
07.05.2021,ADULT SOCIAL CARE,REDACTED PERSONAL DATA,791.84,PHY LTS 18-64,PAYMENTS TO CLIENTS (DIRECT PAYMENTS),REDACTED,REDACTED,X,10
07.05.2021,ADULT SOCIAL CARE,PEOPLEPLUS ILS,796.88,PHY LTS 18-64,PAYMENTS TO CLIENTS (DIRECT PAYMENTS),2103259565,1000061886,y,4
07.05.2021,ADULT SOCIAL CARE,REDACTED PERSONAL DATA,806,PHY LTS 18-64,PAYMENTS TO CLIENTS (DIRECT PAYMENTS),REDACTED,REDACTED,X,10
07.05.2021,ADULT SOCIAL CARE,PEOPLEPLUS ILS,811.72,PHY LTS 18-64,PAYMENTS TO CLIENTS (DIRECT PAYMENTS),2103259795,1000061886,y,4
07.05.2021,ADULT SOCIAL CARE,PEOPLEPLUS ILS,840,PHY LTS 18-64,PAYMENTS TO CLIENTS (DIRECT PAYMENTS),2103259381,1000061886,y,4
07.05.2021,ADULT SOCIAL CARE,REDACTED PERSONAL DATA,848.4,PHY LTS 18-64,PAYMENTS TO CLIENTS (DIRECT PAYMENTS),REDACTED,REDACTED,X,10
07.05.2021,ADULT SOCIAL CARE,REDACTED PERSONAL DATA,868.4,PHY LTS 18-64,PAYMENTS TO CLIENTS (DIRECT PAYMENTS),REDACTED,REDACTED,X,10
07.05.2021,ADULT SOCIAL CARE,FRESH IDEAS & SOLUTIONS SERVICES CIC,870,PHY LTS 18-64,PAYMENTS TO CLIENTS (DIRECT PAYMENTS),2103259201,1000070832,y,4
07.05.2021,ADULT SOCIAL CARE,PEOPLEPLUS ILS,894.76,PHY LTS 18-64,PAYMENTS TO CLIENTS (DIRECT PAYMENTS),2103259748,1000061886,y,4
07.05.2021,ADULT SOCIAL CARE,REDACTED PERSONAL DATA,904.96,PHY LTS 18-64,PAYMENTS TO CLIENTS (DIRECT PAYMENTS),REDACTED,REDACTED,X,10
07.05.2021,ADULT SOCIAL CARE,REDACTED PERSONAL DATA,933.24,PHY LTS 18-64,PAYMENTS TO CLIENTS (DIRECT PAYMENTS),REDACTED,REDACTED,X,10
07.05.2021,ADULT SOCIAL CARE,PEOPLEPLUS ILS,938.96,PHY LTS 18-64,PAYMENTS TO CLIENTS (DIRECT PAYMENTS),2103259370,1000061886,y,4
07.05.2021,ADULT SOCIAL CARE,PEOPLEPLUS ILS,947.24,PHY LTS 18-64,PAYMENTS TO CLIENTS (DIRECT PAYMENTS),2103259668,1000061886,y,4
07.05.2021,ADULT SOCIAL CARE,PEOPLEPLUS ILS,947.4,PHY LTS 18-64,PAYMENTS TO CLIENTS (DIRECT PAYMENTS),2103259720,1000061886,y,4
07.05.2021,ADULT SOCIAL CARE,REDACTED PERSONAL DATA,961.52,PHY LTS 18-64,PAYMENTS TO CLIENTS (DIRECT PAYMENTS),REDACTED,REDACTED,X,10
07.05.2021,ADULT SOCIAL CARE,PEOPLEPLUS ILS,978.32,PHY LTS 18-64,PAYMENTS TO CLIENTS (DIRECT PAYMENTS),2103259590,1000061886,y,4
07.05.2021,ADULT SOCIAL CARE,PEOPLEPLUS ILS,981.4,PHY LTS 18-64,PAYMENTS TO CLIENTS (DIRECT PAYMENTS),2103259396,1000061886,y,4
07.05.2021,ADULT SOCIAL CARE,PEOPLEPLUS ILS,"1,009.68",PHY LTS 18-64,PAYMENTS TO CLIENTS (DIRECT PAYMENTS),2103259509,1000061886,y,4
07.05.2021,ADULT SOCIAL CARE,PEOPLEPLUS ILS,"1,023.80",PHY LTS 18-64,PAYMENTS TO CLIENTS (DIRECT PAYMENTS),2103259264,1000061886,y,4
07.05.2021,ADULT SOCIAL CARE,REDACTED PERSONAL DATA,"1,023.96",PHY LTS 18-64,PAYMENTS TO CLIENTS (DIRECT PAYMENTS),REDACTED,REDACTED,X,10
07.05.2021,ADULT SOCIAL CARE,REDACTED PERSONAL DATA,"1,024.88",PHY LTS 18-64,PAYMENTS TO CLIENTS (DIRECT PAYMENTS),REDACTED,REDACTED,X,10
07.05.2021,ADULT SOCIAL CARE,PEOPLEPLUS ILS,"1,052.64",PHY LTS 18-64,PAYMENTS TO CLIENTS (DIRECT PAYMENTS),2103259569,1000061886,y,4
07.05.2021,ADULT SOCIAL CARE,FRESH IDEAS & SOLUTIONS SERVICES CIC,"1,094.52",PHY LTS 18-64,PAYMENTS TO CLIENTS (DIRECT PAYMENTS),2103259629,1000070832,y,4
07.05.2021,ADULT SOCIAL CARE,FRESH IDEAS & SOLUTIONS SERVICES CIC,"1,108.64",PHY LTS 18-64,PAYMENTS TO CLIENTS (DIRECT PAYMENTS),2103259464,1000070832,y,4
07.05.2021,ADULT SOCIAL CARE,PEOPLEPLUS ILS,"1,117.08",PHY LTS 18-64,PAYMENTS TO CLIENTS (DIRECT PAYMENTS),2103259281,1000061886,y,4
07.05.2021,ADULT SOCIAL CARE,PEOPLEPLUS ILS,"1,122.80",PHY LTS 18-64,PAYMENTS TO CLIENTS (DIRECT PAYMENTS),2103259852,1000061886,y,4
07.05.2021,ADULT SOCIAL CARE,REDACTED PERSONAL DATA,"1,131.20",PHY LTS 18-64,PAYMENTS TO CLIENTS (DIRECT PAYMENTS),REDACTED,REDACTED,X,10
07.05.2021,ADULT SOCIAL CARE,REDACTED PERSONAL DATA,"1,137.00",PHY LTS 18-64,PAYMENTS TO CLIENTS (DIRECT PAYMENTS),REDACTED,REDACTED,X,10
07.05.2021,ADULT SOCIAL CARE,REDACTED PERSONAL DATA,"1,145.36",PHY LTS 18-64,PAYMENTS TO CLIENTS (DIRECT PAYMENTS),REDACTED,REDACTED,X,10
07.05.2021,ADULT SOCIAL CARE,PEOPLEPLUS ILS,"1,146.40",PHY LTS 18-64,PAYMENTS TO CLIENTS (DIRECT PAYMENTS),2103259468,1000061886,y,4
07.05.2021,ADULT SOCIAL CARE,PEOPLEPLUS ILS,"1,150.52",PHY LTS 18-64,PAYMENTS TO CLIENTS (DIRECT PAYMENTS),2103259461,1000061886,y,4
07.05.2021,ADULT SOCIAL CARE,PEOPLEPLUS ILS,"1,165.20",PHY LTS 18-64,PAYMENTS TO CLIENTS (DIRECT PAYMENTS),2103259513,1000061886,y,4
07.05.2021,ADULT SOCIAL CARE,PEOPLEPLUS ILS,"1,168.24",PHY LTS 18-64,PAYMENTS TO CLIENTS (DIRECT PAYMENTS),2103259338,1000061886,y,4
07.05.2021,ADULT SOCIAL CARE,REDACTED PERSONAL DATA,"1,168.80",PHY LTS 18-64,PAYMENTS TO CLIENTS (DIRECT PAYMENTS),REDACTED,REDACTED,X,10
07.05.2021,ADULT SOCIAL CARE,PEOPLEPLUS ILS,"1,187.76",PHY LTS 18-64,PAYMENTS TO CLIENTS (DIRECT PAYMENTS),2103259583,1000061886,y,4
07.05.2021,ADULT SOCIAL CARE,PEOPLEPLUS ILS,"1,193.48",PHY LTS 18-64,PAYMENTS TO CLIENTS (DIRECT PAYMENTS),2103259487,1000061886,y,4
07.05.2021,ADULT SOCIAL CARE,REDACTED PERSONAL DATA,"1,199.76",PHY LTS 18-64,PAYMENTS TO CLIENTS (DIRECT PAYMENTS),REDACTED,REDACTED,X,10
07.05.2021,ADULT SOCIAL CARE,REDACTED PERSONAL DATA,"1,204.16",PHY LTS 18-64,PAYMENTS TO CLIENTS (DIRECT PAYMENTS),REDACTED,REDACTED,X,10
07.05.2021,ADULT SOCIAL CARE,PEOPLEPLUS ILS,"1,250.04",PHY LTS 18-64,PAYMENTS TO CLIENTS (DIRECT PAYMENTS),2103259498,1000061886,y,4
07.05.2021,ADULT SOCIAL CARE,REDACTED PERSONAL DATA,"1,278.48",PHY LTS 18-64,PAYMENTS TO CLIENTS (DIRECT PAYMENTS),REDACTED,REDACTED,X,10
07.05.2021,ADULT SOCIAL CARE,REDACTED PERSONAL DATA,"1,286.76",PHY LTS 18-64,PAYMENTS TO CLIENTS (DIRECT PAYMENTS),REDACTED,REDACTED,X,10
07.05.2021,ADULT SOCIAL CARE,PEOPLEPLUS ILS,"1,330.00",PHY LTS 18-64,PAYMENTS TO CLIENTS (DIRECT PAYMENTS),2103259207,1000061886,y,4
07.05.2021,ADULT SOCIAL CARE,PEOPLEPLUS ILS,"1,371.44",PHY LTS 18-64,PAYMENTS TO CLIENTS (DIRECT PAYMENTS),2103259442,1000061886,y,4
07.05.2021,ADULT SOCIAL CARE,REDACTED PERSONAL DATA,"1,371.60",PHY LTS 18-64,PAYMENTS TO CLIENTS (DIRECT PAYMENTS),REDACTED,REDACTED,X,10
07.05.2021,ADULT SOCIAL CARE,PEOPLEPLUS ILS,"1,377.32",PHY LTS 18-64,PAYMENTS TO CLIENTS (DIRECT PAYMENTS),2103259471,1000061886,y,4
07.05.2021,ADULT SOCIAL CARE,REDACTED PERSONAL DATA,"1,385.72",PHY LTS 18-64,PAYMENTS TO CLIENTS (DIRECT PAYMENTS),REDACTED,REDACTED,X,10
07.05.2021,ADULT SOCIAL CARE,PEOPLEPLUS ILS,"1,412.16",PHY LTS 18-64,PAYMENTS TO CLIENTS (DIRECT PAYMENTS),2103259755,1000061886,y,4
07.05.2021,ADULT SOCIAL CARE,PEOPLEPLUS ILS,"1,426.00",PHY LTS 18-64,PAYMENTS TO CLIENTS (DIRECT PAYMENTS),2103259564,1000061886,y,4
07.05.2021,ADULT SOCIAL CARE,REDACTED PERSONAL DATA,"1,481.20",PHY LTS 18-64,PAYMENTS TO CLIENTS (DIRECT PAYMENTS),REDACTED,REDACTED,X,10
07.05.2021,ADULT SOCIAL CARE,REDACTED PERSONAL DATA,"1,583.68",PHY LTS 18-64,PAYMENTS TO CLIENTS (DIRECT PAYMENTS),REDACTED,REDACTED,X,10
07.05.2021,ADULT SOCIAL CARE,REDACTED PERSONAL DATA,"1,583.68",PHY LTS 18-64,PAYMENTS TO CLIENTS (DIRECT PAYMENTS),REDACTED,REDACTED,X,10
07.05.2021,ADULT SOCIAL CARE,REDACTED PERSONAL DATA,"1,583.68",PHY LTS 18-64,PAYMENTS TO CLIENTS (DIRECT PAYMENTS),REDACTED,REDACTED,X,10
07.05.2021,ADULT SOCIAL CARE,PEOPLEPLUS ILS,"1,624.00",PHY LTS 18-64,PAYMENTS TO CLIENTS (DIRECT PAYMENTS),2103259476,1000061886,y,4
07.05.2021,ADULT SOCIAL CARE,PEOPLEPLUS ILS,"1,733.56",PHY LTS 18-64,PAYMENTS TO CLIENTS (DIRECT PAYMENTS),2103259747,1000061886,y,4
07.05.2021,ADULT SOCIAL CARE,PEOPLEPLUS ILS,"1,909.40",PHY LTS 18-64,PAYMENTS TO CLIENTS (DIRECT PAYMENTS),2103259660,1000061886,y,4
07.05.2021,ADULT SOCIAL CARE,PEOPLEPLUS ILS,"2,013.60",PHY LTS 18-64,PAYMENTS TO CLIENTS (DIRECT PAYMENTS),2103259656,1000061886,y,4
07.05.2021,ADULT SOCIAL CARE,REDACTED PERSONAL DATA,"2,088.48",PHY LTS 18-64,PAYMENTS TO CLIENTS (DIRECT PAYMENTS),REDACTED,REDACTED,X,10
07.05.2021,ADULT SOCIAL CARE,REDACTED PERSONAL DATA,"2,163.44",PHY LTS 18-64,PAYMENTS TO CLIENTS (DIRECT PAYMENTS),REDACTED,REDACTED,X,10
07.05.2021,ADULT SOCIAL CARE,PEOPLEPLUS ILS,"2,173.00",PHY LTS 18-64,PAYMENTS TO CLIENTS (DIRECT PAYMENTS),2103259710,1000061886,y,4
07.05.2021,ADULT SOCIAL CARE,REDACTED PERSONAL DATA,"2,262.40",PHY LTS 18-64,PAYMENTS TO CLIENTS (DIRECT PAYMENTS),REDACTED,REDACTED,X,10
07.05.2021,ADULT SOCIAL CARE,REDACTED PERSONAL DATA,"2,395.52",PHY LTS 18-64,PAYMENTS TO CLIENTS (DIRECT PAYMENTS),REDACTED,REDACTED,X,10
07.05.2021,ADULT SOCIAL CARE,PEOPLEPLUS ILS,"2,646.80",PHY LTS 18-64,PAYMENTS TO CLIENTS (DIRECT PAYMENTS),2103259276,1000061886,y,4
07.05.2021,ADULT SOCIAL CARE,REDACTED PERSONAL DATA,"2,739.80",PHY LTS 18-64,PAYMENTS TO CLIENTS (DIRECT PAYMENTS),REDACTED,REDACTED,X,10
07.05.2021,ADULT SOCIAL CARE,PEOPLEPLUS ILS,"3,307.52",PHY LTS 18-64,PAYMENTS TO CLIENTS (DIRECT PAYMENTS),2103259738,1000061886,y,4
07.05.2021,ADULT SOCIAL CARE,REDACTED PERSONAL DATA,"3,535.00",PHY LTS 18-64,PAYMENTS TO CLIENTS (DIRECT PAYMENTS),REDACTED,REDACTED,X,10
07.05.2021,ADULT SOCIAL CARE,PEOPLEPLUS ILS,"3,675.40",PHY LTS 18-64,PAYMENTS TO CLIENTS (DIRECT PAYMENTS),2103259427,1000061886,y,4
07.05.2021,ADULT SOCIAL CARE,PEOPLEPLUS ILS,"4,118.92",PHY LTS 18-64,PAYMENTS TO CLIENTS (DIRECT PAYMENTS),2103259368,1000061886,y,4
07.05.2021,ADULT SOCIAL CARE,REDACTED PERSONAL DATA,-506.96,PHY LTS 65+,DISCRETIONARY FLEXIBLE FEES & INCOME,REDACTED,REDACTED,X,10
07.05.2021,ADULT SOCIAL CARE,PEOPLEPLUS ILS,-438.52,PHY LTS 65+,DISCRETIONARY FLEXIBLE FEES & INCOME,2103259929,1000061886,y,4
07.05.2021,ADULT SOCIAL CARE,PEOPLEPLUS ILS,-331.4,PHY LTS 65+,DISCRETIONARY FLEXIBLE FEES & INCOME,2103259813,1000061886,y,4
07.05.2021,ADULT SOCIAL CARE,PEOPLEPLUS ILS,-275.08,PHY LTS 65+,DISCRETIONARY FLEXIBLE FEES & INCOME,2103259917,1000061886,y,4
07.05.2021,ADULT SOCIAL CARE,SOUTHWARK CYPRIOT DAY CENTRE LTD,288,PHY LTS 65+,DAYCARE,2103259726,1000067736,y,4
07.05.2021,ADULT SOCIAL CARE,PEOPLEPLUS ILS,296.8,PHY LTS 65+,PAYMENTS TO CLIENTS (DIRECT PAYMENTS),2103259554,1000061886,y,4
07.05.2021,ADULT SOCIAL CARE,PEOPLEPLUS ILS,310.96,PHY LTS 65+,PAYMENTS TO CLIENTS (DIRECT PAYMENTS),2103259374,1000061886,y,4
07.05.2021,ADULT SOCIAL CARE,PEOPLEPLUS ILS,311.08,PHY LTS 65+,PAYMENTS TO CLIENTS (DIRECT PAYMENTS),2103259675,1000061886,y,4
07.05.2021,ADULT SOCIAL CARE,PEOPLEPLUS ILS,353.52,PHY LTS 65+,PAYMENTS TO CLIENTS (DIRECT PAYMENTS),2103259460,1000061886,y,4
07.05.2021,ADULT SOCIAL CARE,PEOPLEPLUS ILS,365,PHY LTS 65+,PAYMENTS TO CLIENTS (DIRECT PAYMENTS),2103259858,1000061886,y,4
07.05.2021,ADULT SOCIAL CARE,PEOPLEPLUS ILS,365.76,PHY LTS 65+,PAYMENTS TO CLIENTS (DIRECT PAYMENTS),2103259894,1000061886,y,4
07.05.2021,ADULT SOCIAL CARE,REDACTED PERSONAL DATA,395.92,PHY LTS 65+,PAYMENTS TO CLIENTS (DIRECT PAYMENTS),REDACTED,REDACTED,X,10
07.05.2021,ADULT SOCIAL CARE,PEOPLEPLUS ILS,421.56,PHY LTS 65+,PAYMENTS TO CLIENTS (DIRECT PAYMENTS),2103259768,1000061886,y,4
07.05.2021,ADULT SOCIAL CARE,PEOPLEPLUS ILS,444.08,PHY LTS 65+,PAYMENTS TO CLIENTS (DIRECT PAYMENTS),2103259878,1000061886,y,4
07.05.2021,ADULT SOCIAL CARE,REDACTED PERSONAL DATA,494.92,PHY LTS 65+,PAYMENTS TO CLIENTS (DIRECT PAYMENTS),REDACTED,REDACTED,X,10
07.05.2021,ADULT SOCIAL CARE,REDACTED PERSONAL DATA,494.92,PHY LTS 65+,PAYMENTS TO CLIENTS (DIRECT PAYMENTS),REDACTED,REDACTED,X,10
07.05.2021,ADULT SOCIAL CARE,PEOPLEPLUS ILS,509.04,PHY LTS 65+,PAYMENTS TO CLIENTS (DIRECT PAYMENTS),2103259339,1000061886,y,4
07.05.2021,ADULT SOCIAL CARE,BLACK ELDER GROUP SWK,540,PHY LTS 65+,DAYCARE,2103259764,1000067369,y,4
07.05.2021,ADULT SOCIAL CARE,REDACTED PERSONAL DATA,549.92,PHY LTS 65+,PAYMENTS TO CLIENTS (DIRECT PAYMENTS),REDACTED,REDACTED,X,10
07.05.2021,ADULT SOCIAL CARE,REDACTED PERSONAL DATA,551.48,PHY LTS 65+,PAYMENTS TO CLIENTS (DIRECT PAYMENTS),REDACTED,REDACTED,X,10
07.05.2021,ADULT SOCIAL CARE,PEOPLEPLUS ILS,552.2,PHY LTS 65+,PAYMENTS TO CLIENTS (DIRECT PAYMENTS),2103259377,1000061886,y,4
07.05.2021,ADULT SOCIAL CARE,PEOPLEPLUS ILS,573.2,PHY LTS 65+,PAYMENTS TO CLIENTS (DIRECT PAYMENTS),2103259213,1000061886,y,4
07.05.2021,ADULT SOCIAL CARE,PEOPLEPLUS ILS,587.32,PHY LTS 65+,PAYMENTS TO CLIENTS (DIRECT PAYMENTS),2103259859,1000061886,y,4
07.05.2021,ADULT SOCIAL CARE,PEOPLEPLUS ILS,620.12,PHY LTS 65+,PAYMENTS TO CLIENTS (DIRECT PAYMENTS),2103259209,1000061886,y,4
07.05.2021,ADULT SOCIAL CARE,PEOPLEPLUS ILS,622.16,PHY LTS 65+,PAYMENTS TO CLIENTS (DIRECT PAYMENTS),2103259489,1000061886,y,4
07.05.2021,ADULT SOCIAL CARE,PEOPLEPLUS ILS,627.88,PHY LTS 65+,PAYMENTS TO CLIENTS (DIRECT PAYMENTS),2103259529,1000061886,y,4
07.05.2021,ADULT SOCIAL CARE,REDACTED PERSONAL DATA,642.16,PHY LTS 65+,PAYMENTS TO CLIENTS (DIRECT PAYMENTS),REDACTED,REDACTED,X,10
07.05.2021,ADULT SOCIAL CARE,PEOPLEPLUS ILS,684.44,PHY LTS 65+,PAYMENTS TO CLIENTS (DIRECT PAYMENTS),2103259714,1000061886,y,4
07.05.2021,ADULT SOCIAL CARE,PEOPLEPLUS ILS,692.6,PHY LTS 65+,PAYMENTS TO CLIENTS (DIRECT PAYMENTS),2103259749,1000061886,y,4
07.05.2021,ADULT SOCIAL CARE,REDACTED PERSONAL DATA,707,PHY LTS 65+,PAYMENTS TO CLIENTS (DIRECT PAYMENTS),REDACTED,REDACTED,X,10
07.05.2021,ADULT SOCIAL CARE,PEOPLEPLUS ILS,726.88,PHY LTS 65+,PAYMENTS TO CLIENTS (DIRECT PAYMENTS),2103259449,1000061886,y,4
07.05.2021,ADULT SOCIAL CARE,PEOPLEPLUS ILS,739.4,PHY LTS 65+,PAYMENTS TO CLIENTS (DIRECT PAYMENTS),2103259598,1000061886,y,4
07.05.2021,ADULT SOCIAL CARE,PEOPLEPLUS ILS,741,PHY LTS 65+,PAYMENTS TO CLIENTS (DIRECT PAYMENTS),2103259731,1000061886,y,4
07.05.2021,ADULT SOCIAL CARE,PEOPLEPLUS ILS,763.56,PHY LTS 65+,PAYMENTS TO CLIENTS (DIRECT PAYMENTS),2103259605,1000061886,y,4
07.05.2021,ADULT SOCIAL CARE,PEOPLEPLUS ILS,769.28,PHY LTS 65+,PAYMENTS TO CLIENTS (DIRECT PAYMENTS),2103259848,1000061886,y,4
07.05.2021,ADULT SOCIAL CARE,PEOPLEPLUS ILS,777.72,PHY LTS 65+,PAYMENTS TO CLIENTS (DIRECT PAYMENTS),2103259673,1000061886,y,4
07.05.2021,ADULT SOCIAL CARE,PEOPLEPLUS ILS,782.92,PHY LTS 65+,PAYMENTS TO CLIENTS (DIRECT PAYMENTS),2103259562,1000061886,y,4
07.05.2021,ADULT SOCIAL CARE,PEOPLEPLUS ILS,783.44,PHY LTS 65+,PAYMENTS TO CLIENTS (DIRECT PAYMENTS),2103259494,1000061886,y,4
07.05.2021,ADULT SOCIAL CARE,PEOPLEPLUS ILS,791.84,PHY LTS 65+,PAYMENTS TO CLIENTS (DIRECT PAYMENTS),2103259774,1000061886,y,4
07.05.2021,ADULT SOCIAL CARE,REDACTED PERSONAL DATA,791.84,PHY LTS 65+,PAYMENTS TO CLIENTS (DIRECT PAYMENTS),REDACTED,REDACTED,X,10
07.05.2021,ADULT SOCIAL CARE,REDACTED PERSONAL DATA,797.72,PHY LTS 65+,PAYMENTS TO CLIENTS (DIRECT PAYMENTS),REDACTED,REDACTED,X,10
07.05.2021,ADULT SOCIAL CARE,PEOPLEPLUS ILS,811.72,PHY LTS 65+,PAYMENTS TO CLIENTS (DIRECT PAYMENTS),2103259390,1000061886,y,4
07.05.2021,ADULT SOCIAL CARE,PEOPLEPLUS ILS,811.72,PHY LTS 65+,PAYMENTS TO CLIENTS (DIRECT PAYMENTS),2103259695,1000061886,y,4
07.05.2021,ADULT SOCIAL CARE,PEOPLEPLUS ILS,825.84,PHY LTS 65+,PAYMENTS TO CLIENTS (DIRECT PAYMENTS),2103259756,1000061886,y,4
07.05.2021,ADULT SOCIAL CARE,REDACTED PERSONAL DATA,834.28,PHY LTS 65+,PAYMENTS TO CLIENTS (DIRECT PAYMENTS),REDACTED,REDACTED,X,10
07.05.2021,ADULT SOCIAL CARE,PEOPLEPLUS ILS,848.28,PHY LTS 65+,PAYMENTS TO CLIENTS (DIRECT PAYMENTS),2103259310,1000061886,y,4
07.05.2021,ADULT SOCIAL CARE,PEOPLEPLUS ILS,868.28,PHY LTS 65+,PAYMENTS TO CLIENTS (DIRECT PAYMENTS),2103259741,1000061886,y,4
07.05.2021,ADULT SOCIAL CARE,REDACTED PERSONAL DATA,868.4,PHY LTS 65+,PAYMENTS TO CLIENTS (DIRECT PAYMENTS),REDACTED,REDACTED,X,10
07.05.2021,ADULT SOCIAL CARE,REDACTED PERSONAL DATA,888.4,PHY LTS 65+,PAYMENTS TO CLIENTS (DIRECT PAYMENTS),REDACTED,REDACTED,X,10
07.05.2021,ADULT SOCIAL CARE,FRESH IDEAS & SOLUTIONS SERVICES CIC,890.84,PHY LTS 65+,PAYMENTS TO CLIENTS (DIRECT PAYMENTS),2103259421,1000070832,y,4
07.05.2021,ADULT SOCIAL CARE,PEOPLEPLUS ILS,910.68,PHY LTS 65+,PAYMENTS TO CLIENTS (DIRECT PAYMENTS),2103259407,1000061886,y,4
07.05.2021,ADULT SOCIAL CARE,PEOPLEPLUS ILS,910.68,PHY LTS 65+,PAYMENTS TO CLIENTS (DIRECT PAYMENTS),2103259812,1000061886,y,4
07.05.2021,ADULT SOCIAL CARE,PEOPLEPLUS ILS,933.24,PHY LTS 65+,PAYMENTS TO CLIENTS (DIRECT PAYMENTS),2103259587,1000061886,y,4
07.05.2021,ADULT SOCIAL CARE,PEOPLEPLUS ILS,938.96,PHY LTS 65+,PAYMENTS TO CLIENTS (DIRECT PAYMENTS),2103259854,1000061886,y,4
07.05.2021,ADULT SOCIAL CARE,REDACTED PERSONAL DATA,994,PHY LTS 65+,PAYMENTS TO CLIENTS (DIRECT PAYMENTS),REDACTED,REDACTED,X,10
07.05.2021,ADULT SOCIAL CARE,PEOPLEPLUS ILS,"1,136.96",PHY LTS 65+,PAYMENTS TO CLIENTS (DIRECT PAYMENTS),2103259549,1000061886,y,4
07.05.2021,ADULT SOCIAL CARE,PEOPLEPLUS ILS,"1,136.96",PHY LTS 65+,PAYMENTS TO CLIENTS (DIRECT PAYMENTS),2103259779,1000061886,y,4
07.05.2021,ADULT SOCIAL CARE,PEOPLEPLUS ILS,"1,159.36",PHY LTS 65+,PAYMENTS TO CLIENTS (DIRECT PAYMENTS),2103259873,1000061886,y,4
07.05.2021,ADULT SOCIAL CARE,PEOPLEPLUS ILS,"1,193.48",PHY LTS 65+,PAYMENTS TO CLIENTS (DIRECT PAYMENTS),2103259414,1000061886,y,4
07.05.2021,ADULT SOCIAL CARE,REDACTED PERSONAL DATA,"1,201.92",PHY LTS 65+,PAYMENTS TO CLIENTS (DIRECT PAYMENTS),REDACTED,REDACTED,X,10
07.05.2021,ADULT SOCIAL CARE,PEOPLEPLUS ILS,"1,207.64",PHY LTS 65+,PAYMENTS TO CLIENTS (DIRECT PAYMENTS),2103259884,1000061886,y,4
07.05.2021,ADULT SOCIAL CARE,PEOPLEPLUS ILS,"1,258.48",PHY LTS 65+,PAYMENTS TO CLIENTS (DIRECT PAYMENTS),2103259324,1000061886,y,4
07.05.2021,ADULT SOCIAL CARE,REDACTED PERSONAL DATA,"1,264.32",PHY LTS 65+,PAYMENTS TO CLIENTS (DIRECT PAYMENTS),REDACTED,REDACTED,X,10
07.05.2021,ADULT SOCIAL CARE,PEOPLEPLUS ILS,"1,288.00",PHY LTS 65+,PAYMENTS TO CLIENTS (DIRECT PAYMENTS),2103259891,1000061886,y,4
07.05.2021,ADULT SOCIAL CARE,REDACTED PERSONAL DATA,"1,315.04",PHY LTS 65+,PAYMENTS TO CLIENTS (DIRECT PAYMENTS),REDACTED,REDACTED,X,10
07.05.2021,ADULT SOCIAL CARE,PEOPLEPLUS ILS,"1,343.32",PHY LTS 65+,PAYMENTS TO CLIENTS (DIRECT PAYMENTS),2103259687,1000061886,y,4
07.05.2021,ADULT SOCIAL CARE,REDACTED PERSONAL DATA,"1,490.56",PHY LTS 65+,PAYMENTS TO CLIENTS (DIRECT PAYMENTS),REDACTED,REDACTED,X,10
07.05.2021,ADULT SOCIAL CARE,REDACTED PERSONAL DATA,"1,498.84",PHY LTS 65+,PAYMENTS TO CLIENTS (DIRECT PAYMENTS),REDACTED,REDACTED,X,10
07.05.2021,ADULT SOCIAL CARE,REDACTED PERSONAL DATA,"1,555.40",PHY LTS 65+,PAYMENTS TO CLIENTS (DIRECT PAYMENTS),REDACTED,REDACTED,X,10
07.05.2021,ADULT SOCIAL CARE,REDACTED PERSONAL DATA,"1,603.68",PHY LTS 65+,PAYMENTS TO CLIENTS (DIRECT PAYMENTS),REDACTED,REDACTED,X,10
07.05.2021,ADULT SOCIAL CARE,REDACTED PERSONAL DATA,"1,651.00",PHY LTS 65+,PAYMENTS TO CLIENTS (DIRECT PAYMENTS),REDACTED,REDACTED,X,10
07.05.2021,ADULT SOCIAL CARE,PEOPLEPLUS ILS,"1,668.52",PHY LTS 65+,PAYMENTS TO CLIENTS (DIRECT PAYMENTS),2103259880,1000061886,y,4
07.05.2021,ADULT SOCIAL CARE,PEOPLEPLUS ILS,"1,675.40",PHY LTS 65+,PAYMENTS TO CLIENTS (DIRECT PAYMENTS),2103259857,1000061886,y,4
07.05.2021,ADULT SOCIAL CARE,PEOPLEPLUS ILS,"1,886.00",PHY LTS 65+,PAYMENTS TO CLIENTS (DIRECT PAYMENTS),2103259383,1000061886,y,4
07.05.2021,ADULT SOCIAL CARE,PEOPLEPLUS ILS,"1,886.36",PHY LTS 65+,PAYMENTS TO CLIENTS (DIRECT PAYMENTS),2103259765,1000061886,y,4
07.05.2021,ADULT SOCIAL CARE,PEOPLEPLUS ILS,"1,900.48",PHY LTS 65+,PAYMENTS TO CLIENTS (DIRECT PAYMENTS),2103259870,1000061886,y,4
07.05.2021,ADULT SOCIAL CARE,PEOPLEPLUS ILS,"2,014.48",PHY LTS 65+,PAYMENTS TO CLIENTS (DIRECT PAYMENTS),2103259217,1000061886,y,4
07.05.2021,ADULT SOCIAL CARE,REDACTED PERSONAL DATA,"2,132.72",PHY LTS 65+,PAYMENTS TO CLIENTS (DIRECT PAYMENTS),REDACTED,REDACTED,X,10
07.05.2021,ADULT SOCIAL CARE,PEOPLEPLUS ILS,"2,201.00",PHY LTS 65+,PAYMENTS TO CLIENTS (DIRECT PAYMENTS),2103259866,1000061886,y,4
07.05.2021,ADULT SOCIAL CARE,REDACTED PERSONAL DATA,"2,282.40",PHY LTS 65+,PAYMENTS TO CLIENTS (DIRECT PAYMENTS),REDACTED,REDACTED,X,10
07.05.2021,ADULT SOCIAL CARE,REDACTED PERSONAL DATA,"3,293.00",PHY LTS 65+,PAYMENTS TO CLIENTS (DIRECT PAYMENTS),REDACTED,REDACTED,X,10
07.05.2021,ADULT SOCIAL CARE,REDACTED PERSONAL DATA,"3,655.00",PHY LTS 65+,PAYMENTS TO CLIENTS (DIRECT PAYMENTS),REDACTED,REDACTED,X,10
07.05.2021,ADULT SOCIAL CARE,LEWISHAM INDO CHINESE COMMUNITY,280,SEN LTS 65+,DAYCARE,2103259342,1000076593,y,4
07.05.2021,ADULT SOCIAL CARE,PEOPLEPLUS ILS,-320.36,SOCIAL ISOLATION,DISCRETIONARY FLEXIBLE FEES & INCOME,2103259706,1000061886,y,4
07.05.2021,ADULT SOCIAL CARE,FRESH IDEAS & SOLUTIONS SERVICES CIC,260.24,SOCIAL ISOLATION,PAYMENTS TO CLIENTS (DIRECT PAYMENTS),2103259187,1000070832,y,4
07.05.2021,ADULT SOCIAL CARE,PEOPLEPLUS ILS,475.12,SOCIAL ISOLATION,PAYMENTS TO CLIENTS (DIRECT PAYMENTS),2103259285,1000061886,y,4
07.05.2021,ADULT SOCIAL CARE,SURREY DOCKS FARM PROVIDENT SOCIETY,500,SOCIAL ISOLATION,DAYCARE,2103260192,1000000958,y,4
07.05.2021,ADULT SOCIAL CARE,REDACTED PERSONAL DATA,614.4,SOCIAL ISOLATION,PAYMENTS TO CLIENTS (DIRECT PAYMENTS),REDACTED,REDACTED,X,10
07.05.2021,ADULT SOCIAL CARE,PEOPLEPLUS ILS,622.16,SOCIAL ISOLATION,PAYMENTS TO CLIENTS (DIRECT PAYMENTS),2103259284,1000061886,y,4
07.05.2021,ADULT SOCIAL CARE,PEOPLEPLUS ILS,642.04,SOCIAL ISOLATION,PAYMENTS TO CLIENTS (DIRECT PAYMENTS),2103259237,1000061886,y,4
07.05.2021,ADULT SOCIAL CARE,PEOPLEPLUS ILS,992.72,SOCIAL ISOLATION,PAYMENTS TO CLIENTS (DIRECT PAYMENTS),2103259850,1000061886,y,4
07.05.2021,ADULT SOCIAL CARE,PEOPLEPLUS ILS,"1,221.76",SOCIAL ISOLATION,PAYMENTS TO CLIENTS (DIRECT PAYMENTS),2103259307,1000061886,y,4
07.05.2021,ADULT SOCIAL CARE,BEDE HOUSE ASSOCIATION,"1,280.00",SOCIAL ISOLATION,DAYCARE,2103260158,1553877,y,4
07.05.2021,ADULT SOCIAL CARE,PEOPLEPLUS ILS,"1,787.36",SOCIAL ISOLATION,PAYMENTS TO CLIENTS (DIRECT PAYMENTS),2103259842,1000061886,y,4
07.05.2021,ADULT SOCIAL CARE,PEOPLEPLUS ILS,"2,222.84",SOCIAL ISOLATION,PAYMENTS TO CLIENTS (DIRECT PAYMENTS),2103259380,1000061886,y,4
07.05.2021,ADULT SOCIAL CARE,PEOPLEPLUS ILS,273.68,SPEC NEEDS CHILDREN,PAYMENTS TO CLIENTS (DIRECT PAYMENTS),2103259943,1000061886,y,4
07.05.2021,ADULT SOCIAL CARE,PEOPLEPLUS ILS,273.68,SPEC NEEDS CHILDREN,PAYMENTS TO CLIENTS (DIRECT PAYMENTS),2103259989,1000061886,y,4
07.05.2021,ADULT SOCIAL CARE,REDACTED PERSONAL DATA,"3,251.00",SPEC NEEDS CHILDREN,PAYMENTS TO CLIENTS (DIRECT PAYMENTS),REDACTED,REDACTED,X,10
07.05.2021,ADULT SOCIAL CARE,REDACTED PERSONAL DATA,"3,662.20",SPEC NEEDS CHILDREN,PAYMENTS TO CLIENTS (DIRECT PAYMENTS),REDACTED,REDACTED,X,10
07.05.2021,ADULT SOCIAL CARE,PEOPLEPLUS ILS,253.68,SPECIALIST CARE,PAYMENTS TO CLIENTS (DIRECT PAYMENTS),2103259955,1000061886,y,4
07.05.2021,ADULT SOCIAL CARE,PEOPLEPLUS ILS,253.68,SPECIALIST CARE,PAYMENTS TO CLIENTS (DIRECT PAYMENTS),2103260070,1000061886,y,4
07.05.2021,ADULT SOCIAL CARE,REDACTED PERSONAL DATA,259.68,SPECIALIST CARE,PAYMENTS TO CLIENTS (DIRECT PAYMENTS),REDACTED,REDACTED,X,10
07.05.2021,ADULT SOCIAL CARE,REDACTED PERSONAL DATA,259.68,SPECIALIST CARE,PAYMENTS TO CLIENTS (DIRECT PAYMENTS),REDACTED,REDACTED,X,10
07.05.2021,ADULT SOCIAL CARE,REDACTED PERSONAL DATA,259.68,SPECIALIST CARE,PAYMENTS TO CLIENTS (DIRECT PAYMENTS),REDACTED,REDACTED,X,10
07.05.2021,ADULT SOCIAL CARE,REDACTED PERSONAL DATA,259.68,SPECIALIST CARE,PAYMENTS TO CLIENTS (DIRECT PAYMENTS),REDACTED,REDACTED,X,10
07.05.2021,ADULT SOCIAL CARE,REDACTED PERSONAL DATA,259.68,SPECIALIST CARE,PAYMENTS TO CLIENTS (DIRECT PAYMENTS),REDACTED,REDACTED,X,10
07.05.2021,ADULT SOCIAL CARE,PEOPLEPLUS ILS,260.24,SPECIALIST CARE,PAYMENTS TO CLIENTS (DIRECT PAYMENTS),2103260096,1000061886,y,4
07.05.2021,ADULT SOCIAL CARE,CONTACT PROFESSIONALS,266,SPECIALIST CARE,SECTION 17 PAYMENTS TO AGENCIES/CARERS,2103258989,1000057263,y,4
07.05.2021,ADULT SOCIAL CARE,REDACTED PERSONAL DATA,268.32,SPECIALIST CARE,PAYMENTS TO CLIENTS (DIRECT PAYMENTS),REDACTED,REDACTED,X,10
07.05.2021,ADULT SOCIAL CARE,PEOPLEPLUS ILS,273.2,SPECIALIST CARE,PAYMENTS TO CLIENTS (DIRECT PAYMENTS),2103260112,1000061886,y,4
07.05.2021,ADULT SOCIAL CARE,PEOPLEPLUS ILS,273.68,SPECIALIST CARE,PAYMENTS TO CLIENTS (DIRECT PAYMENTS),2103259936,1000061886,y,4
07.05.2021,ADULT SOCIAL CARE,PEOPLEPLUS ILS,273.68,SPECIALIST CARE,PAYMENTS TO CLIENTS (DIRECT PAYMENTS),2103259937,1000061886,y,4
07.05.2021,ADULT SOCIAL CARE,PEOPLEPLUS ILS,273.68,SPECIALIST CARE,PAYMENTS TO CLIENTS (DIRECT PAYMENTS),2103259938,1000061886,y,4
07.05.2021,ADULT SOCIAL CARE,PEOPLEPLUS ILS,273.68,SPECIALIST CARE,PAYMENTS TO CLIENTS (DIRECT PAYMENTS),2103259968,1000061886,y,4
07.05.2021,ADULT SOCIAL CARE,PEOPLEPLUS ILS,273.68,SPECIALIST CARE,PAYMENTS TO CLIENTS (DIRECT PAYMENTS),2103259970,1000061886,y,4
07.05.2021,ADULT SOCIAL CARE,PEOPLEPLUS ILS,273.68,SPECIALIST CARE,PAYMENTS TO CLIENTS (DIRECT PAYMENTS),2103259977,1000061886,y,4
07.05.2021,ADULT SOCIAL CARE,PEOPLEPLUS ILS,273.68,SPECIALIST CARE,PAYMENTS TO CLIENTS (DIRECT PAYMENTS),2103259980,1000061886,y,4
07.05.2021,ADULT SOCIAL CARE,PEOPLEPLUS ILS,273.68,SPECIALIST CARE,PAYMENTS TO CLIENTS (DIRECT PAYMENTS),2103260005,1000061886,y,4
07.05.2021,ADULT SOCIAL CARE,PEOPLEPLUS ILS,273.68,SPECIALIST CARE,PAYMENTS TO CLIENTS (DIRECT PAYMENTS),2103260009,1000061886,y,4
07.05.2021,ADULT SOCIAL CARE,PEOPLEPLUS ILS,273.68,SPECIALIST CARE,PAYMENTS TO CLIENTS (DIRECT PAYMENTS),2103260011,1000061886,y,4
07.05.2021,ADULT SOCIAL CARE,PEOPLEPLUS ILS,273.68,SPECIALIST CARE,PAYMENTS TO CLIENTS (DIRECT PAYMENTS),2103260026,1000061886,y,4
07.05.2021,ADULT SOCIAL CARE,PEOPLEPLUS ILS,273.68,SPECIALIST CARE,PAYMENTS TO CLIENTS (DIRECT PAYMENTS),2103260027,1000061886,y,4
07.05.2021,ADULT SOCIAL CARE,PEOPLEPLUS ILS,273.68,SPECIALIST CARE,PAYMENTS TO CLIENTS (DIRECT PAYMENTS),2103260044,1000061886,y,4
07.05.2021,ADULT SOCIAL CARE,PEOPLEPLUS ILS,273.68,SPECIALIST CARE,PAYMENTS TO CLIENTS (DIRECT PAYMENTS),2103260055,1000061886,y,4
07.05.2021,ADULT SOCIAL CARE,PEOPLEPLUS ILS,273.68,SPECIALIST CARE,PAYMENTS TO CLIENTS (DIRECT PAYMENTS),2103260062,1000061886,y,4
07.05.2021,ADULT SOCIAL CARE,PEOPLEPLUS ILS,273.68,SPECIALIST CARE,PAYMENTS TO CLIENTS (DIRECT PAYMENTS),2103260083,1000061886,y,4
07.05.2021,ADULT SOCIAL CARE,PEOPLEPLUS ILS,273.68,SPECIALIST CARE,PAYMENTS TO CLIENTS (DIRECT PAYMENTS),2103260086,1000061886,y,4
07.05.2021,ADULT SOCIAL CARE,PEOPLEPLUS ILS,273.68,SPECIALIST CARE,PAYMENTS TO CLIENTS (DIRECT PAYMENTS),2103260093,1000061886,y,4
07.05.2021,ADULT SOCIAL CARE,PEOPLEPLUS ILS,273.68,SPECIALIST CARE,PAYMENTS TO CLIENTS (DIRECT PAYMENTS),2103260098,1000061886,y,4
07.05.2021,ADULT SOCIAL CARE,PEOPLEPLUS ILS,273.68,SPECIALIST CARE,PAYMENTS TO CLIENTS (DIRECT PAYMENTS),2103260100,1000061886,y,4
07.05.2021,ADULT SOCIAL CARE,PEOPLEPLUS ILS,273.68,SPECIALIST CARE,PAYMENTS TO CLIENTS (DIRECT PAYMENTS),2103260104,1000061886,y,4
07.05.2021,ADULT SOCIAL CARE,PEOPLEPLUS ILS,273.68,SPECIALIST CARE,PAYMENTS TO CLIENTS (DIRECT PAYMENTS),2103260106,1000061886,y,4
07.05.2021,ADULT SOCIAL CARE,PEOPLEPLUS ILS,273.68,SPECIALIST CARE,PAYMENTS TO CLIENTS (DIRECT PAYMENTS),2103260113,1000061886,y,4
07.05.2021,ADULT SOCIAL CARE,PEOPLEPLUS ILS,273.68,SPECIALIST CARE,PAYMENTS TO CLIENTS (DIRECT PAYMENTS),2103260132,1000061886,y,4
07.05.2021,ADULT SOCIAL CARE,PEOPLEPLUS ILS,273.68,SPECIALIST CARE,PAYMENTS TO CLIENTS (DIRECT PAYMENTS),2103260135,1000061886,y,4
07.05.2021,ADULT SOCIAL CARE,CONTACT PROFESSIONALS,285,SPECIALIST CARE,SECTION 17 PAYMENTS TO AGENCIES/CARERS,2103258977,1000057263,y,4
07.05.2021,ADULT SOCIAL CARE,REDACTED PERSONAL DATA,287.2,SPECIALIST CARE,PAYMENTS TO CLIENTS (DIRECT PAYMENTS),REDACTED,REDACTED,X,10
07.05.2021,ADULT SOCIAL CARE,PEOPLEPLUS ILS,293.96,SPECIALIST CARE,PAYMENTS TO CLIENTS (DIRECT PAYMENTS),2103260019,1000061886,y,4
07.05.2021,ADULT SOCIAL CARE,PEOPLEPLUS ILS,299.6,SPECIALIST CARE,PAYMENTS TO CLIENTS (DIRECT PAYMENTS),2103260074,1000061886,y,4
07.05.2021,ADULT SOCIAL CARE,REDACTED PERSONAL DATA,307.2,SPECIALIST CARE,PAYMENTS TO CLIENTS (DIRECT PAYMENTS),REDACTED,REDACTED,X,10
07.05.2021,ADULT SOCIAL CARE,REDACTED PERSONAL DATA,307.2,SPECIALIST CARE,PAYMENTS TO CLIENTS (DIRECT PAYMENTS),REDACTED,REDACTED,X,10
07.05.2021,ADULT SOCIAL CARE,PEOPLEPLUS ILS,314.6,SPECIALIST CARE,PAYMENTS TO CLIENTS (DIRECT PAYMENTS),2103260115,1000061886,y,4
07.05.2021,ADULT SOCIAL CARE,PEOPLEPLUS ILS,314.6,SPECIALIST CARE,PAYMENTS TO CLIENTS (DIRECT PAYMENTS),2103260137,1000061886,y,4
07.05.2021,ADULT SOCIAL CARE,PEOPLEPLUS ILS,321.2,SPECIALIST CARE,PAYMENTS TO CLIENTS (DIRECT PAYMENTS),2103260020,1000061886,y,4
07.05.2021,ADULT SOCIAL CARE,PEOPLEPLUS ILS,333,SPECIALIST CARE,PAYMENTS TO CLIENTS (DIRECT PAYMENTS),2103260134,1000061886,y,4
07.05.2021,ADULT SOCIAL CARE,PEOPLEPLUS ILS,333.6,SPECIALIST CARE,PAYMENTS TO CLIENTS (DIRECT PAYMENTS),2103259975,1000061886,y,4
07.05.2021,ADULT SOCIAL CARE,PEOPLEPLUS ILS,333.6,SPECIALIST CARE,PAYMENTS TO CLIENTS (DIRECT PAYMENTS),2103260054,1000061886,y,4
07.05.2021,ADULT SOCIAL CARE,METRO HOMECARE LTD,346.5,SPECIALIST CARE,SECTION 17 PAYMENTS TO AGENCIES/CARERS,2103259089,1000070695,y,4
07.05.2021,ADULT SOCIAL CARE,PEOPLEPLUS ILS,348.6,SPECIALIST CARE,PAYMENTS TO CLIENTS (DIRECT PAYMENTS),2103259958,1000061886,y,4
07.05.2021,ADULT SOCIAL CARE,PEOPLEPLUS ILS,348.6,SPECIALIST CARE,PAYMENTS TO CLIENTS (DIRECT PAYMENTS),2103260036,1000061886,y,4
07.05.2021,ADULT SOCIAL CARE,REDACTED PERSONAL DATA,349.56,SPECIALIST CARE,PAYMENTS TO CLIENTS (DIRECT PAYMENTS),REDACTED,REDACTED,X,10
07.05.2021,ADULT SOCIAL CARE,PEOPLEPLUS ILS,359.52,SPECIALIST CARE,PAYMENTS TO CLIENTS (DIRECT PAYMENTS),2103260119,1000061886,y,4
07.05.2021,ADULT SOCIAL CARE,PEOPLEPLUS ILS,363.56,SPECIALIST CARE,PAYMENTS TO CLIENTS (DIRECT PAYMENTS),2103260045,1000061886,y,4
07.05.2021,ADULT SOCIAL CARE,REDACTED PERSONAL DATA,369.56,SPECIALIST CARE,PAYMENTS TO CLIENTS (DIRECT PAYMENTS),REDACTED,REDACTED,X,10
07.05.2021,ADULT SOCIAL CARE,PEOPLEPLUS ILS,372.68,SPECIALIST CARE,PAYMENTS TO CLIENTS (DIRECT PAYMENTS),2103259967,1000061886,y,4
07.05.2021,ADULT SOCIAL CARE,PEOPLEPLUS ILS,372.68,SPECIALIST CARE,PAYMENTS TO CLIENTS (DIRECT PAYMENTS),2103259982,1000061886,y,4
07.05.2021,ADULT SOCIAL CARE,PEOPLEPLUS ILS,372.68,SPECIALIST CARE,PAYMENTS TO CLIENTS (DIRECT PAYMENTS),2103260067,1000061886,y,4
07.05.2021,ADULT SOCIAL CARE,REDACTED PERSONAL DATA,379.52,SPECIALIST CARE,PAYMENTS TO CLIENTS (DIRECT PAYMENTS),REDACTED,REDACTED,X,10
07.05.2021,ADULT SOCIAL CARE,REDACTED PERSONAL DATA,379.52,SPECIALIST CARE,PAYMENTS TO CLIENTS (DIRECT PAYMENTS),REDACTED,REDACTED,X,10
07.05.2021,ADULT SOCIAL CARE,REDACTED PERSONAL DATA,379.52,SPECIALIST CARE,PAYMENTS TO CLIENTS (DIRECT PAYMENTS),REDACTED,REDACTED,X,10
07.05.2021,ADULT SOCIAL CARE,REDACTED PERSONAL DATA,379.52,SPECIALIST CARE,PAYMENTS TO CLIENTS (DIRECT PAYMENTS),REDACTED,REDACTED,X,10
07.05.2021,ADULT SOCIAL CARE,CONTACT PROFESSIONALS,380,SPECIALIST CARE,SECTION 17 PAYMENTS TO AGENCIES/CARERS,2103259011,1000057263,y,4
07.05.2021,ADULT SOCIAL CARE,CONTACT PROFESSIONALS,380,SPECIALIST CARE,SECTION 17 PAYMENTS TO AGENCIES/CARERS,2103259045,1000057263,y,4
07.05.2021,ADULT SOCIAL CARE,REDACTED PERSONAL DATA,380.28,SPECIALIST CARE,PAYMENTS TO CLIENTS (DIRECT PAYMENTS),REDACTED,REDACTED,X,10
07.05.2021,ADULT SOCIAL CARE,PEOPLEPLUS ILS,384.92,SPECIALIST CARE,PAYMENTS TO CLIENTS (DIRECT PAYMENTS),2103260071,1000061886,y,4
07.05.2021,ADULT SOCIAL CARE,PEOPLEPLUS ILS,393.52,SPECIALIST CARE,PAYMENTS TO CLIENTS (DIRECT PAYMENTS),2103259934,1000061886,y,4
07.05.2021,ADULT SOCIAL CARE,PEOPLEPLUS ILS,393.52,SPECIALIST CARE,PAYMENTS TO CLIENTS (DIRECT PAYMENTS),2103259987,1000061886,y,4
07.05.2021,ADULT SOCIAL CARE,PEOPLEPLUS ILS,393.52,SPECIALIST CARE,PAYMENTS TO CLIENTS (DIRECT PAYMENTS),2103260012,1000061886,y,4
07.05.2021,ADULT SOCIAL CARE,PEOPLEPLUS ILS,393.52,SPECIALIST CARE,PAYMENTS TO CLIENTS (DIRECT PAYMENTS),2103260021,1000061886,y,4
07.05.2021,ADULT SOCIAL CARE,PEOPLEPLUS ILS,393.52,SPECIALIST CARE,PAYMENTS TO CLIENTS (DIRECT PAYMENTS),2103260048,1000061886,y,4
07.05.2021,ADULT SOCIAL CARE,PEOPLEPLUS ILS,393.52,SPECIALIST CARE,PAYMENTS TO CLIENTS (DIRECT PAYMENTS),2103260079,1000061886,y,4
07.05.2021,ADULT SOCIAL CARE,PEOPLEPLUS ILS,393.52,SPECIALIST CARE,PAYMENTS TO CLIENTS (DIRECT PAYMENTS),2103260109,1000061886,y,4
07.05.2021,ADULT SOCIAL CARE,PEOPLEPLUS ILS,393.52,SPECIALIST CARE,PAYMENTS TO CLIENTS (DIRECT PAYMENTS),2103260116,1000061886,y,4
07.05.2021,ADULT SOCIAL CARE,REDACTED PERSONAL DATA,394.68,SPECIALIST CARE,PAYMENTS TO CLIENTS (DIRECT PAYMENTS),REDACTED,REDACTED,X,10
07.05.2021,ADULT SOCIAL CARE,REDACTED PERSONAL DATA,404.8,SPECIALIST CARE,PAYMENTS TO CLIENTS (DIRECT PAYMENTS),REDACTED,REDACTED,X,10
07.05.2021,ADULT SOCIAL CARE,PEOPLEPLUS ILS,423.48,SPECIALIST CARE,PAYMENTS TO CLIENTS (DIRECT PAYMENTS),2103259993,1000061886,y,4
07.05.2021,ADULT SOCIAL CARE,PEOPLEPLUS ILS,453.44,SPECIALIST CARE,PAYMENTS TO CLIENTS (DIRECT PAYMENTS),2103259959,1000061886,y,4
07.05.2021,ADULT SOCIAL CARE,PEOPLEPLUS ILS,453.44,SPECIALIST CARE,PAYMENTS TO CLIENTS (DIRECT PAYMENTS),2103259964,1000061886,y,4
07.05.2021,ADULT SOCIAL CARE,PEOPLEPLUS ILS,453.44,SPECIALIST CARE,PAYMENTS TO CLIENTS (DIRECT PAYMENTS),2103260030,1000061886,y,4
